Body Name,Body,Organisational unit,Service division,Expenditure category,Date,Transacton number,Net amount,Supplier,Narrative
Tendring DC,http://statistics.data.gov.uk/id/local-authority-district/22UN,Corporate Services,C302 - Westleigh House Demolish/additional parking provision,C130 - Asbestos Survey,28/01/2014,7011262-1,550,2113602 - Absolute Asbestos Solutions Limited,ASBESTOS SURVEY
Tendring DC,http://statistics.data.gov.uk/id/local-authority-district/22UN,Corporate Services,1950 - Transport,3062 - Running Costs - Petrol,21/01/2014,1056967-1,115.08,2101825 - Allstar Business Solutions Ltd,COURIER FUEL
Tendring DC,http://statistics.data.gov.uk/id/local-authority-district/22UN,Corporate Services,1950 - Transport,3062 - Running Costs - Petrol,14/01/2014,7010803-1,117.52,2101825 - Allstar Business Solutions Ltd,COURIER FUEL
Tendring DC,http://statistics.data.gov.uk/id/local-authority-district/22UN,Corporate Services,1950 - Transport,3062 - Running Costs - Petrol,28/01/2014,7011068-1,121.69,2101825 - Allstar Business Solutions Ltd,COURIER FUEL
Tendring DC,http://statistics.data.gov.uk/id/local-authority-district/22UN,Corporate Services,6980 - Essex Family Needs Project,4469 - Other Non - Legal Professional Services,28/01/2014,7011134-1,5713,2103923 - Anglia Ruskin University,ANGLIA RUSKIN UNI
Tendring DC,http://statistics.data.gov.uk/id/local-authority-district/22UN,Corporate Services,6560 - Other Democratic Costs,4110 - General Provisions,07/01/2014,7010591-1,1.06,2112129 - Autobar Vending Services Ltd,MEMBERS REFRESHMENTS
Tendring DC,http://statistics.data.gov.uk/id/local-authority-district/22UN,Corporate Services,6560 - Other Democratic Costs,4110 - General Provisions,07/01/2014,7010591-2,187.2,2112129 - Autobar Vending Services Ltd,MEMBERS REFRESHMENTS
Tendring DC,http://statistics.data.gov.uk/id/local-authority-district/22UN,Corporate Services,1100 - Corporate Director (Corporate Services) and Admin Service Unit,4300 - Printing & Stationery,07/01/2014,1056787-1,8.55,2100111 - Banner Business Supplies Ltd,BANNER
Tendring DC,http://statistics.data.gov.uk/id/local-authority-district/22UN,Corporate Services,1100 - Corporate Director (Corporate Services) and Admin Service Unit,4300 - Printing & Stationery,14/01/2014,7010798-1,94.79,2100111 - Banner Business Supplies Ltd,BANNER
Tendring DC,http://statistics.data.gov.uk/id/local-authority-district/22UN,Corporate Services,1100 - Corporate Director (Corporate Services) and Admin Service Unit,4300 - Printing & Stationery,28/01/2014,7011055-1,112.44,2100111 - Banner Business Supplies Ltd,BANNER
Tendring DC,http://statistics.data.gov.uk/id/local-authority-district/22UN,Corporate Services,7100 - Community Health/Safety,4300 - Printing & Stationery,28/01/2014,7011056-1,124.36,2100111 - Banner Business Supplies Ltd,BANNER - STATIONERY
Tendring DC,http://statistics.data.gov.uk/id/local-authority-district/22UN,Corporate Services,5800 - Brightlingsea Sports Centre,5300 - Resaleable Items,30/01/2014,7800077-1,22.4,2100141 - Barclaycard Merchant Services,PDQ Barclaycard - Nov - BSH
Tendring DC,http://statistics.data.gov.uk/id/local-authority-district/22UN,Corporate Services,5800 - Brightlingsea Sports Centre,5300 - Resaleable Items,30/01/2014,7800077-3,20.84,2100141 - Barclaycard Merchant Services,PDQ Barclaycard - Nov - BSH
Tendring DC,http://statistics.data.gov.uk/id/local-authority-district/22UN,Corporate Services,5800 - Brightlingsea Sports Centre,5300 - Resaleable Items,30/01/2014,7800078-0,22.4,2100141 - Barclaycard Merchant Services,PDQ Barclaycard - Dec - BSH
Tendring DC,http://statistics.data.gov.uk/id/local-authority-district/22UN,Corporate Services,5800 - Brightlingsea Sports Centre,5300 - Resaleable Items,30/01/2014,7800078-2,20.99,2100141 - Barclaycard Merchant Services,PDQ Barclaycard - Dec - BSH
Tendring DC,http://statistics.data.gov.uk/id/local-authority-district/22UN,Corporate Services,5860 - Manningtree Sports Centre,5196 - Credit Card Charges,30/01/2014,7800079-1,19.35,2100141 - Barclaycard Merchant Services,PDQ Barclaycard - Dec - MSC
Tendring DC,http://statistics.data.gov.uk/id/local-authority-district/22UN,Corporate Services,5860 - Manningtree Sports Centre,5196 - Credit Card Charges,30/01/2014,7800079-3,56.79,2100141 - Barclaycard Merchant Services,PDQ Barclaycard - Dec - MSC
Tendring DC,http://statistics.data.gov.uk/id/local-authority-district/22UN,Corporate Services,8540 - Leisure Centre Clacton,5196 - Credit Card Charges,30/01/2014,7800080-0,36.3,2100141 - Barclaycard Merchant Services,PDQ Barclaycard - Dec - CLC
Tendring DC,http://statistics.data.gov.uk/id/local-authority-district/22UN,Corporate Services,8540 - Leisure Centre Clacton,5196 - Credit Card Charges,30/01/2014,7800080-2,367.5,2100141 - Barclaycard Merchant Services,PDQ Barclaycard - Dec - CLC
Tendring DC,http://statistics.data.gov.uk/id/local-authority-district/22UN,Corporate Services,8520 - Frinton & Walton Swimming Pool,5196 - Credit Card Charges,30/01/2014,7800081-0,106.94,2100141 - Barclaycard Merchant Services,PDQ Barclaycard - Dec - FWP
Tendring DC,http://statistics.data.gov.uk/id/local-authority-district/22UN,Corporate Services,8520 - Frinton & Walton Swimming Pool,5196 - Credit Card Charges,30/01/2014,7800081-2,7.2,2100141 - Barclaycard Merchant Services,PDQ Barclaycard - Dec - FWP
Tendring DC,http://statistics.data.gov.uk/id/local-authority-district/22UN,Corporate Services,8520 - Frinton & Walton Swimming Pool,5196 - Credit Card Charges,30/01/2014,7800081-3,19.35,2100141 - Barclaycard Merchant Services,PDQ Barclaycard - Dec - FWP
Tendring DC,http://statistics.data.gov.uk/id/local-authority-district/22UN,Corporate Services,8510 - Dovercourt Swimming Pool & All Weather Facilities,5196 - Credit Card Charges,30/01/2014,7800082-1,101.97,2100141 - Barclaycard Merchant Services,PDQ  Barclaycard - Dec - DSP
Tendring DC,http://statistics.data.gov.uk/id/local-authority-district/22UN,Corporate Services,8510 - Dovercourt Swimming Pool & All Weather Facilities,5196 - Credit Card Charges,30/01/2014,7800082-3,19.35,2100141 - Barclaycard Merchant Services,PDQ  Barclaycard - Dec - DSP
Tendring DC,http://statistics.data.gov.uk/id/local-authority-district/22UN,Corporate Services,5820 - Harwich Sports Centre,5196 - Credit Card Charges,30/01/2014,7800083-0,19.35,2100141 - Barclaycard Merchant Services,PDQ Barclaycard - Dec - HSC
Tendring DC,http://statistics.data.gov.uk/id/local-authority-district/22UN,Corporate Services,5820 - Harwich Sports Centre,5196 - Credit Card Charges,30/01/2014,7800083-2,27.52,2100141 - Barclaycard Merchant Services,PDQ Barclaycard - Dec - HSC
Tendring DC,http://statistics.data.gov.uk/id/local-authority-district/22UN,Corporate Services,1815 - Personnel and Human Resources Issues,4753 - Computer - Application Software,21/01/2014,7011008-1,7264,REDACTED PERSONAL DATA,REDACTED PERSONAL DATA
Tendring DC,http://statistics.data.gov.uk/id/local-authority-district/22UN,Corporate Services,C080 - Joint HR and Payroll System,C274 - Purchase of Software,28/01/2014,7011086-1,7390.26,2108648 - Bond International Software (UK) Ltd,BOND TEAMSPIRIT
Tendring DC,http://statistics.data.gov.uk/id/local-authority-district/22UN,Corporate Services,1200 - Payroll & Payments,4753 - Computer - Application Software,28/01/2014,7011087-1,2795,2108648 - Bond International Software (UK) Ltd,BOND TEAMSPIRIT
Tendring DC,http://statistics.data.gov.uk/id/local-authority-district/22UN,Corporate Services,1300 - Legal Services Service Unit,4355 - Books & Periodicals,21/01/2014,7010999-1,1285,2113612 - BPP Professional Education,TRAINEE SOLICITOR COURSES
Tendring DC,http://statistics.data.gov.uk/id/local-authority-district/22UN,Corporate Services,1760 - IT Direct Service Costs,4715 - Data Communication Charge,14/01/2014,7010669-1,45.36,2100168 - British Telecommunications plc,EA 3526 7071
Tendring DC,http://statistics.data.gov.uk/id/local-authority-district/22UN,Corporate Services,1760 - IT Direct Service Costs,4715 - Data Communication Charge,14/01/2014,7010670-1,45.36,2100168 - British Telecommunications plc,EA 3526 7075
Tendring DC,http://statistics.data.gov.uk/id/local-authority-district/22UN,Corporate Services,1760 - IT Direct Service Costs,4715 - Data Communication Charge,14/01/2014,7010671-1,45.36,2100168 - British Telecommunications plc,EA 3525 8827
Tendring DC,http://statistics.data.gov.uk/id/local-authority-district/22UN,Corporate Services,1760 - IT Direct Service Costs,4715 - Data Communication Charge,14/01/2014,7010672-1,46.89,2100168 - British Telecommunications plc,3440 1625
Tendring DC,http://statistics.data.gov.uk/id/local-authority-district/22UN,Corporate Services,1760 - IT Direct Service Costs,4715 - Data Communication Charge,14/01/2014,7010673-1,45.36,2100168 - British Telecommunications plc,3527 3347
Tendring DC,http://statistics.data.gov.uk/id/local-authority-district/22UN,Corporate Services,1760 - IT Direct Service Costs,4715 - Data Communication Charge,14/01/2014,7010674-1,260.66,2100168 - British Telecommunications plc,3625 9059
Tendring DC,http://statistics.data.gov.uk/id/local-authority-district/22UN,Corporate Services,1760 - IT Direct Service Costs,4715 - Data Communication Charge,28/01/2014,7011231-1,44.7,2100168 - British Telecommunications plc,2531DE13
Tendring DC,http://statistics.data.gov.uk/id/local-authority-district/22UN,Corporate Services,1760 - IT Direct Service Costs,4715 - Data Communication Charge,28/01/2014,7011232-1,58.14,2100168 - British Telecommunications plc,8418DE14
Tendring DC,http://statistics.data.gov.uk/id/local-authority-district/22UN,Corporate Services,1760 - IT Direct Service Costs,4715 - Data Communication Charge,28/01/2014,7011233-1,62.82,2100168 - British Telecommunications plc,7234DE13
Tendring DC,http://statistics.data.gov.uk/id/local-authority-district/22UN,Corporate Services,1760 - IT Direct Service Costs,4715 - Data Communication Charge,28/01/2014,7011234-1,186,2100168 - British Telecommunications plc,3144ja14
Tendring DC,http://statistics.data.gov.uk/id/local-authority-district/22UN,Corporate Services,1760 - IT Direct Service Costs,4715 - Data Communication Charge,28/01/2014,7011235-1,46.89,2100168 - British Telecommunications plc,0166de13
Tendring DC,http://statistics.data.gov.uk/id/local-authority-district/22UN,Corporate Services,1760 - IT Direct Service Costs,4715 - Data Communication Charge,28/01/2014,7011236-1,117.9,2100168 - British Telecommunications plc,1327DE13
Tendring DC,http://statistics.data.gov.uk/id/local-authority-district/22UN,Corporate Services,1760 - IT Direct Service Costs,4715 - Data Communication Charge,28/01/2014,7011237-1,200.18,2100168 - British Telecommunications plc,2194DE13
Tendring DC,http://statistics.data.gov.uk/id/local-authority-district/22UN,Corporate Services,1760 - IT Direct Service Costs,4715 - Data Communication Charge,28/01/2014,7011238-1,45.36,2100168 - British Telecommunications plc,8878DEC13
Tendring DC,http://statistics.data.gov.uk/id/local-authority-district/22UN,Corporate Services,9900 - General Fund Balance Sheet,B879 - Charges made by Merchant Acquirer,14/01/2014,7800059-1,43.38,2100202 - Capita Business Services Ltd,CAPITA - December 2013
Tendring DC,http://statistics.data.gov.uk/id/local-authority-district/22UN,Corporate Services,9900 - General Fund Balance Sheet,B879 - Charges made by Merchant Acquirer,14/01/2014,7800059-3,83.86,2100202 - Capita Business Services Ltd,CAPITA - December 2013
Tendring DC,http://statistics.data.gov.uk/id/local-authority-district/22UN,Corporate Services,9900 - General Fund Balance Sheet,B879 - Charges made by Merchant Acquirer,14/01/2014,7800059-4,102.78,2100202 - Capita Business Services Ltd,CAPITA - December 2013
Tendring DC,http://statistics.data.gov.uk/id/local-authority-district/22UN,Corporate Services,9900 - General Fund Balance Sheet,B879 - Charges made by Merchant Acquirer,14/01/2014,7800059-5,315.69,2100202 - Capita Business Services Ltd,CAPITA - December 2013
Tendring DC,http://statistics.data.gov.uk/id/local-authority-district/22UN,Corporate Services,9900 - General Fund Balance Sheet,B879 - Charges made by Merchant Acquirer,14/01/2014,7800059-6,459.36,2100202 - Capita Business Services Ltd,CAPITA - December 2013
Tendring DC,http://statistics.data.gov.uk/id/local-authority-district/22UN,Corporate Services,9900 - General Fund Balance Sheet,B879 - Charges made by Merchant Acquirer,14/01/2014,7800059-7,379.1,2100202 - Capita Business Services Ltd,CAPITA - December 2013
Tendring DC,http://statistics.data.gov.uk/id/local-authority-district/22UN,Corporate Services,9900 - General Fund Balance Sheet,B879 - Charges made by Merchant Acquirer,14/01/2014,7800059-8,361.08,2100202 - Capita Business Services Ltd,CAPITA - December 2013
Tendring DC,http://statistics.data.gov.uk/id/local-authority-district/22UN,Corporate Services,9900 - General Fund Balance Sheet,B879 - Charges made by Merchant Acquirer,14/01/2014,7800059-9,314.25,2100202 - Capita Business Services Ltd,CAPITA - December 2013
Tendring DC,http://statistics.data.gov.uk/id/local-authority-district/22UN,Corporate Services,1500 - Planning Development Manager,3300 - Public Transport - Officers,14/01/2014,1056842-1,46,REDACTED PERSONAL DATA,REDACTED PERSONAL DATA
Tendring DC,http://statistics.data.gov.uk/id/local-authority-district/22UN,Corporate Services,1320 - Print Unit Service Unit,4302 - External Print Unit Expenses,07/01/2014,1056778-1,378,2113356 - Classique Design & Print Limted,JOB 526
Tendring DC,http://statistics.data.gov.uk/id/local-authority-district/22UN,Corporate Services,6640 - Treasury Management,5192 - Brokerage,13/01/2014,7800058-1,140,2100269 - Co operative Bank plc,FD Invoice - Dec 2013
Tendring DC,http://statistics.data.gov.uk/id/local-authority-district/22UN,Corporate Services,6620 - Corporate Management - General,5190 - Bank Commission Charges,13/01/2014,7800058-3,251.5,2100269 - Co operative Bank plc,FD Invoice - Dec 2013
Tendring DC,http://statistics.data.gov.uk/id/local-authority-district/22UN,Corporate Services,"1580 - Benefits, Revenues and Customer Contact SU",5186 - Paypoint/post office charges,13/01/2014,7800058-5,1286.17,2100269 - Co operative Bank plc,FD Invoice - Dec 2013
Tendring DC,http://statistics.data.gov.uk/id/local-authority-district/22UN,Corporate Services,"1580 - Benefits, Revenues and Customer Contact SU",5186 - Paypoint/post office charges,13/01/2014,7800058-7,2714.11,2100269 - Co operative Bank plc,FD Invoice - Dec 2013
Tendring DC,http://statistics.data.gov.uk/id/local-authority-district/22UN,Corporate Services,"1580 - Benefits, Revenues and Customer Contact SU",4469 - Other Non - Legal Professional Services,30/01/2014,7800072-1,4,2103209 - Companies House,Companies House Jan 14
Tendring DC,http://statistics.data.gov.uk/id/local-authority-district/22UN,Corporate Services,5260 - HRA - Rent Collection And Accounting,4461 - Court Fees,30/01/2014,7800064-1,950,2100304 - CO-OP Bank,Credit Card Jan 14 PP
Tendring DC,http://statistics.data.gov.uk/id/local-authority-district/22UN,Corporate Services,H860 - Disabled Adaptations,C200 - Main Contractor,30/01/2014,7800064-11,1864.8,2100304 - CO-OP Bank,Credit Card Jan 14 PP
Tendring DC,http://statistics.data.gov.uk/id/local-authority-district/22UN,Corporate Services,6620 - Corporate Management - General,5190 - Bank Commission Charges,30/01/2014,7800064-3,2,2100304 - CO-OP Bank,Credit Card Jan 14 PP
Tendring DC,http://statistics.data.gov.uk/id/local-authority-district/22UN,Corporate Services,6740 - Careline,4022 - Key Safe Equipment,30/01/2014,7800064-5,25.92,2100304 - CO-OP Bank,Credit Card Jan 14 PP
Tendring DC,http://statistics.data.gov.uk/id/local-authority-district/22UN,Corporate Services,5360 - HRA - Sheltered Units,5500 - Miscellaneous Expenses,30/01/2014,7800064-7,26.64,2100304 - CO-OP Bank,Credit Card Jan 14 PP
Tendring DC,http://statistics.data.gov.uk/id/local-authority-district/22UN,Corporate Services,H810 - Electrical Re-wiring,C200 - Main Contractor,30/01/2014,7800064-9,120,2100304 - CO-OP Bank,Credit Card Jan 14 PP
Tendring DC,http://statistics.data.gov.uk/id/local-authority-district/22UN,Corporate Services,1760 - IT Direct Service Costs,4753 - Computer - Application Software,30/01/2014,7800065-0,20.25,2100304 - CO-OP Bank,IT Access BK & Survey Monkey JH Oct 13
Tendring DC,http://statistics.data.gov.uk/id/local-authority-district/22UN,Corporate Services,1760 - IT Direct Service Costs,4753 - Computer - Application Software,30/01/2014,7800065-2,299,2100304 - CO-OP Bank,IT Access BK & Survey Monkey JH Oct 13
Tendring DC,http://statistics.data.gov.uk/id/local-authority-district/22UN,Corporate Services,6620 - Corporate Management - General,5190 - Bank Commission Charges,30/01/2014,7800065-4,2,2100304 - CO-OP Bank,IT Access BK & Survey Monkey JH Oct 13
Tendring DC,http://statistics.data.gov.uk/id/local-authority-district/22UN,Corporate Services,"1580 - Benefits, Revenues and Customer Contact SU",4461 - Court Fees,30/01/2014,7800066-1,2972,2100304 - CO-OP Bank,HM Courts JB Dec 13
Tendring DC,http://statistics.data.gov.uk/id/local-authority-district/22UN,Corporate Services,1620 - Corporate Performance - IT Section Service Unit,3300 - Public Transport - Officers,30/01/2014,7800067-0,57.2,2100304 - CO-OP Bank,Rail/Tablet/Talk Talk TS Dec 13
Tendring DC,http://statistics.data.gov.uk/id/local-authority-district/22UN,Corporate Services,C350 - Hardware rolling replacement programme,C275 - Hardware,30/01/2014,7800067-2,277.95,2100304 - CO-OP Bank,Rail/Tablet/Talk Talk TS Dec 13
Tendring DC,http://statistics.data.gov.uk/id/local-authority-district/22UN,Corporate Services,8520 - Frinton & Walton Swimming Pool,4880 - Subscriptions Paid,30/01/2014,7800067-4,30,2100304 - CO-OP Bank,Rail/Tablet/Talk Talk TS Dec 13
Tendring DC,http://statistics.data.gov.uk/id/local-authority-district/22UN,Corporate Services,1760 - IT Direct Service Costs,4715 - Data Communication Charge,30/01/2014,7800067-6,10,2100304 - CO-OP Bank,Rail/Tablet/Talk Talk TS Dec 13
Tendring DC,http://statistics.data.gov.uk/id/local-authority-district/22UN,Corporate Services,8510 - Dovercourt Swimming Pool & All Weather Facilities,4880 - Subscriptions Paid,30/01/2014,7800067-8,30,2100304 - CO-OP Bank,Rail/Tablet/Talk Talk TS Dec 13
Tendring DC,http://statistics.data.gov.uk/id/local-authority-district/22UN,Corporate Services,6620 - Corporate Management - General,5190 - Bank Commission Charges,30/01/2014,7800067-9,2,2100304 - CO-OP Bank,Rail/Tablet/Talk Talk TS Dec 13
Tendring DC,http://statistics.data.gov.uk/id/local-authority-district/22UN,Corporate Services,6620 - Corporate Management - General,5190 - Bank Commission Charges,30/01/2014,7800068-1,2,2100304 - CO-OP Bank,Card Fee JH Jan 14
Tendring DC,http://statistics.data.gov.uk/id/local-authority-district/22UN,Corporate Services,1760 - IT Direct Service Costs,4715 - Data Communication Charge,30/01/2014,7800069-0,10,2100304 - CO-OP Bank,Talk Talk /Rail TS Nov 13
Tendring DC,http://statistics.data.gov.uk/id/local-authority-district/22UN,Corporate Services,1620 - Corporate Performance - IT Section Service Unit,3300 - Public Transport - Officers,30/01/2014,7800069-2,48,2100304 - CO-OP Bank,Talk Talk /Rail TS Nov 13
Tendring DC,http://statistics.data.gov.uk/id/local-authority-district/22UN,Corporate Services,6620 - Corporate Management - General,5190 - Bank Commission Charges,30/01/2014,7800069-4,2,2100304 - CO-OP Bank,Talk Talk /Rail TS Nov 13
Tendring DC,http://statistics.data.gov.uk/id/local-authority-district/22UN,Corporate Services,5800 - Brightlingsea Sports Centre,4710 - Telephones - Charges,30/01/2014,7800069-6,30,2100304 - CO-OP Bank,Talk Talk /Rail TS Nov 13
Tendring DC,http://statistics.data.gov.uk/id/local-authority-district/22UN,Corporate Services,1760 - IT Direct Service Costs,4753 - Computer - Application Software,30/01/2014,7800070-1,24.99,2100304 - CO-OP Bank,Project Book/Card Fee JH Sep 13
Tendring DC,http://statistics.data.gov.uk/id/local-authority-district/22UN,Corporate Services,6620 - Corporate Management - General,5190 - Bank Commission Charges,30/01/2014,7800070-3,2,2100304 - CO-OP Bank,Project Book/Card Fee JH Sep 13
Tendring DC,http://statistics.data.gov.uk/id/local-authority-district/22UN,Corporate Services,1760 - IT Direct Service Costs,4753 - Computer - Application Software,30/01/2014,7800071-0,21.24,2100304 - CO-OP Bank,Project Management Docs JH Jun 13
Tendring DC,http://statistics.data.gov.uk/id/local-authority-district/22UN,Corporate Services,9900 - General Fund Balance Sheet,B460 - Criminal Records Bureau,13/01/2014,7800053-1,1364,2100395 - Criminal Records Bureau,Criminal Records Bureau - Dec 2013
Tendring DC,http://statistics.data.gov.uk/id/local-authority-district/22UN,Corporate Services,1760 - IT Direct Service Costs,4715 - Data Communication Charge,28/01/2014,7011244-1,6383.2,2106704 - Daisy Communications Ltd,DAISY JAN 14
Tendring DC,http://statistics.data.gov.uk/id/local-authority-district/22UN,Corporate Services,9890 - Collection Fund - NNDR,R125 - NNDR - Payments to DCLG,13/01/2014,7800056-1,1270299,2100432 - DCLG,NNDR and RSG - Dec 2013
Tendring DC,http://statistics.data.gov.uk/id/local-authority-district/22UN,Corporate Services,8984 - Business Rates Tariff and Levy,6990 - Business Rate Tariff and Levy,13/01/2014,7800056-3,534551,2100432 - DCLG,NNDR and RSG - Dec 2013
Tendring DC,http://statistics.data.gov.uk/id/local-authority-district/22UN,Corporate Services,9890 - Collection Fund - NNDR,R135 - NNDR - Transitional Relief Settlement,13/01/2014,7800056-5,-12499,2100432 - DCLG,NNDR and RSG - Dec 2013
Tendring DC,http://statistics.data.gov.uk/id/local-authority-district/22UN,Corporate Services,9920 - HRA Balance Sheet,B505 - DCLGM Capital Receipts Pooling Creditor,31/01/2014,7800084-1,85149.49,2100432 - DCLG,Q3 Capital Receipts Pool Return 13/14
Tendring DC,http://statistics.data.gov.uk/id/local-authority-district/22UN,Corporate Services,9900 - General Fund Balance Sheet,B382 - Rechargeable Works - Other,21/01/2014,1057014-1,1422,REDACTED PERSONAL DATA,REDACTED PERSONAL DATA
Tendring DC,http://statistics.data.gov.uk/id/local-authority-district/22UN,Corporate Services,9900 - General Fund Balance Sheet,B382 - Rechargeable Works - Other,21/01/2014,1057014-2,-1422,REDACTED PERSONAL DATA,REDACTED PERSONAL DATA
Tendring DC,http://statistics.data.gov.uk/id/local-authority-district/22UN,Corporate Services,9900 - General Fund Balance Sheet,B382 - Rechargeable Works - Other,21/01/2014,1057015-1,965.15,REDACTED PERSONAL DATA,REDACTED PERSONAL DATA
Tendring DC,http://statistics.data.gov.uk/id/local-authority-district/22UN,Corporate Services,9900 - General Fund Balance Sheet,B382 - Rechargeable Works - Other,21/01/2014,1057015-2,-965.15,REDACTED PERSONAL DATA,REDACTED PERSONAL DATA
Tendring DC,http://statistics.data.gov.uk/id/local-authority-district/22UN,Corporate Services,7240 - Electoral Registration Expenses,4700 - Postage,14/01/2014,7010748-1,1164.15,2107541 - Electoral Reform Services,ERO REGISTRATION FEE
Tendring DC,http://statistics.data.gov.uk/id/local-authority-district/22UN,Corporate Services,C421 - Oracle Upgrades,C276 - Licences for Software,28/01/2014,7011249-1,89.51,2100458 - ESRI (UK) Ltd,CONSULTANT EXPENSES
Tendring DC,http://statistics.data.gov.uk/id/local-authority-district/22UN,Corporate Services,C421 - Oracle Upgrades,C276 - Licences for Software,28/01/2014,7011250-1,4470,2100458 - ESRI (UK) Ltd,LVF UPGRADE IMPLE
Tendring DC,http://statistics.data.gov.uk/id/local-authority-district/22UN,Corporate Services,1300 - Legal Services Service Unit,4355 - Books & Periodicals,07/01/2014,1056750-1,1875,2100498 - Essex County Council,PLC USER LICENCES
Tendring DC,http://statistics.data.gov.uk/id/local-authority-district/22UN,Corporate Services,1180 - Benefit Fraud Investigation Service Unit,5500 - Miscellaneous Expenses,07/01/2014,1056795-1,10,2100429 - Essex County Council,
Tendring DC,http://statistics.data.gov.uk/id/local-authority-district/22UN,Corporate Services,8971 - MIRS - Contributions Payable to the Pension Scheme,1816 - Superannuation Deficiency Contribution,14/01/2014,7010808-3,137750,2100419 - Essex County Council,Pension 00013
Tendring DC,http://statistics.data.gov.uk/id/local-authority-district/22UN,Corporate Services,8971 - MIRS - Contributions Payable to the Pension Scheme,1810 - Superannuation - Financial Strain/Added Years,14/01/2014,7010808-4,18355.99,2100419 - Essex County Council,Pension 00013
Tendring DC,http://statistics.data.gov.uk/id/local-authority-district/22UN,Corporate Services,8971 - MIRS - Contributions Payable to the Pension Scheme,1822 - Superannuation - Port Health Pensions etc.,14/01/2014,7010809-2,800.05,2100419 - Essex County Council,Port Health Authority
Tendring DC,http://statistics.data.gov.uk/id/local-authority-district/22UN,Corporate Services,9880 - Collection Fund - Council Tax,R100 - Precept - ECC,15/01/2014,7800102-1,4616471,2100409 - Essex County Council,Essex CC Precept 15/1/14
Tendring DC,http://statistics.data.gov.uk/id/local-authority-district/22UN,Corporate Services,9880 - Collection Fund - Council Tax,R110 - Council Tax Balance - ECC,15/01/2014,7800102-3,92582,2100409 - Essex County Council,Essex CC Precept 15/1/14
Tendring DC,http://statistics.data.gov.uk/id/local-authority-district/22UN,Corporate Services,9890 - Collection Fund - NNDR,R127 - NNDR - Essex County Retention,15/01/2014,7800102-5,217766,2100409 - Essex County Council,Essex CC Precept 15/1/14
Tendring DC,http://statistics.data.gov.uk/id/local-authority-district/22UN,Corporate Services,6683 - Technical Discount Scheme,8109 - Technical  Discount Scheme - ECC Contribution,15/01/2014,7800102-7,-37770,2100409 - Essex County Council,Essex CC Precept 15/1/14
Tendring DC,http://statistics.data.gov.uk/id/local-authority-district/22UN,Corporate Services,9880 - Collection Fund - Council Tax,R101 - Precept - Essex Fire,15/01/2014,7800104-0,282150,2100469 - Essex Fire Authority,Fire Precept 15/1/14
Tendring DC,http://statistics.data.gov.uk/id/local-authority-district/22UN,Corporate Services,9880 - Collection Fund - Council Tax,R111 - Council Tax Balance - Essex Fire,15/01/2014,7800104-2,5658,2100469 - Essex Fire Authority,Fire Precept 15/1/14
Tendring DC,http://statistics.data.gov.uk/id/local-authority-district/22UN,Corporate Services,9890 - Collection Fund - NNDR,R128 - NNDR - Fire Retention,15/01/2014,7800104-4,24196,2100469 - Essex Fire Authority,Fire Precept 15/1/14
Tendring DC,http://statistics.data.gov.uk/id/local-authority-district/22UN,Corporate Services,6683 - Technical Discount Scheme,8109 - Technical  Discount Scheme - ECC Contribution,15/01/2014,7800104-6,-2106,2100469 - Essex Fire Authority,Fire Precept 15/1/14
Tendring DC,http://statistics.data.gov.uk/id/local-authority-district/22UN,Corporate Services,9880 - Collection Fund - Council Tax,R102 - Precept - Essex Police,15/01/2014,7800103-0,601001,2100500 - Essex Police Authority,Precept Police 15/1/14
Tendring DC,http://statistics.data.gov.uk/id/local-authority-district/22UN,Corporate Services,9880 - Collection Fund - Council Tax,R112 - Council Tax Balance - Essex Police,15/01/2014,7800103-2,11647,2100500 - Essex Police Authority,Precept Police 15/1/14
Tendring DC,http://statistics.data.gov.uk/id/local-authority-district/22UN,Corporate Services,6683 - Technical Discount Scheme,8109 - Technical  Discount Scheme - ECC Contribution,15/01/2014,7800103-4,-4486,2100500 - Essex Police Authority,Precept Police 15/1/14
Tendring DC,http://statistics.data.gov.uk/id/local-authority-district/22UN,Corporate Services,1660 - Other Apportionable Overheads,4609 - Child Care Vouchers Management Fee,07/01/2014,1056792-2,52.38,REDACTED PERSONAL DATA,REDACTED PERSONAL DATA
Tendring DC,http://statistics.data.gov.uk/id/local-authority-district/22UN,Corporate Services,8540 - Leisure Centre Clacton,2900 - Premises Licensing - Public Entertainment,13/01/2014,7800055-1,291.8,2107806 - Fitness Professionals Ltd,Body Training System - Dec 2013
Tendring DC,http://statistics.data.gov.uk/id/local-authority-district/22UN,Corporate Services,7025 - CDRP Support,4900 - Grants,07/01/2014,1056809-1,95,2100546 - GCS Alarms,CCTV CAMERA MOVED
Tendring DC,http://statistics.data.gov.uk/id/local-authority-district/22UN,Corporate Services,1100 - Corporate Director (Corporate Services) and Admin Service Unit,1710 - Training - Central Department Budget,28/01/2014,7011245-1,195,2112696 - GeoPlace LLP,ADDRESS UPDATE TRAINING
Tendring DC,http://statistics.data.gov.uk/id/local-authority-district/22UN,Corporate Services,1815 - Personnel and Human Resources Issues,1610 - Counselling,21/01/2014,7010898-1,765,2100517 - Geraldine Craig,COUNSELLING SESSIONS
Tendring DC,http://statistics.data.gov.uk/id/local-authority-district/22UN,Corporate Services,8540 - Leisure Centre Clacton,2900 - Premises Licensing - Public Entertainment,13/01/2014,7800054-0,50,2110331 - GMS Recordings,Music Broadcasting - Lifestyles - Dec 2013
Tendring DC,http://statistics.data.gov.uk/id/local-authority-district/22UN,Corporate Services,1815 - Personnel and Human Resources Issues,1500 - Advertising - Recruitment,14/01/2014,7010659-1,648,2113539 - Harcourt-Powell,R.I.C.S  A.P.C.
Tendring DC,http://statistics.data.gov.uk/id/local-authority-district/22UN,Corporate Services,1180 - Benefit Fraud Investigation Service Unit,4459 - External Legal Advice,14/01/2014,1056889-1,654.42,2100672 - Harris Cuffaro & Nichols Solicitors,SOLICITOR CHARGES
Tendring DC,http://statistics.data.gov.uk/id/local-authority-district/22UN,Corporate Services,1180 - Benefit Fraud Investigation Service Unit,4459 - External Legal Advice,14/01/2014,1056889-2,3.75,2100672 - Harris Cuffaro & Nichols Solicitors,SOLICITOR CHARGES
Tendring DC,http://statistics.data.gov.uk/id/local-authority-district/22UN,Corporate Services,1180 - Benefit Fraud Investigation Service Unit,4459 - External Legal Advice,14/01/2014,1056890-1,633.6,2100672 - Harris Cuffaro & Nichols Solicitors,SOLICITOR CHARGES
Tendring DC,http://statistics.data.gov.uk/id/local-authority-district/22UN,Corporate Services,1180 - Benefit Fraud Investigation Service Unit,4459 - External Legal Advice,14/01/2014,1056890-2,3.75,2100672 - Harris Cuffaro & Nichols Solicitors,SOLICITOR CHARGES
Tendring DC,http://statistics.data.gov.uk/id/local-authority-district/22UN,Corporate Services,1180 - Benefit Fraud Investigation Service Unit,4459 - External Legal Advice,21/01/2014,7011007-1,542.1,2100672 - Harris Cuffaro & Nichols Solicitors,SOLICITOR COSTS
Tendring DC,http://statistics.data.gov.uk/id/local-authority-district/22UN,Corporate Services,8540 - Leisure Centre Clacton,5160 - Advertising,30/01/2014,7800073-0,52,2111275 - hibu (UK) Ltd,Advert 10/12/13 Yell
Tendring DC,http://statistics.data.gov.uk/id/local-authority-district/22UN,Corporate Services,1300 - Legal Services Service Unit,4466 - Land Registry Fees,13/01/2014,7800057-0,26,2100636 - HM Land Registry,Land Registry Enquiries - Dec 2013
Tendring DC,http://statistics.data.gov.uk/id/local-authority-district/22UN,Corporate Services,4750 - Housing Disrepair,4080 - Materials & Consumables,13/01/2014,7800057-11,27,2100636 - HM Land Registry,Land Registry Enquiries - Dec 2013
Tendring DC,http://statistics.data.gov.uk/id/local-authority-district/22UN,Corporate Services,5140 - Homelessness,4680 - Bed & Breakfast Accommodation,13/01/2014,7800057-13,15,2100636 - HM Land Registry,Land Registry Enquiries - Dec 2013
Tendring DC,http://statistics.data.gov.uk/id/local-authority-district/22UN,Corporate Services,4660 - Public Health,5500 - Miscellaneous Expenses,13/01/2014,7800057-2,26,2100636 - HM Land Registry,Land Registry Enquiries - Dec 2013
Tendring DC,http://statistics.data.gov.uk/id/local-authority-district/22UN,Corporate Services,"1580 - Benefits, Revenues and Customer Contact SU",4466 - Land Registry Fees,13/01/2014,7800057-4,129,2100636 - HM Land Registry,Land Registry Enquiries - Dec 2013
Tendring DC,http://statistics.data.gov.uk/id/local-authority-district/22UN,Corporate Services,1520 - Head of Planning and Customer Services,4624 - Hired Services - Land Registry,13/01/2014,7800057-5,2,2100636 - HM Land Registry,Land Registry Enquiries - Dec 2013
Tendring DC,http://statistics.data.gov.uk/id/local-authority-district/22UN,Corporate Services,1930 - Asset Management Service Unit,4469 - Other Non - Legal Professional Services,13/01/2014,7800057-7,66,2100636 - HM Land Registry,Land Registry Enquiries - Dec 2013
Tendring DC,http://statistics.data.gov.uk/id/local-authority-district/22UN,Corporate Services,H920 - Disabled Facilities Grants,C400 - Grant payments,13/01/2014,7800057-9,120,2100636 - HM Land Registry,Land Registry Enquiries - Dec 2013
Tendring DC,http://statistics.data.gov.uk/id/local-authority-district/22UN,Corporate Services,1760 - IT Direct Service Costs,4751 - Hardware & Service Maintenance,28/01/2014,7011239-1,39.34,2100782 - Insight Direct (uk) Limited,WIFI RANGE EXTEND
Tendring DC,http://statistics.data.gov.uk/id/local-authority-district/22UN,Corporate Services,4840 - Recycling & Waste Contract,5500 - Miscellaneous Expenses,28/01/2014,7011240-1,52.26,2100782 - Insight Direct (uk) Limited,PHOTOSHOP
Tendring DC,http://statistics.data.gov.uk/id/local-authority-district/22UN,Corporate Services,8540 - Leisure Centre Clacton,4000 - Furniture,28/01/2014,7011241-1,46.99,2100782 - Insight Direct (uk) Limited,19IN NOTEBOOK
Tendring DC,http://statistics.data.gov.uk/id/local-authority-district/22UN,Corporate Services,1140 - Audit Services Service Unit,4355 - Books & Periodicals,14/01/2014,1056896-1,12.6,2105208 - IT Governance Ltd,IT GOVERNANCE
Tendring DC,http://statistics.data.gov.uk/id/local-authority-district/22UN,Corporate Services,8510 - Dovercourt Swimming Pool & All Weather Facilities,4000 - Furniture,28/01/2014,7011203-1,130.6,2100755 - J P Lennard Ltd,DOVERCOURT POOL WOGGLES
Tendring DC,http://statistics.data.gov.uk/id/local-authority-district/22UN,Corporate Services,5240 - HRA - Managing Tenancies,5248 - Estate Management Expenses,28/01/2014,7011248-1,26.28,2100872 - Laptopshop I.T Ltd,ACER CHARGER ESTATES
Tendring DC,http://statistics.data.gov.uk/id/local-authority-district/22UN,Corporate Services,1330 - Human Resources Service Unit,3311 - Travelling Career Track,14/01/2014,1056899-1,7.6,2113455 - Lauren Cuthbert,
Tendring DC,http://statistics.data.gov.uk/id/local-authority-district/22UN,Corporate Services,1320 - Print Unit Service Unit,4080 - Materials & Consumables,28/01/2014,7011256-1,90.76,2100864 - Leston Stationery Ltd,ACTETALES
Tendring DC,http://statistics.data.gov.uk/id/local-authority-district/22UN,Corporate Services,1320 - Print Unit Service Unit,4080 - Materials & Consumables,28/01/2014,7011257-1,59.8,2100864 - Leston Stationery Ltd,GREEN PAPER
Tendring DC,http://statistics.data.gov.uk/id/local-authority-district/22UN,Corporate Services,1320 - Print Unit Service Unit,4080 - Materials & Consumables,28/01/2014,7011258-1,215.76,2100864 - Leston Stationery Ltd,100G PAPER YELLOW
Tendring DC,http://statistics.data.gov.uk/id/local-authority-district/22UN,Corporate Services,1320 - Print Unit Service Unit,4080 - Materials & Consumables,28/01/2014,7011259-1,262.56,2100864 - Leston Stationery Ltd,100G PAPER
Tendring DC,http://statistics.data.gov.uk/id/local-authority-district/22UN,Corporate Services,1760 - IT Direct Service Costs,6320 - IT Services Agreements Payment,07/01/2014,1056797-1,51622.01,2108077 - Liberata Financial Services Ltd,LIBERATA JAN 14 MAIN CONTRACT PAYMENT
Tendring DC,http://statistics.data.gov.uk/id/local-authority-district/22UN,Corporate Services,1300 - Legal Services Service Unit,4495 - Local Land Charges Litigation,14/01/2014,2112927-1,3360.45,2107205 - Local Government Association,property search lit customer no 101784
Tendring DC,http://statistics.data.gov.uk/id/local-authority-district/22UN,Corporate Services,1120 - Accountancy Service Unit,4753 - Computer - Application Software,14/01/2014,1056888-1,380,2102373 - Logotech Systems,LOGOTECH R+R
Tendring DC,http://statistics.data.gov.uk/id/local-authority-district/22UN,Corporate Services,1815 - Personnel and Human Resources Issues,1709 - Training - Management Development Courses,07/01/2014,7700956-1,833.17,2113514 - Marlborough Training and Consultancy Ltd,MANAGEMENT DEVELOPMENT
Tendring DC,http://statistics.data.gov.uk/id/local-authority-district/22UN,Corporate Services,1300 - Legal Services Service Unit,4355 - Books & Periodicals,21/01/2014,7010998-1,100,2110467 - MBL Seminars Ltd,MBL SEASON TICKET
Tendring DC,http://statistics.data.gov.uk/id/local-authority-district/22UN,Corporate Services,1760 - IT Direct Service Costs,4751 - Hardware & Service Maintenance,28/01/2014,7011247-1,61.71,2101818 - Misco,LAPTOP LOAC
Tendring DC,http://statistics.data.gov.uk/id/local-authority-district/22UN,Corporate Services,1930 - Asset Management Service Unit,4469 - Other Non - Legal Professional Services,21/01/2014,1056919-1,1366.2,REDACTED PERSONAL DATA,REDACTED PERSONAL DATA
Tendring DC,http://statistics.data.gov.uk/id/local-authority-district/22UN,Corporate Services,4460 - Planning Policy and Conservation,5446 - Local Development Frame Workl/Local Plan,30/01/2014,7800063-0,2150,REDACTED PERSONAL DATA,REDACTED PERSONAL DATA
Tendring DC,http://statistics.data.gov.uk/id/local-authority-district/22UN,Corporate Services,1815 - Personnel and Human Resources Issues,1708 - Training - New Programme Development Courses,21/01/2014,7011009-1,1253,REDACTED PERSONAL DATA,REDACTED PERSONAL DATA
Tendring DC,http://statistics.data.gov.uk/id/local-authority-district/22UN,Corporate Services,6620 - Corporate Management - General,5012 - Insurance - Special Contingency,28/01/2014,1057072-1,37136,2113633 - Municipal Mutual Insurance Ltd,SCHEME NO.SOA618
Tendring DC,http://statistics.data.gov.uk/id/local-authority-district/22UN,Corporate Services,1320 - Print Unit Service Unit,4302 - External Print Unit Expenses,28/01/2014,7011260-1,150,2111479 - Neil Goss Litho Printing,JOB 590
Tendring DC,http://statistics.data.gov.uk/id/local-authority-district/22UN,Corporate Services,1320 - Print Unit Service Unit,4302 - External Print Unit Expenses,28/01/2014,7011261-1,10,2111479 - Neil Goss Litho Printing,JOB 573
Tendring DC,http://statistics.data.gov.uk/id/local-authority-district/22UN,Corporate Services,6560 - Other Democratic Costs,4110 - General Provisions,28/01/2014,7011067-1,96.72,2108282 - Nisbets,CHAMBER CROCKERY
Tendring DC,http://statistics.data.gov.uk/id/local-authority-district/22UN,Corporate Services,1930 - Asset Management Service Unit,4469 - Other Non - Legal Professional Services,21/01/2014,7011005-1,2881,2111951 - NPS Property Consultants Ltd,NPS ADDITIONAL WORK
Tendring DC,http://statistics.data.gov.uk/id/local-authority-district/22UN,Corporate Services,1930 - Asset Management Service Unit,4469 - Other Non - Legal Professional Services,21/01/2014,7011006-1,3778,2111951 - NPS Property Consultants Ltd,NPS CONTRACT PAYMENT
Tendring DC,http://statistics.data.gov.uk/id/local-authority-district/22UN,Corporate Services,6460 - Career Track,4688 - Career Track Exam Fees,14/01/2014,2112893-1,80.9,REDACTED PERSONAL DATA,REDACTED PERSONAL DATA
Tendring DC,http://statistics.data.gov.uk/id/local-authority-district/22UN,Corporate Services,6460 - Career Track,4688 - Career Track Exam Fees,14/01/2014,2112894-1,80.9,REDACTED PERSONAL DATA,REDACTED PERSONAL DATA
Tendring DC,http://statistics.data.gov.uk/id/local-authority-district/22UN,Corporate Services,6460 - Career Track,4688 - Career Track Exam Fees,14/01/2014,2112895-1,80.9,REDACTED PERSONAL DATA,REDACTED PERSONAL DATA
Tendring DC,http://statistics.data.gov.uk/id/local-authority-district/22UN,Corporate Services,6460 - Career Track,4688 - Career Track Exam Fees,14/01/2014,2112896-1,80.9,REDACTED PERSONAL DATA,REDACTED PERSONAL DATA
Tendring DC,http://statistics.data.gov.uk/id/local-authority-district/22UN,Corporate Services,6460 - Career Track,4688 - Career Track Exam Fees,14/01/2014,2112897-1,90,REDACTED PERSONAL DATA,REDACTED PERSONAL DATA
Tendring DC,http://statistics.data.gov.uk/id/local-authority-district/22UN,Corporate Services,6460 - Career Track,4688 - Career Track Exam Fees,14/01/2014,2112898-1,105.6,REDACTED PERSONAL DATA,REDACTED PERSONAL DATA
Tendring DC,http://statistics.data.gov.uk/id/local-authority-district/22UN,Corporate Services,6460 - Career Track,4688 - Career Track Exam Fees,14/01/2014,2112899-1,90,REDACTED PERSONAL DATA,REDACTED PERSONAL DATA
Tendring DC,http://statistics.data.gov.uk/id/local-authority-district/22UN,Corporate Services,6460 - Career Track,4688 - Career Track Exam Fees,14/01/2014,2112900-1,105.6,REDACTED PERSONAL DATA,REDACTED PERSONAL DATA
Tendring DC,http://statistics.data.gov.uk/id/local-authority-district/22UN,Corporate Services,6460 - Career Track,4688 - Career Track Exam Fees,14/01/2014,2112901-1,105.6,REDACTED PERSONAL DATA,REDACTED PERSONAL DATA
Tendring DC,http://statistics.data.gov.uk/id/local-authority-district/22UN,Corporate Services,6460 - Career Track,4688 - Career Track Exam Fees,14/01/2014,2112890-1,48.5,REDACTED PERSONAL DATA,REDACTED PERSONAL DATA
Tendring DC,http://statistics.data.gov.uk/id/local-authority-district/22UN,Corporate Services,6460 - Career Track,4688 - Career Track Exam Fees,14/01/2014,7010661-1,227.5,REDACTED PERSONAL DATA,REDACTED PERSONAL DATA
Tendring DC,http://statistics.data.gov.uk/id/local-authority-district/22UN,Corporate Services,6460 - Career Track,4688 - Career Track Exam Fees,14/01/2014,7010662-1,43.5,REDACTED PERSONAL DATA,REDACTED PERSONAL DATA
Tendring DC,http://statistics.data.gov.uk/id/local-authority-district/22UN,Corporate Services,6460 - Career Track,4688 - Career Track Exam Fees,14/01/2014,7010663-1,43.5,REDACTED PERSONAL DATA,REDACTED PERSONAL DATA
Tendring DC,http://statistics.data.gov.uk/id/local-authority-district/22UN,Corporate Services,6460 - Career Track,4688 - Career Track Exam Fees,14/01/2014,7010664-1,82,REDACTED PERSONAL DATA,REDACTED PERSONAL DATA
Tendring DC,http://statistics.data.gov.uk/id/local-authority-district/22UN,Corporate Services,6460 - Career Track,4688 - Career Track Exam Fees,14/01/2014,7010665-1,43.5,REDACTED PERSONAL DATA,REDACTED PERSONAL DATA
Tendring DC,http://statistics.data.gov.uk/id/local-authority-district/22UN,Corporate Services,6460 - Career Track,4688 - Career Track Exam Fees,14/01/2014,7010666-1,14.5,REDACTED PERSONAL DATA,REDACTED PERSONAL DATA
Tendring DC,http://statistics.data.gov.uk/id/local-authority-district/22UN,Corporate Services,6460 - Career Track,4688 - Career Track Exam Fees,14/01/2014,7010667-1,48.5,REDACTED PERSONAL DATA,REDACTED PERSONAL DATA
Tendring DC,http://statistics.data.gov.uk/id/local-authority-district/22UN,Corporate Services,7720 - Regeneration Projects,5500 - Miscellaneous Expenses,28/01/2014,1057116-1,4213,2101097 - Peter Lockyer Advertising Ltd,PLANNING PRODUCTION CHARGE
Tendring DC,http://statistics.data.gov.uk/id/local-authority-district/22UN,Corporate Services,1760 - IT Direct Service Costs,4753 - Computer - Application Software,28/01/2014,7011242-1,501.93,2101038 - Phoenix Software Limited,PROJ13LIC VISIO LIC
Tendring DC,http://statistics.data.gov.uk/id/local-authority-district/22UN,Corporate Services,C080 - Joint HR and Payroll System,C274 - Purchase of Software,28/01/2014,7011243-1,3415.4,2101038 - Phoenix Software Limited,SQL SERVER
Tendring DC,http://statistics.data.gov.uk/id/local-authority-district/22UN,Corporate Services,1815 - Personnel and Human Resources Issues,4460 - Legal & Professional Expenses,21/01/2014,7010941-1,200,2101079 - Pleass Thompson & Company,PROFESSIONAL FEES
Tendring DC,http://statistics.data.gov.uk/id/local-authority-district/22UN,Corporate Services,1930 - Asset Management Service Unit,4460 - Legal & Professional Expenses,21/01/2014,7011000-1,320,2105829 - Prettys Solicitors,PRETTYS - STARTER UNITS
Tendring DC,http://statistics.data.gov.uk/id/local-authority-district/22UN,Corporate Services,1930 - Asset Management Service Unit,4460 - Legal & Professional Expenses,21/01/2014,7011001-1,208,2105829 - Prettys Solicitors,PRETTYS LAND VALLEY ROAD
Tendring DC,http://statistics.data.gov.uk/id/local-authority-district/22UN,Corporate Services,5140 - Homelessness,4683 - Other Homelessness Expenses,14/01/2014,7010658-1,7.56,2106860 - ProcessFlows UK Ltd,TMS TXT HSG BRS
Tendring DC,http://statistics.data.gov.uk/id/local-authority-district/22UN,Corporate Services,"1580 - Benefits, Revenues and Customer Contact SU",4718 - Fixed Communication Lines,14/01/2014,7010658-2,4.62,2106860 - ProcessFlows UK Ltd,TMS TXT HSG BRS
Tendring DC,http://statistics.data.gov.uk/id/local-authority-district/22UN,Corporate Services,9930 - Loans Fund Balance Sheet,B551 - Loans Maturing Within One Year - HRA,07/01/2014,7800050-0,187500,2101162 - Public Works Loan Board,PWLB Principal HRA
Tendring DC,http://statistics.data.gov.uk/id/local-authority-district/22UN,Corporate Services,5760 - HRA - Capital & Interest Charges,9831 - HRA Interest (formerly Item 8),07/01/2014,7800050-2,84637.5,2101162 - Public Works Loan Board,PWLB Interest HRA
Tendring DC,http://statistics.data.gov.uk/id/local-authority-district/22UN,Corporate Services,9930 - Loans Fund Balance Sheet,B551 - Loans Maturing Within One Year - HRA,22/01/2014,7800094-2,166666.67,2101162 - Public Works Loan Board,PWLB HRA 22/1/14 500800
Tendring DC,http://statistics.data.gov.uk/id/local-authority-district/22UN,Corporate Services,5760 - HRA - Capital & Interest Charges,9831 - HRA Interest (formerly Item 8),22/01/2014,7800094-4,43650,2101162 - Public Works Loan Board,PWLB HRA 22/1/14 500800
Tendring DC,http://statistics.data.gov.uk/id/local-authority-district/22UN,Corporate Services,8901 - Interest Payable and similar charges,7570 - Interest Payments,17/01/2014,7800098-3,5677.96,2101162 - Public Works Loan Board,PWLB GF 17 Jan DD Payment
Tendring DC,http://statistics.data.gov.uk/id/local-authority-district/22UN,Corporate Services,5760 - HRA - Capital & Interest Charges,9831 - HRA Interest (formerly Item 8),15/01/2014,7800105-1,102500,2101162 - Public Works Loan Board,HRA Interest loan 492341
Tendring DC,http://statistics.data.gov.uk/id/local-authority-district/22UN,Corporate Services,1100 - Corporate Director (Corporate Services) and Admin Service Unit,4300 - Printing & Stationery,21/01/2014,7010889-1,45,2113149 - Quality Office Supplies Ltd,QUALITY OFFICE SUPPLIES
Tendring DC,http://statistics.data.gov.uk/id/local-authority-district/22UN,Corporate Services,9900 - General Fund Balance Sheet,B886 - Rail Warrants Allocation Holding Account,07/01/2014,7800046-1,1077,2101174 - R S P Ltd,Rail Warrants
Tendring DC,http://statistics.data.gov.uk/id/local-authority-district/22UN,Corporate Services,7240 - Electoral Registration Expenses,4700 - Postage,14/01/2014,7010751-1,1117.56,2101139 - Royal Mail,ELECTORAL POSTAGE
Tendring DC,http://statistics.data.gov.uk/id/local-authority-district/22UN,Corporate Services,1100 - Corporate Director (Corporate Services) and Admin Service Unit,4300 - Printing & Stationery,21/01/2014,7010890-1,30.45,2101284 - Shaw & Sons Ltd,SHAW & SONS
Tendring DC,http://statistics.data.gov.uk/id/local-authority-district/22UN,Corporate Services,1950 - Transport,3250 - Operational Leases - Transport,14/01/2014,1056887-1,2175.6,2102659 - Siemens Financial Services Ltd,ANNUAL LEASE PAYMENT
Tendring DC,http://statistics.data.gov.uk/id/local-authority-district/22UN,Corporate Services,1950 - Transport,3250 - Operational Leases - Transport,14/01/2014,1056887-2,3384.36,2102659 - Siemens Financial Services Ltd,ANNUAL LEASE PAYMENT
Tendring DC,http://statistics.data.gov.uk/id/local-authority-district/22UN,Corporate Services,1432 - TDC Website,4500 - Consultancy Fees,14/01/2014,1056865-1,860,2101296 - SOCITM Limited,SOCITM
Tendring DC,http://statistics.data.gov.uk/id/local-authority-district/22UN,Corporate Services,1330 - Human Resources Service Unit,5500 - Miscellaneous Expenses,21/01/2014,7010899-1,118.2,2101391 - Studio One Frames,15 VARIOUS FRAMES
Tendring DC,http://statistics.data.gov.uk/id/local-authority-district/22UN,Corporate Services,1800 - Qualification and Other Training,1705 - Training - Other Approved Exps,21/01/2014,7010900-1,151.5,2101391 - Studio One Frames,FRAMES
Tendring DC,http://statistics.data.gov.uk/id/local-authority-district/22UN,Corporate Services,7025 - CDRP Support,4900 - Grants,07/01/2014,1056808-1,42.9,2102088 - Tendring Community Transport,CRUCIAL CREW KEEP SAFE TRANSPORT
Tendring DC,http://statistics.data.gov.uk/id/local-authority-district/22UN,Corporate Services,1100 - Corporate Director (Corporate Services) and Admin Service Unit,1710 - Training - Central Department Budget,14/01/2014,7010750-1,472,2104780 - The Association of Electoral Administrators,ASSOC ELECTORAL ADMINISTRATORS
Tendring DC,http://statistics.data.gov.uk/id/local-authority-district/22UN,Corporate Services,1100 - Corporate Director (Corporate Services) and Admin Service Unit,4880 - Subscriptions Paid,14/01/2014,2112934-1,35,2101451 - The Information Commissioner,ernewal of ero for tdc
Tendring DC,http://statistics.data.gov.uk/id/local-authority-district/22UN,Corporate Services,1100 - Corporate Director (Corporate Services) and Admin Service Unit,4355 - Books & Periodicals,07/01/2014,7700954-1,145,2111580 - Thomson Reuters,SCHOFIELD ELECTION CD R16
Tendring DC,http://statistics.data.gov.uk/id/local-authority-district/22UN,Corporate Services,1100 - Corporate Director (Corporate Services) and Admin Service Unit,4355 - Books & Periodicals,07/01/2014,7700954-2,145,2111580 - Thomson Reuters,SCHOFIELD ELECTION CD R16
Tendring DC,http://statistics.data.gov.uk/id/local-authority-district/22UN,Corporate Services,"1580 - Benefits, Revenues and Customer Contact SU",4716 - Mobile Telephone Costs,30/01/2014,7800074-1,26.65,2112813 - Three,2 x Dongles Dec 13
Tendring DC,http://statistics.data.gov.uk/id/local-authority-district/22UN,Corporate Services,5240 - HRA - Managing Tenancies,5248 - Estate Management Expenses,30/01/2014,7800075-0,13.32,2112813 - Three,Dongles x 3 Jan 14
Tendring DC,http://statistics.data.gov.uk/id/local-authority-district/22UN,Corporate Services,5240 - HRA - Managing Tenancies,5242 - Tenant Relations,30/01/2014,7800075-2,13.32,2112813 - Three,Dongles x 3 Jan 14
Tendring DC,http://statistics.data.gov.uk/id/local-authority-district/22UN,Corporate Services,1760 - IT Direct Service Costs,4715 - Data Communication Charge,30/01/2014,7800075-4,13.33,2112813 - Three,Dongles x 3 Jan 14
Tendring DC,http://statistics.data.gov.uk/id/local-authority-district/22UN,Corporate Services,"1580 - Benefits, Revenues and Customer Contact SU",4716 - Mobile Telephone Costs,30/01/2014,7800076-1,26.65,2112813 - Three,2 x Dongles Jan 14
Tendring DC,http://statistics.data.gov.uk/id/local-authority-district/22UN,Corporate Services,5980 - Playgrounds,2820 - Premises - Insurance Excesses,21/01/2014,1056997-1,1000,REDACTED PERSONAL DATA,REDACTED PERSONAL DATA
Tendring DC,http://statistics.data.gov.uk/id/local-authority-district/22UN,Corporate Services,C350 - Hardware rolling replacement programme,C275 - Hardware,28/01/2014,7011246-1,543.64,2107546 - XMA Limited,HP CLIENT
Tendring DC,http://statistics.data.gov.uk/id/local-authority-district/22UN,Corporate Services,7240 - Electoral Registration Expenses,4400 - Maintenance Under Service Agreements,14/01/2014,7010749-1,1500,2101547 - Xpress Software Solutions Ltd,XPRESS DATA MATCHING
Tendring DC,http://statistics.data.gov.uk/id/local-authority-district/22UN,Life Opportunities,6160 - Princes Theatre,4597 - Hired Services - Payments to Contractors,21/01/2014,7011030-1,50,2100091 - A Warrender,PIANO TUNING JAN 14
Tendring DC,http://statistics.data.gov.uk/id/local-authority-district/22UN,Life Opportunities,5880 - Management Of Sport & Leisure Facilities,4597 - Hired Services - Payments to Contractors,21/01/2014,1056955-1,1050,2113602 - Absolute Asbestos Solutions Limited,ASBESTOS SURVEY D'COURT POOL
Tendring DC,http://statistics.data.gov.uk/id/local-authority-district/22UN,Life Opportunities,H860 - Disabled Adaptations,C200 - Main Contractor,21/01/2014,1056958-1,1425,2108452 - Access Automation Ltd,SUPPLY & INSTALL AUTOMATIC DOOR
Tendring DC,http://statistics.data.gov.uk/id/local-authority-district/22UN,Life Opportunities,1880 - Office Accommodation Expenses,2100 - Building Repairs,07/01/2014,1056758-1,146.5,2101609 - Adcock Refrigeration & Air Conditioning Ltd,AIRCON ALTERATIONS PIER AVE
Tendring DC,http://statistics.data.gov.uk/id/local-authority-district/22UN,Life Opportunities,8520 - Frinton & Walton Swimming Pool,2510 - Water Services - Unmetered,28/01/2014,1057086-1,1409.6,2112518 - Affinity Water Ltd (East Region),FWSP-AFFINITY WATER
Tendring DC,http://statistics.data.gov.uk/id/local-authority-district/22UN,Life Opportunities,1880 - Office Accommodation Expenses,2500 - Water Services - Metered,28/01/2014,1057126-1,74.28,2112518 - Affinity Water Ltd (East Region),CLAY HALL OCT 12 MAR 13
Tendring DC,http://statistics.data.gov.uk/id/local-authority-district/22UN,Life Opportunities,1880 - Office Accommodation Expenses,2520 - Sewerage & Environmental Charges,28/01/2014,1057126-2,120.49,2112518 - Affinity Water Ltd (East Region),CLAY HALL OCT 12 MAR 13
Tendring DC,http://statistics.data.gov.uk/id/local-authority-district/22UN,Life Opportunities,5360 - HRA - Sheltered Units,2500 - Water Services - Metered,28/01/2014,1057134-1,61.68,2112518 - Affinity Water Ltd (East Region),BELMANS WARDEN JUNE-DEC 13
Tendring DC,http://statistics.data.gov.uk/id/local-authority-district/22UN,Life Opportunities,5360 - HRA - Sheltered Units,2520 - Sewerage & Environmental Charges,28/01/2014,1057134-2,85.99,2112518 - Affinity Water Ltd (East Region),BELMANS WARDEN JUNE-DEC 13
Tendring DC,http://statistics.data.gov.uk/id/local-authority-district/22UN,Life Opportunities,5360 - HRA - Sheltered Units,2500 - Water Services - Metered,28/01/2014,1057135-1,20.04,2112518 - Affinity Water Ltd (East Region),BELMANS JUNE-DEC 13
Tendring DC,http://statistics.data.gov.uk/id/local-authority-district/22UN,Life Opportunities,8510 - Dovercourt Swimming Pool & All Weather Facilities,2510 - Water Services - Unmetered,28/01/2014,7011126-1,404.85,2112518 - Affinity Water Ltd (East Region),DOVERCOURT POOL - WATER
Tendring DC,http://statistics.data.gov.uk/id/local-authority-district/22UN,Life Opportunities,8540 - Leisure Centre Clacton,2510 - Water Services - Unmetered,28/01/2014,7011127-1,1265.6,2112518 - Affinity Water Ltd (East Region),DECEMBER
Tendring DC,http://statistics.data.gov.uk/id/local-authority-district/22UN,Life Opportunities,4965 - Local Housing Allowance,4754 - IT Consultancy,21/01/2014,7010961-1,1350,2106864 - Airey Consultancy Services Ltd,PAN ESSEX SUPPORT 2014
Tendring DC,http://statistics.data.gov.uk/id/local-authority-district/22UN,Life Opportunities,H715 - Measures To Combat Condensation,C200 - Main Contractor,07/01/2014,1056746-1,275.5,REDACTED PERSONAL DATA,REDACTED PERSONAL DATA
Tendring DC,http://statistics.data.gov.uk/id/local-authority-district/22UN,Life Opportunities,5480 - HRA - Repair & Maintenance,2017 - Mechanical Equipment /Extract Fans,14/01/2014,2112917-1,591,REDACTED PERSONAL DATA,REDACTED PERSONAL DATA
Tendring DC,http://statistics.data.gov.uk/id/local-authority-district/22UN,Life Opportunities,H715 - Measures To Combat Condensation,C200 - Main Contractor,14/01/2014,2112918-1,593.4,REDACTED PERSONAL DATA,REDACTED PERSONAL DATA
Tendring DC,http://statistics.data.gov.uk/id/local-authority-district/22UN,Life Opportunities,5480 - HRA - Repair & Maintenance,2017 - Mechanical Equipment /Extract Fans,07/01/2014,7010619-1,453.4,REDACTED PERSONAL DATA,REDACTED PERSONAL DATA
Tendring DC,http://statistics.data.gov.uk/id/local-authority-district/22UN,Life Opportunities,H715 - Measures To Combat Condensation,C200 - Main Contractor,21/01/2014,7010868-1,625.5,REDACTED PERSONAL DATA,REDACTED PERSONAL DATA
Tendring DC,http://statistics.data.gov.uk/id/local-authority-district/22UN,Life Opportunities,5480 - HRA - Repair & Maintenance,2017 - Mechanical Equipment /Extract Fans,21/01/2014,7010869-1,275.5,REDACTED PERSONAL DATA,REDACTED PERSONAL DATA
Tendring DC,http://statistics.data.gov.uk/id/local-authority-district/22UN,Life Opportunities,H715 - Measures To Combat Condensation,C200 - Main Contractor,21/01/2014,7010870-1,438.3,REDACTED PERSONAL DATA,REDACTED PERSONAL DATA
Tendring DC,http://statistics.data.gov.uk/id/local-authority-district/22UN,Life Opportunities,5480 - HRA - Repair & Maintenance,2017 - Mechanical Equipment /Extract Fans,21/01/2014,7010928-1,625.5,REDACTED PERSONAL DATA,REDACTED PERSONAL DATA
Tendring DC,http://statistics.data.gov.uk/id/local-authority-district/22UN,Life Opportunities,H715 - Measures To Combat Condensation,C200 - Main Contractor,21/01/2014,7010929-1,689.44,REDACTED PERSONAL DATA,REDACTED PERSONAL DATA
Tendring DC,http://statistics.data.gov.uk/id/local-authority-district/22UN,Life Opportunities,H715 - Measures To Combat Condensation,C200 - Main Contractor,21/01/2014,7010930-1,740,REDACTED PERSONAL DATA,REDACTED PERSONAL DATA
Tendring DC,http://statistics.data.gov.uk/id/local-authority-district/22UN,Life Opportunities,5480 - HRA - Repair & Maintenance,2017 - Mechanical Equipment /Extract Fans,21/01/2014,7010931-1,530.9,REDACTED PERSONAL DATA,REDACTED PERSONAL DATA
Tendring DC,http://statistics.data.gov.uk/id/local-authority-district/22UN,Life Opportunities,H715 - Measures To Combat Condensation,C200 - Main Contractor,21/01/2014,7011011-1,713.8,REDACTED PERSONAL DATA,REDACTED PERSONAL DATA
Tendring DC,http://statistics.data.gov.uk/id/local-authority-district/22UN,Life Opportunities,H715 - Measures To Combat Condensation,C200 - Main Contractor,21/01/2014,7011012-1,275.5,REDACTED PERSONAL DATA,REDACTED PERSONAL DATA
Tendring DC,http://statistics.data.gov.uk/id/local-authority-district/22UN,Life Opportunities,H715 - Measures To Combat Condensation,C200 - Main Contractor,21/01/2014,7011013-1,275.5,REDACTED PERSONAL DATA,REDACTED PERSONAL DATA
Tendring DC,http://statistics.data.gov.uk/id/local-authority-district/22UN,Life Opportunities,H715 - Measures To Combat Condensation,C200 - Main Contractor,21/01/2014,7011014-1,591,REDACTED PERSONAL DATA,REDACTED PERSONAL DATA
Tendring DC,http://statistics.data.gov.uk/id/local-authority-district/22UN,Life Opportunities,H715 - Measures To Combat Condensation,C200 - Main Contractor,07/01/2014,7700966-1,275.5,2110902 - Airtech Environmental Systems,11 LAVENHAM CLOSE
Tendring DC,http://statistics.data.gov.uk/id/local-authority-district/22UN,Life Opportunities,H715 - Measures To Combat Condensation,C200 - Main Contractor,07/01/2014,7700967-1,740,REDACTED PERSONAL DATA,REDACTED PERSONAL DATA
Tendring DC,http://statistics.data.gov.uk/id/local-authority-district/22UN,Life Opportunities,5480 - HRA - Repair & Maintenance,2017 - Mechanical Equipment /Extract Fans,07/01/2014,7700968-1,740,REDACTED PERSONAL DATA,REDACTED PERSONAL DATA
Tendring DC,http://statistics.data.gov.uk/id/local-authority-district/22UN,Life Opportunities,C021 - Mercury Abatement Equipment and Cremators replacement,C200 - Main Contractor,21/01/2014,7010849-1,1250,2113215 - Allman Woodcock Limited,INTERIM FEE 7
Tendring DC,http://statistics.data.gov.uk/id/local-authority-district/22UN,Life Opportunities,6740 - Careline,3060 - Running Costs - Diesel,28/01/2014,7011066-1,525.23,2101825 - Allstar Business Solutions Ltd,FUEL CARDS - CARELINE VANS
Tendring DC,http://statistics.data.gov.uk/id/local-authority-district/22UN,Life Opportunities,5800 - Brightlingsea Sports Centre,5160 - Advertising,14/01/2014,2112908-1,146,2112986 - Allwag Promotions Ltd,allwag ltd
Tendring DC,http://statistics.data.gov.uk/id/local-authority-district/22UN,Life Opportunities,5880 - Management Of Sport & Leisure Facilities,5166 - Marketing and Promotion,14/01/2014,7010763-1,185,2112986 - Allwag Promotions Ltd,PROMO GOODS
Tendring DC,http://statistics.data.gov.uk/id/local-authority-district/22UN,Life Opportunities,5880 - Management Of Sport & Leisure Facilities,5166 - Marketing and Promotion,07/01/2014,7700920-1,255.5,2112986 - Allwag Promotions Ltd,PROMO GOODS
Tendring DC,http://statistics.data.gov.uk/id/local-authority-district/22UN,Life Opportunities,5880 - Management Of Sport & Leisure Facilities,5166 - Marketing and Promotion,07/01/2014,7700921-1,797,2112986 - Allwag Promotions Ltd,PROMO GOODS
Tendring DC,http://statistics.data.gov.uk/id/local-authority-district/22UN,Life Opportunities,5880 - Management Of Sport & Leisure Facilities,5166 - Marketing and Promotion,07/01/2014,7700922-1,605,2112986 - Allwag Promotions Ltd,PROMO GOODS
Tendring DC,http://statistics.data.gov.uk/id/local-authority-district/22UN,Life Opportunities,5880 - Management Of Sport & Leisure Facilities,5166 - Marketing and Promotion,07/01/2014,7700923-1,574,2112986 - Allwag Promotions Ltd,PROMO GOODS
Tendring DC,http://statistics.data.gov.uk/id/local-authority-district/22UN,Life Opportunities,5880 - Management Of Sport & Leisure Facilities,5166 - Marketing and Promotion,07/01/2014,7700924-1,105,2112986 - Allwag Promotions Ltd,PROMO GOODS
Tendring DC,http://statistics.data.gov.uk/id/local-authority-district/22UN,Life Opportunities,5880 - Management Of Sport & Leisure Facilities,5166 - Marketing and Promotion,07/01/2014,7700925-1,105,2112986 - Allwag Promotions Ltd,PROMO GOODS
Tendring DC,http://statistics.data.gov.uk/id/local-authority-district/22UN,Life Opportunities,5880 - Management Of Sport & Leisure Facilities,5166 - Marketing and Promotion,07/01/2014,7700926-1,331.25,2112986 - Allwag Promotions Ltd,PROMO GOODS
Tendring DC,http://statistics.data.gov.uk/id/local-authority-district/22UN,Life Opportunities,5880 - Management Of Sport & Leisure Facilities,5166 - Marketing and Promotion,07/01/2014,7700927-1,1084.5,2112986 - Allwag Promotions Ltd,PROMO GOODS
Tendring DC,http://statistics.data.gov.uk/id/local-authority-district/22UN,Life Opportunities,5880 - Management Of Sport & Leisure Facilities,5166 - Marketing and Promotion,07/01/2014,7700928-1,602,2112986 - Allwag Promotions Ltd,PROMO GOODS
Tendring DC,http://statistics.data.gov.uk/id/local-authority-district/22UN,Life Opportunities,5880 - Management Of Sport & Leisure Facilities,5166 - Marketing and Promotion,07/01/2014,7700929-1,2157,2112986 - Allwag Promotions Ltd,PROMO GOODS
Tendring DC,http://statistics.data.gov.uk/id/local-authority-district/22UN,Life Opportunities,5880 - Management Of Sport & Leisure Facilities,5166 - Marketing and Promotion,07/01/2014,7700930-1,1198,2112986 - Allwag Promotions Ltd,PROMO GOODS
Tendring DC,http://statistics.data.gov.uk/id/local-authority-district/22UN,Life Opportunities,5880 - Management Of Sport & Leisure Facilities,5166 - Marketing and Promotion,07/01/2014,7700931-1,736.5,2112986 - Allwag Promotions Ltd,PROMO GOODS
Tendring DC,http://statistics.data.gov.uk/id/local-authority-district/22UN,Life Opportunities,5880 - Management Of Sport & Leisure Facilities,5166 - Marketing and Promotion,07/01/2014,7700932-1,658,2112986 - Allwag Promotions Ltd,PROMO GOODS
Tendring DC,http://statistics.data.gov.uk/id/local-authority-district/22UN,Life Opportunities,5820 - Harwich Sports Centre,2100 - Building Repairs,14/01/2014,7010753-1,665.96,2105419 - Ambi-Rad Ltd,REPLACED GAS VALVE
Tendring DC,http://statistics.data.gov.uk/id/local-authority-district/22UN,Life Opportunities,"1580 - Benefits, Revenues and Customer Contact SU",4701 - External Courier Services,21/01/2014,1056943-1,23.6,2111631 - Anglia Courier Express (East Anglia) Ltd,COURIER 7-1-14
Tendring DC,http://statistics.data.gov.uk/id/local-authority-district/22UN,Life Opportunities,5860 - Manningtree Sports Centre,4597 - Hired Services - Payments to Contractors,14/01/2014,7010772-1,180,2113500 - Anglia Sports Management Limited,FOOTBALL COACHING DEC 2013
Tendring DC,http://statistics.data.gov.uk/id/local-authority-district/22UN,Life Opportunities,8540 - Leisure Centre Clacton,2100 - Building Repairs,07/01/2014,7700936-1,97,2100096 - Anglia Welding (Fabrications) Co,WELD STEP L/GUARD CHAIR
Tendring DC,http://statistics.data.gov.uk/id/local-authority-district/22UN,Life Opportunities,8520 - Frinton & Walton Swimming Pool,2520 - Sewerage & Environmental Charges,28/01/2014,1057085-1,1833.51,2112315 - Anglian Water Business,FWSP-ANGLIAN WATER
Tendring DC,http://statistics.data.gov.uk/id/local-authority-district/22UN,Life Opportunities,8510 - Dovercourt Swimming Pool & All Weather Facilities,2520 - Sewerage & Environmental Charges,28/01/2014,1057143-1,1590.76,2112315 - Anglian Water Business,SEWERAGE-DOVERCOURT POOL
Tendring DC,http://statistics.data.gov.uk/id/local-authority-district/22UN,Life Opportunities,8540 - Leisure Centre Clacton,2520 - Sewerage & Environmental Charges,28/01/2014,7011210-1,1953.53,2112315 - Anglian Water Business,JULY-DEC
Tendring DC,http://statistics.data.gov.uk/id/local-authority-district/22UN,Life Opportunities,5240 - HRA - Managing Tenancies,6625 - Tenants Compensation Scheme,28/01/2014,7011230-1,150,2100057 - Applebys (Removals) Ltd,PARTIAL DECANT 7/1/14
Tendring DC,http://statistics.data.gov.uk/id/local-authority-district/22UN,Life Opportunities,7560 - Tourism Publications,4668 - Production Expenses,07/01/2014,7700952-1,196.9,2102337 - Archant Regional Ltd,VISIT ESSEX JAN 14 ISSUE
Tendring DC,http://statistics.data.gov.uk/id/local-authority-district/22UN,Life Opportunities,5860 - Manningtree Sports Centre,5311 - General Provisions - Vending,28/01/2014,7011200-1,9,2110110 - Area Vending Services,INGREDIENTS FOR HOT DRINKS VENDING MACHINE
Tendring DC,http://statistics.data.gov.uk/id/local-authority-district/22UN,Life Opportunities,5860 - Manningtree Sports Centre,5311 - General Provisions - Vending,28/01/2014,7011200-2,120,2110110 - Area Vending Services,INGREDIENTS FOR HOT DRINKS VENDING MACHINE
Tendring DC,http://statistics.data.gov.uk/id/local-authority-district/22UN,Life Opportunities,H860 - Disabled Adaptations,C200 - Main Contractor,07/01/2014,1056743-1,1050,REDACTED PERSONAL DATA,REDACTED PERSONAL DATA
Tendring DC,http://statistics.data.gov.uk/id/local-authority-district/22UN,Life Opportunities,H860 - Disabled Adaptations,C200 - Main Contractor,07/01/2014,1056743-2,4078,REDACTED PERSONAL DATA,REDACTED PERSONAL DATA
Tendring DC,http://statistics.data.gov.uk/id/local-authority-district/22UN,Life Opportunities,H860 - Disabled Adaptations,C200 - Main Contractor,28/01/2014,1057023-1,50,REDACTED PERSONAL DATA,REDACTED PERSONAL DATA
Tendring DC,http://statistics.data.gov.uk/id/local-authority-district/22UN,Life Opportunities,H860 - Disabled Adaptations,C200 - Main Contractor,28/01/2014,1057023-2,375,REDACTED PERSONAL DATA,REDACTED PERSONAL DATA
Tendring DC,http://statistics.data.gov.uk/id/local-authority-district/22UN,Life Opportunities,H860 - Disabled Adaptations,C200 - Main Contractor,28/01/2014,1057024-1,1150,REDACTED PERSONAL DATA,REDACTED PERSONAL DATA
Tendring DC,http://statistics.data.gov.uk/id/local-authority-district/22UN,Life Opportunities,H860 - Disabled Adaptations,C200 - Main Contractor,28/01/2014,1057024-2,4306,REDACTED PERSONAL DATA,REDACTED PERSONAL DATA
Tendring DC,http://statistics.data.gov.uk/id/local-authority-district/22UN,Life Opportunities,8520 - Frinton & Walton Swimming Pool,5300 - Resaleable Items,28/01/2014,1057141-1,93.3,2100088 - ASA Merchandising Ltd,FWSP-ASA AWARDS
Tendring DC,http://statistics.data.gov.uk/id/local-authority-district/22UN,Life Opportunities,8520 - Frinton & Walton Swimming Pool,4400 - Maintenance Under Service Agreements,14/01/2014,7010761-1,81.07,2112129 - Autobar Vending Services Ltd,FWSP - AUTOBAR
Tendring DC,http://statistics.data.gov.uk/id/local-authority-district/22UN,Life Opportunities,8510 - Dovercourt Swimming Pool & All Weather Facilities,4400 - Maintenance Under Service Agreements,28/01/2014,7011205-1,126.45,2112129 - Autobar Vending Services Ltd,DOVERCOURT POOL MAINT
Tendring DC,http://statistics.data.gov.uk/id/local-authority-district/22UN,Life Opportunities,6160 - Princes Theatre,4622 - Hired Services - Artistes and Production Companies,28/01/2014,1057082-1,510.27,2108465 - Avalon Promotions Ltd,LEE NELSON
Tendring DC,http://statistics.data.gov.uk/id/local-authority-district/22UN,Life Opportunities,1880 - Office Accommodation Expenses,2100 - Building Repairs,07/01/2014,7010631-1,5.82,2109063 - B&Q,CISTERN LEVER
Tendring DC,http://statistics.data.gov.uk/id/local-authority-district/22UN,Life Opportunities,1242 - Corporate Director (Life Opportunities),1710 - Training - Central Department Budget,28/01/2014,7011125-1,625,2111966 - BACPR Education Consortium,BACPR TRAINING S BOCKHART
Tendring DC,http://statistics.data.gov.uk/id/local-authority-district/22UN,Life Opportunities,5240 - HRA - Managing Tenancies,4312 - Tenancy Stationery,07/01/2014,1056783-1,128.41,2100111 - Banner Business Supplies Ltd,STATIONERY ORDER 16/12/13
Tendring DC,http://statistics.data.gov.uk/id/local-authority-district/22UN,Life Opportunities,1210 - Facilities Management Service Unit,4300 - Printing & Stationery,07/01/2014,1056783-2,10.97,2100111 - Banner Business Supplies Ltd,STATIONERY ORDER 16/12/13
Tendring DC,http://statistics.data.gov.uk/id/local-authority-district/22UN,Life Opportunities,5240 - HRA - Managing Tenancies,4312 - Tenancy Stationery,07/01/2014,1056784-1,5.93,2100111 - Banner Business Supplies Ltd,LIFE OPPS STAMPS
Tendring DC,http://statistics.data.gov.uk/id/local-authority-district/22UN,Life Opportunities,1210 - Facilities Management Service Unit,4300 - Printing & Stationery,07/01/2014,1056785-1,111.48,2100111 - Banner Business Supplies Ltd,FACILITIES STATIONERY 17/12/13
Tendring DC,http://statistics.data.gov.uk/id/local-authority-district/22UN,Life Opportunities,"1580 - Benefits, Revenues and Customer Contact SU",4300 - Printing & Stationery,07/01/2014,1056786-1,33.87,2100111 - Banner Business Supplies Ltd,DAMPER/LABELS/STICKY TAC
Tendring DC,http://statistics.data.gov.uk/id/local-authority-district/22UN,Life Opportunities,1240 - Commercial Management,4300 - Printing & Stationery,21/01/2014,1056962-1,32.45,2100111 - Banner Business Supplies Ltd,STATIONERY ORDER
Tendring DC,http://statistics.data.gov.uk/id/local-authority-district/22UN,Life Opportunities,"1580 - Benefits, Revenues and Customer Contact SU",4300 - Printing & Stationery,21/01/2014,1056962-2,0.59,2100111 - Banner Business Supplies Ltd,STATIONERY ORDER
Tendring DC,http://statistics.data.gov.uk/id/local-authority-district/22UN,Life Opportunities,5860 - Manningtree Sports Centre,4300 - Printing & Stationery,07/01/2014,7010590-1,50.12,2100111 - Banner Business Supplies Ltd,STATIONARY
Tendring DC,http://statistics.data.gov.uk/id/local-authority-district/22UN,Life Opportunities,5240 - HRA - Managing Tenancies,4312 - Tenancy Stationery,14/01/2014,7010796-1,41.2,2100111 - Banner Business Supplies Ltd,STAPLES/NOTEBOOK/PAPER
Tendring DC,http://statistics.data.gov.uk/id/local-authority-district/22UN,Life Opportunities,1565 - Careline / CCTV Service Unit,4300 - Printing & Stationery,14/01/2014,7010801-1,51.65,2100111 - Banner Business Supplies Ltd,BANNER - ENVELOPES AND PENS
Tendring DC,http://statistics.data.gov.uk/id/local-authority-district/22UN,Life Opportunities,8540 - Leisure Centre Clacton,4300 - Printing & Stationery,28/01/2014,7011057-1,84.99,2100111 - Banner Business Supplies Ltd,STATIONERY
Tendring DC,http://statistics.data.gov.uk/id/local-authority-district/22UN,Life Opportunities,5240 - HRA - Managing Tenancies,5242 - Tenant Relations,28/01/2014,7011058-1,3.31,2100111 - Banner Business Supplies Ltd,STATIONERY ORDER 13.01.14
Tendring DC,http://statistics.data.gov.uk/id/local-authority-district/22UN,Life Opportunities,"1580 - Benefits, Revenues and Customer Contact SU",4300 - Printing & Stationery,28/01/2014,7011058-2,0.83,2100111 - Banner Business Supplies Ltd,STATIONERY ORDER 13.01.14
Tendring DC,http://statistics.data.gov.uk/id/local-authority-district/22UN,Life Opportunities,6160 - Princes Theatre,4105 - Bar/Catering Expenses,28/01/2014,7011058-3,20.54,2100111 - Banner Business Supplies Ltd,STATIONERY ORDER 13.01.14
Tendring DC,http://statistics.data.gov.uk/id/local-authority-district/22UN,Life Opportunities,5360 - HRA - Sheltered Units,4300 - Printing & Stationery,28/01/2014,7011058-4,18.06,2100111 - Banner Business Supplies Ltd,STATIONERY ORDER 13.01.14
Tendring DC,http://statistics.data.gov.uk/id/local-authority-district/22UN,Life Opportunities,1240 - Commercial Management,4300 - Printing & Stationery,28/01/2014,7011058-5,26.04,2100111 - Banner Business Supplies Ltd,STATIONERY ORDER 13.01.14
Tendring DC,http://statistics.data.gov.uk/id/local-authority-district/22UN,Life Opportunities,"1580 - Benefits, Revenues and Customer Contact SU",4300 - Printing & Stationery,28/01/2014,7011059-1,184.93,2100111 - Banner Business Supplies Ltd,VARIOUS STATIONERY
Tendring DC,http://statistics.data.gov.uk/id/local-authority-district/22UN,Life Opportunities,5140 - Homelessness,4683 - Other Homelessness Expenses,21/01/2014,1056913-1,700,REDACTED PERSONAL DATA,REDACTED PERSONAL DATA
Tendring DC,http://statistics.data.gov.uk/id/local-authority-district/22UN,Life Opportunities,5140 - Homelessness,4683 - Other Homelessness Expenses,28/01/2014,1057064-1,695,REDACTED PERSONAL DATA,REDACTED PERSONAL DATA
Tendring DC,http://statistics.data.gov.uk/id/local-authority-district/22UN,Life Opportunities,8540 - Leisure Centre Clacton,2300 - Energy Costs - Fuel Oil,14/01/2014,7010771-1,1373.4,2112681 - BIRLEM Ltd,2100 LITRES
Tendring DC,http://statistics.data.gov.uk/id/local-authority-district/22UN,Life Opportunities,1880 - Office Accommodation Expenses,2300 - Energy Costs - Fuel Oil,21/01/2014,7010837-1,1411.78,2112681 - BIRLEM Ltd,BIRLEM OIL WEELEY DEC 13
Tendring DC,http://statistics.data.gov.uk/id/local-authority-district/22UN,Life Opportunities,8540 - Leisure Centre Clacton,2300 - Energy Costs - Fuel Oil,21/01/2014,7011021-1,1006.5,2112681 - BIRLEM Ltd,1500 LT
Tendring DC,http://statistics.data.gov.uk/id/local-authority-district/22UN,Life Opportunities,8540 - Leisure Centre Clacton,2300 - Energy Costs - Fuel Oil,28/01/2014,7011120-1,1882.27,2112681 - BIRLEM Ltd,2801 LT
Tendring DC,http://statistics.data.gov.uk/id/local-authority-district/22UN,Life Opportunities,8540 - Leisure Centre Clacton,2300 - Energy Costs - Fuel Oil,07/01/2014,7700934-1,1588.8,2112681 - BIRLEM Ltd,2400 LT
Tendring DC,http://statistics.data.gov.uk/id/local-authority-district/22UN,Life Opportunities,H805 - Major Refurbishment of Heating,C200 - Main Contractor,21/01/2014,1057013-1,25225.35,2100155 - Blue Flame (Colchester) Ltd,HEATING REFURBISHMENT & UPGRADE CONTRACT
Tendring DC,http://statistics.data.gov.uk/id/local-authority-district/22UN,Life Opportunities,6160 - Princes Theatre,4105 - Bar/Catering Expenses,14/01/2014,2112914-1,99.17,2113279 - Booker,goods for theatre bar
Tendring DC,http://statistics.data.gov.uk/id/local-authority-district/22UN,Life Opportunities,6160 - Princes Theatre,4105 - Bar/Catering Expenses,14/01/2014,2112915-1,2.49,2113279 - Booker,goods for theatre bar
Tendring DC,http://statistics.data.gov.uk/id/local-authority-district/22UN,Life Opportunities,6160 - Princes Theatre,4105 - Bar/Catering Expenses,14/01/2014,2112916-1,107.92,2113279 - Booker,goods for theatre bar
Tendring DC,http://statistics.data.gov.uk/id/local-authority-district/22UN,Life Opportunities,6160 - Princes Theatre,4105 - Bar/Catering Expenses,14/01/2014,7010677-1,144.55,2113279 - Booker,CONFECTIONARY FOR THEATRE
Tendring DC,http://statistics.data.gov.uk/id/local-authority-district/22UN,Life Opportunities,6160 - Princes Theatre,4105 - Bar/Catering Expenses,14/01/2014,7010677-2,8.71,2113279 - Booker,CONFECTIONARY FOR THEATRE
Tendring DC,http://statistics.data.gov.uk/id/local-authority-district/22UN,Life Opportunities,6160 - Princes Theatre,4105 - Bar/Catering Expenses,14/01/2014,7010678-1,10.5,2113279 - Booker,CONFECTIONARY FOR THEATRE
Tendring DC,http://statistics.data.gov.uk/id/local-authority-district/22UN,Life Opportunities,"1580 - Benefits, Revenues and Customer Contact SU",4753 - Computer - Application Software,14/01/2014,1056540-1,-429.08,2100116 - Bottomline Technologies,CR 277 DAYS FROM 15-11-13
Tendring DC,http://statistics.data.gov.uk/id/local-authority-district/22UN,Life Opportunities,"1580 - Benefits, Revenues and Customer Contact SU",4753 - Computer - Application Software,14/01/2014,7010683-1,1100,2100116 - Bottomline Technologies,TRANSFORM PROFESSIONAL SERVICES
Tendring DC,http://statistics.data.gov.uk/id/local-authority-district/22UN,Life Opportunities,"1580 - Benefits, Revenues and Customer Contact SU",4753 - Computer - Application Software,28/01/2014,7011253-1,3615,2100116 - Bottomline Technologies,TRANSFORM UNLIMITED OUTPUT PACK
Tendring DC,http://statistics.data.gov.uk/id/local-authority-district/22UN,Life Opportunities,6160 - Princes Theatre,4300 - Printing & Stationery,07/01/2014,7010608-1,599.1,2111425 - BPS Ltd,15000 THERMAL TICKETS
Tendring DC,http://statistics.data.gov.uk/id/local-authority-district/22UN,Life Opportunities,5240 - HRA - Managing Tenancies,5248 - Estate Management Expenses,14/01/2014,7010676-1,105.33,2102522 - Brightlingsea Town Council,APRIL - AUG 2013
Tendring DC,http://statistics.data.gov.uk/id/local-authority-district/22UN,Life Opportunities,5240 - HRA - Managing Tenancies,5248 - Estate Management Expenses,14/01/2014,7010682-1,78.99,2102522 - Brightlingsea Town Council,SEP - DEC 2013
Tendring DC,http://statistics.data.gov.uk/id/local-authority-district/22UN,Life Opportunities,1880 - Office Accommodation Expenses,2304 - Energy Costs - Electricity,07/01/2014,1056752-1,40.87,2106318 - British Gas Business,CLAY HALL SEPT-NOV
Tendring DC,http://statistics.data.gov.uk/id/local-authority-district/22UN,Life Opportunities,1880 - Office Accommodation Expenses,2304 - Energy Costs - Electricity,07/01/2014,1056752-2,50,2106318 - British Gas Business,CLAY HALL SEPT-NOV
Tendring DC,http://statistics.data.gov.uk/id/local-authority-district/22UN,Life Opportunities,5340 - HRA - Communal Central Heating,2304 - Energy Costs - Electricity,21/01/2014,1056972-1,1820.1,2100197 - British Gas Trading Ltd,Dec-13
Tendring DC,http://statistics.data.gov.uk/id/local-authority-district/22UN,Life Opportunities,5360 - HRA - Sheltered Units,2304 - Energy Costs - Electricity,21/01/2014,1056972-2,101.89,2100197 - British Gas Trading Ltd,Dec-13
Tendring DC,http://statistics.data.gov.uk/id/local-authority-district/22UN,Life Opportunities,5440 - HRA - Communal Electricity,2304 - Energy Costs - Electricity,21/01/2014,1056972-3,8984.59,2100197 - British Gas Trading Ltd,Dec-13
Tendring DC,http://statistics.data.gov.uk/id/local-authority-district/22UN,Life Opportunities,7600 - Tourist Information Centres,2304 - Energy Costs - Electricity,21/01/2014,1056972-4,12.06,2100197 - British Gas Trading Ltd,Dec-13
Tendring DC,http://statistics.data.gov.uk/id/local-authority-district/22UN,Life Opportunities,5440 - HRA - Communal Electricity,2304 - Energy Costs - Electricity,21/01/2014,1056972-5,2983.61,2100197 - British Gas Trading Ltd,Dec-13
Tendring DC,http://statistics.data.gov.uk/id/local-authority-district/22UN,Life Opportunities,5820 - Harwich Sports Centre,2304 - Energy Costs - Electricity,21/01/2014,1056972-6,587.23,2100197 - British Gas Trading Ltd,Dec-13
Tendring DC,http://statistics.data.gov.uk/id/local-authority-district/22UN,Life Opportunities,5860 - Manningtree Sports Centre,2304 - Energy Costs - Electricity,21/01/2014,1056972-7,697.27,2100197 - British Gas Trading Ltd,Dec-13
Tendring DC,http://statistics.data.gov.uk/id/local-authority-district/22UN,Life Opportunities,5440 - HRA - Communal Electricity,2304 - Energy Costs - Electricity,21/01/2014,1056972-8,-229.98,2100197 - British Gas Trading Ltd,Dec-13
Tendring DC,http://statistics.data.gov.uk/id/local-authority-district/22UN,Life Opportunities,5440 - HRA - Communal Electricity,2304 - Energy Costs - Electricity,21/01/2014,1056972-9,-2570.37,2100197 - British Gas Trading Ltd,Dec-13
Tendring DC,http://statistics.data.gov.uk/id/local-authority-district/22UN,Life Opportunities,1880 - Office Accommodation Expenses,2304 - Energy Costs - Electricity,21/01/2014,1056973-1,1013.97,2100197 - British Gas Trading Ltd,ELECTRICITY NOV 13
Tendring DC,http://statistics.data.gov.uk/id/local-authority-district/22UN,Life Opportunities,1880 - Office Accommodation Expenses,2304 - Energy Costs - Electricity,21/01/2014,1056973-2,154.25,2100197 - British Gas Trading Ltd,ELECTRICITY NOV 13
Tendring DC,http://statistics.data.gov.uk/id/local-authority-district/22UN,Life Opportunities,1860 - Depots General,2304 - Energy Costs - Electricity,21/01/2014,1056973-3,578.34,2100197 - British Gas Trading Ltd,ELECTRICITY NOV 13
Tendring DC,http://statistics.data.gov.uk/id/local-authority-district/22UN,Life Opportunities,1860 - Depots General,2304 - Energy Costs - Electricity,21/01/2014,1056973-4,73.91,2100197 - British Gas Trading Ltd,ELECTRICITY NOV 13
Tendring DC,http://statistics.data.gov.uk/id/local-authority-district/22UN,Life Opportunities,1880 - Office Accommodation Expenses,2304 - Energy Costs - Electricity,21/01/2014,1056973-5,83.82,2100197 - British Gas Trading Ltd,ELECTRICITY NOV 13
Tendring DC,http://statistics.data.gov.uk/id/local-authority-district/22UN,Life Opportunities,1880 - Office Accommodation Expenses,2304 - Energy Costs - Electricity,21/01/2014,1056973-6,289.39,2100197 - British Gas Trading Ltd,ELECTRICITY NOV 13
Tendring DC,http://statistics.data.gov.uk/id/local-authority-district/22UN,Life Opportunities,1880 - Office Accommodation Expenses,2304 - Energy Costs - Electricity,21/01/2014,1056973-7,1686.84,2100197 - British Gas Trading Ltd,ELECTRICITY NOV 13
Tendring DC,http://statistics.data.gov.uk/id/local-authority-district/22UN,Life Opportunities,1860 - Depots General,2304 - Energy Costs - Electricity,21/01/2014,1056973-8,465.96,2100197 - British Gas Trading Ltd,ELECTRICITY NOV 13
Tendring DC,http://statistics.data.gov.uk/id/local-authority-district/22UN,Life Opportunities,1880 - Office Accommodation Expenses,2304 - Energy Costs - Electricity,21/01/2014,1056973-9,898.32,2100197 - British Gas Trading Ltd,ELECTRICITY NOV 13
Tendring DC,http://statistics.data.gov.uk/id/local-authority-district/22UN,Life Opportunities,6740 - Careline,2304 - Energy Costs - Electricity,21/01/2014,1056974-1,134.41,2100197 - British Gas Trading Ltd,B GAS ELECTRICITY
Tendring DC,http://statistics.data.gov.uk/id/local-authority-district/22UN,Life Opportunities,H805 - Major Refurbishment of Heating,C200 - Main Contractor,07/01/2014,7010599-1,622.33,REDACTED PERSONAL DATA,REDACTED PERSONAL DATA
Tendring DC,http://statistics.data.gov.uk/id/local-authority-district/22UN,Life Opportunities,H805 - Major Refurbishment of Heating,C200 - Main Contractor,07/01/2014,7010600-1,622.33,REDACTED PERSONAL DATA,REDACTED PERSONAL DATA
Tendring DC,http://statistics.data.gov.uk/id/local-authority-district/22UN,Life Opportunities,8520 - Frinton & Walton Swimming Pool,2304 - Energy Costs - Electricity,28/01/2014,7011062-1,235.05,2100197 - British Gas Trading Ltd,FWSP -  BRITISH GAS
Tendring DC,http://statistics.data.gov.uk/id/local-authority-district/22UN,Life Opportunities,7000 - CCTV,4718 - Fixed Communication Lines,07/01/2014,7010615-1,46.89,2100168 - British Telecommunications plc,BT 506035
Tendring DC,http://statistics.data.gov.uk/id/local-authority-district/22UN,Life Opportunities,7000 - CCTV,4718 - Fixed Communication Lines,07/01/2014,7010616-1,44.7,2100168 - British Telecommunications plc,BT 506689
Tendring DC,http://statistics.data.gov.uk/id/local-authority-district/22UN,Life Opportunities,6740 - Careline,4710 - Telephones - Charges,07/01/2014,7010617-1,115.78,2100168 - British Telecommunications plc,
Tendring DC,http://statistics.data.gov.uk/id/local-authority-district/22UN,Life Opportunities,6740 - Careline,4710 - Telephones - Charges,07/01/2014,7010617-2,13.5,2100168 - British Telecommunications plc,
Tendring DC,http://statistics.data.gov.uk/id/local-authority-district/22UN,Life Opportunities,6740 - Careline,4710 - Telephones - Charges,07/01/2014,7010618-1,222.94,2100168 - British Telecommunications plc,BT 422990
Tendring DC,http://statistics.data.gov.uk/id/local-authority-district/22UN,Life Opportunities,8520 - Frinton & Walton Swimming Pool,2700 - Cleaning Materials,28/01/2014,1057142-1,37.08,2101624 - Bunzl,FWSP-BUNZL
Tendring DC,http://statistics.data.gov.uk/id/local-authority-district/22UN,Life Opportunities,5360 - HRA - Sheltered Units,2700 - Cleaning Materials,14/01/2014,2112902-1,39.8,2101624 - Bunzl,cleaning order kate daniels
Tendring DC,http://statistics.data.gov.uk/id/local-authority-district/22UN,Life Opportunities,6160 - Princes Theatre,4040 - Equipment & Tools,14/01/2014,7010747-1,29.58,2101624 - Bunzl,THEATRE CLEANING PRODUCTS
Tendring DC,http://statistics.data.gov.uk/id/local-authority-district/22UN,Life Opportunities,8520 - Frinton & Walton Swimming Pool,2700 - Cleaning Materials,14/01/2014,7010755-1,159.92,2101624 - Bunzl,BUNZL - FWSP
Tendring DC,http://statistics.data.gov.uk/id/local-authority-district/22UN,Life Opportunities,8520 - Frinton & Walton Swimming Pool,2700 - Cleaning Materials,14/01/2014,7010756-1,25.62,2101624 - Bunzl,FWSP - BUNZL
Tendring DC,http://statistics.data.gov.uk/id/local-authority-district/22UN,Life Opportunities,8150 - Office Cleaning,4080 - Materials & Consumables,21/01/2014,7010830-1,522.6,2101624 - Bunzl,BUNZL CLEANING ORDER
Tendring DC,http://statistics.data.gov.uk/id/local-authority-district/22UN,Life Opportunities,6160 - Princes Theatre,4040 - Equipment & Tools,21/01/2014,7010836-1,17.42,2101624 - Bunzl,HAND TOWELS THEATRE
Tendring DC,http://statistics.data.gov.uk/id/local-authority-district/22UN,Life Opportunities,5800 - Brightlingsea Sports Centre,4000 - Furniture,21/01/2014,7010857-1,97.7,2101624 - Bunzl,BUNZL
Tendring DC,http://statistics.data.gov.uk/id/local-authority-district/22UN,Life Opportunities,8510 - Dovercourt Swimming Pool & All Weather Facilities,2700 - Cleaning Materials,21/01/2014,7010860-1,16.44,2101624 - Bunzl,DOVERCOURT POOL - CLEANING
Tendring DC,http://statistics.data.gov.uk/id/local-authority-district/22UN,Life Opportunities,8540 - Leisure Centre Clacton,2700 - Cleaning Materials,21/01/2014,7010862-1,267.97,2101624 - Bunzl,CLEANING MATERIALS
Tendring DC,http://statistics.data.gov.uk/id/local-authority-district/22UN,Life Opportunities,5360 - HRA - Sheltered Units,2700 - Cleaning Materials,28/01/2014,7011116-1,390.18,2101624 - Bunzl,SHELTERED CLEANING ORDER
Tendring DC,http://statistics.data.gov.uk/id/local-authority-district/22UN,Life Opportunities,8540 - Leisure Centre Clacton,2100 - Building Repairs,14/01/2014,7010767-1,88.93,2100280 - C H Lindsey & Son Ltd,LEAKING PUMP SEALS
Tendring DC,http://statistics.data.gov.uk/id/local-authority-district/22UN,Life Opportunities,8510 - Dovercourt Swimming Pool & All Weather Facilities,4400 - Maintenance Under Service Agreements,28/01/2014,7011206-1,336.31,2100280 - C H Lindsey & Son Ltd,DOVERCOURT POOL REPAIRS
Tendring DC,http://statistics.data.gov.uk/id/local-authority-district/22UN,Life Opportunities,8540 - Leisure Centre Clacton,2100 - Building Repairs,28/01/2014,7011211-1,87.63,2100280 - C H Lindsey & Son Ltd,ISOLATE SHOWER
Tendring DC,http://statistics.data.gov.uk/id/local-authority-district/22UN,Life Opportunities,5880 - Management Of Sport & Leisure Facilities,2100 - Building Repairs,07/01/2014,7700946-1,5604,2100280 - C H Lindsey & Son Ltd,LINDSEY BOILER REPLACE
Tendring DC,http://statistics.data.gov.uk/id/local-authority-district/22UN,Life Opportunities,6160 - Princes Theatre,4105 - Bar/Catering Expenses,07/01/2014,7010633-1,311,2112687 - Cabana Soft Drinks (Essex) Ltd,SOFT DRINKS THEATRE BAR
Tendring DC,http://statistics.data.gov.uk/id/local-authority-district/22UN,Life Opportunities,8520 - Frinton & Walton Swimming Pool,4400 - Maintenance Under Service Agreements,21/01/2014,7010859-1,108.15,2100281 - Cannon Hygiene,FWSP - CANNON
Tendring DC,http://statistics.data.gov.uk/id/local-authority-district/22UN,Life Opportunities,8540 - Leisure Centre Clacton,4400 - Maintenance Under Service Agreements,21/01/2014,7010865-1,333.18,2100281 - Cannon Hygiene,JAN - MARCH
Tendring DC,http://statistics.data.gov.uk/id/local-authority-district/22UN,Life Opportunities,8510 - Dovercourt Swimming Pool & All Weather Facilities,4400 - Maintenance Under Service Agreements,21/01/2014,7010879-1,38.49,2100281 - Cannon Hygiene,DOVERCOURT POOL - WASTE DISPOSAL
Tendring DC,http://statistics.data.gov.uk/id/local-authority-district/22UN,Life Opportunities,5860 - Manningtree Sports Centre,4400 - Maintenance Under Service Agreements,28/01/2014,7011110-1,14.55,2100281 - Cannon Hygiene,SANITARY DISPOSAL UNITS X 4 JAN-DEC 2014
Tendring DC,http://statistics.data.gov.uk/id/local-authority-district/22UN,Life Opportunities,1650 - Building Services Service Unit,4400 - Maintenance Under Service Agreements,21/01/2014,7010832-1,1.94,2100291 - Canon (UK) Ltd,1/12/13 - 31/12/13 COPIES
Tendring DC,http://statistics.data.gov.uk/id/local-authority-district/22UN,Life Opportunities,1650 - Building Services Service Unit,4400 - Maintenance Under Service Agreements,21/01/2014,7010833-1,48.6,2100291 - Canon (UK) Ltd,01/02/14 - 28/02/14 SERVICE
Tendring DC,http://statistics.data.gov.uk/id/local-authority-district/22UN,Life Opportunities,"1580 - Benefits, Revenues and Customer Contact SU",3312 - Car Allowances - Car Hire,14/01/2014,7010807-1,22.5,2104746 - CC Hire,COURT SECTION
Tendring DC,http://statistics.data.gov.uk/id/local-authority-district/22UN,Life Opportunities,"1580 - Benefits, Revenues and Customer Contact SU",3062 - Running Costs - Petrol,14/01/2014,7010807-2,5.42,2104746 - CC Hire,COURT SECTION
Tendring DC,http://statistics.data.gov.uk/id/local-authority-district/22UN,Life Opportunities,7600 - Tourist Information Centres,4200 - Clothing & Uniforms,07/01/2014,1056723-1,-39.2,2100205 - Chelmsford Safety Supplies Ltd,X2 LADIES FLEECES CREDITED
Tendring DC,http://statistics.data.gov.uk/id/local-authority-district/22UN,Life Opportunities,5360 - HRA - Sheltered Units,2700 - Cleaning Materials,07/01/2014,1056748-1,8.5,2100205 - Chelmsford Safety Supplies Ltd,DUSK MASKS SHELTERED
Tendring DC,http://statistics.data.gov.uk/id/local-authority-district/22UN,Life Opportunities,1230 - Strategic Housing & Needs Management,4040 - Equipment & Tools,28/01/2014,1057093-1,61.25,2100205 - Chelmsford Safety Supplies Ltd,DISPOSABLE HOODED COVERALL
Tendring DC,http://statistics.data.gov.uk/id/local-authority-district/22UN,Life Opportunities,7600 - Tourist Information Centres,4200 - Clothing & Uniforms,07/01/2014,7010601-1,58.8,2100205 - Chelmsford Safety Supplies Ltd,X 3 LADIES FLEECE
Tendring DC,http://statistics.data.gov.uk/id/local-authority-district/22UN,Life Opportunities,5220 - HRA - Policy & Management,5253 - HRA Health & Safety Expenses,21/01/2014,7010843-1,64.2,2100205 - Chelmsford Safety Supplies Ltd,WORKWEAR BUILDING SURVEYOR
Tendring DC,http://statistics.data.gov.uk/id/local-authority-district/22UN,Life Opportunities,7000 - CCTV,4400 - Maintenance Under Service Agreements,14/01/2014,7010643-1,1824,2113346 - Chroma Vision Ltd,CCTV MAINTENANCE 01/14 - 03/14
Tendring DC,http://statistics.data.gov.uk/id/local-authority-district/22UN,Life Opportunities,5880 - Management Of Sport & Leisure Facilities,5166 - Marketing and Promotion,21/01/2014,7010867-1,195,2100246 - Chronicle Publishing Services,HALF PAGE AD B/SEA / WIV DEC
Tendring DC,http://statistics.data.gov.uk/id/local-authority-district/22UN,Life Opportunities,5480 - HRA - Repair & Maintenance,2073 - Smoke Alarm Service/Testing,21/01/2014,1056956-1,164.25,2100237 - Cirrus Communication Systems Ltd,SMOKE ALARM GREENFIELDS
Tendring DC,http://statistics.data.gov.uk/id/local-authority-district/22UN,Life Opportunities,6160 - Princes Theatre,5308 - Ice Cream,28/01/2014,1057083-1,170.4,2113508 - Clacton Ice Cream Ltd,ICE CREAMS FOR THEATRE
Tendring DC,http://statistics.data.gov.uk/id/local-authority-district/22UN,Life Opportunities,6160 - Princes Theatre,5308 - Ice Cream,14/01/2014,7010636-1,438.95,2113508 - Clacton Ice Cream Ltd,ICE CREAM FOR THEATRE
Tendring DC,http://statistics.data.gov.uk/id/local-authority-district/22UN,Life Opportunities,6160 - Princes Theatre,5308 - Ice Cream,14/01/2014,7010637-1,694.45,2113508 - Clacton Ice Cream Ltd,ICE CREAM FOR THEATRE
Tendring DC,http://statistics.data.gov.uk/id/local-authority-district/22UN,Life Opportunities,6160 - Princes Theatre,5308 - Ice Cream,14/01/2014,7010638-1,99.58,2113508 - Clacton Ice Cream Ltd,ICE CREAM FOR THEATRE
Tendring DC,http://statistics.data.gov.uk/id/local-authority-district/22UN,Life Opportunities,6160 - Princes Theatre,5308 - Ice Cream,14/01/2014,7010639-1,84.03,2113508 - Clacton Ice Cream Ltd,ICE CREAM FOR THEATRE
Tendring DC,http://statistics.data.gov.uk/id/local-authority-district/22UN,Life Opportunities,6160 - Princes Theatre,5308 - Ice Cream,14/01/2014,7010640-1,694.23,2113508 - Clacton Ice Cream Ltd,ICE CREAM FOR THEATRE
Tendring DC,http://statistics.data.gov.uk/id/local-authority-district/22UN,Life Opportunities,6160 - Princes Theatre,5308 - Ice Cream,28/01/2014,7011082-1,108.57,2113508 - Clacton Ice Cream Ltd,ICE CREAM FOR THEATRE
Tendring DC,http://statistics.data.gov.uk/id/local-authority-district/22UN,Life Opportunities,5960 - Recreation Grounds,9272 - Pitch Bookings,07/01/2014,1056806-1,67.5,2111591 - Clacton Sports Club,
Tendring DC,http://statistics.data.gov.uk/id/local-authority-district/22UN,Life Opportunities,6355 - Community Activity Network,4597 - Hired Services - Payments to Contractors,28/01/2014,7011167-1,314,2102453 - Clacton Swimming Club,SPORTIVATE AQUA FUN
Tendring DC,http://statistics.data.gov.uk/id/local-authority-district/22UN,Life Opportunities,1880 - Office Accommodation Expenses,2100 - Building Repairs,28/01/2014,1057094-1,28.74,2100258 - Clacton Tile Centre Ltd,TOILET SEAT & FIXINGS
Tendring DC,http://statistics.data.gov.uk/id/local-authority-district/22UN,Life Opportunities,"1580 - Benefits, Revenues and Customer Contact SU",4462 - Bailiffs and Tracing Agent Fees re debt recovery,07/01/2014,1056782-1,4065.35,2100381 - Collect Services Ltd,VAT ON FEES COLLECTED CT
Tendring DC,http://statistics.data.gov.uk/id/local-authority-district/22UN,Life Opportunities,"1580 - Benefits, Revenues and Customer Contact SU",4462 - Bailiffs and Tracing Agent Fees re debt recovery,07/01/2014,1056782-2,-4065.35,2100381 - Collect Services Ltd,VAT ON FEES COLLECTED CT
Tendring DC,http://statistics.data.gov.uk/id/local-authority-district/22UN,Life Opportunities,"1580 - Benefits, Revenues and Customer Contact SU",4462 - Bailiffs and Tracing Agent Fees re debt recovery,07/01/2014,1056782-3,51.25,2100381 - Collect Services Ltd,VAT ON FEES COLLECTED CT
Tendring DC,http://statistics.data.gov.uk/id/local-authority-district/22UN,Life Opportunities,"1580 - Benefits, Revenues and Customer Contact SU",4462 - Bailiffs and Tracing Agent Fees re debt recovery,07/01/2014,1056782-4,-13.44,2100381 - Collect Services Ltd,VAT ON FEES COLLECTED CT
Tendring DC,http://statistics.data.gov.uk/id/local-authority-district/22UN,Life Opportunities,"1580 - Benefits, Revenues and Customer Contact SU",4462 - Bailiffs and Tracing Agent Fees re debt recovery,07/01/2014,1056782-5,13.44,2100381 - Collect Services Ltd,VAT ON FEES COLLECTED CT
Tendring DC,http://statistics.data.gov.uk/id/local-authority-district/22UN,Life Opportunities,"1580 - Benefits, Revenues and Customer Contact SU",4462 - Bailiffs and Tracing Agent Fees re debt recovery,21/01/2014,1056970-1,2711.3,2100381 - Collect Services Ltd,VAT ON FEES collected ct
Tendring DC,http://statistics.data.gov.uk/id/local-authority-district/22UN,Life Opportunities,"1580 - Benefits, Revenues and Customer Contact SU",4462 - Bailiffs and Tracing Agent Fees re debt recovery,21/01/2014,1056970-2,-2711.3,2100381 - Collect Services Ltd,VAT ON FEES collected ct
Tendring DC,http://statistics.data.gov.uk/id/local-authority-district/22UN,Life Opportunities,"1580 - Benefits, Revenues and Customer Contact SU",4462 - Bailiffs and Tracing Agent Fees re debt recovery,21/01/2014,1056970-3,5,2100381 - Collect Services Ltd,VAT ON FEES collected ct
Tendring DC,http://statistics.data.gov.uk/id/local-authority-district/22UN,Life Opportunities,"1580 - Benefits, Revenues and Customer Contact SU",4462 - Bailiffs and Tracing Agent Fees re debt recovery,21/01/2014,1056970-4,-5,2100381 - Collect Services Ltd,VAT ON FEES collected ct
Tendring DC,http://statistics.data.gov.uk/id/local-authority-district/22UN,Life Opportunities,"1580 - Benefits, Revenues and Customer Contact SU",4462 - Bailiffs and Tracing Agent Fees re debt recovery,28/01/2014,1057090-1,2678.16,2100381 - Collect Services Ltd,VAT ON FEES COLLECTED CT
Tendring DC,http://statistics.data.gov.uk/id/local-authority-district/22UN,Life Opportunities,"1580 - Benefits, Revenues and Customer Contact SU",4462 - Bailiffs and Tracing Agent Fees re debt recovery,28/01/2014,1057090-2,-2678.16,2100381 - Collect Services Ltd,VAT ON FEES COLLECTED CT
Tendring DC,http://statistics.data.gov.uk/id/local-authority-district/22UN,Life Opportunities,"1580 - Benefits, Revenues and Customer Contact SU",5189 - External Debt Recovery Commission,21/01/2014,7010822-1,253.01,2100381 - Collect Services Ltd,COLLECT SERVICES
Tendring DC,http://statistics.data.gov.uk/id/local-authority-district/22UN,Life Opportunities,"1580 - Benefits, Revenues and Customer Contact SU",4462 - Bailiffs and Tracing Agent Fees re debt recovery,21/01/2014,7010823-1,2632.79,2100381 - Collect Services Ltd,VAT ON FEES COLLECTED CT
Tendring DC,http://statistics.data.gov.uk/id/local-authority-district/22UN,Life Opportunities,"1580 - Benefits, Revenues and Customer Contact SU",4462 - Bailiffs and Tracing Agent Fees re debt recovery,21/01/2014,7010823-2,-2632.79,2100381 - Collect Services Ltd,VAT ON FEES COLLECTED CT
Tendring DC,http://statistics.data.gov.uk/id/local-authority-district/22UN,Life Opportunities,"1580 - Benefits, Revenues and Customer Contact SU",4462 - Bailiffs and Tracing Agent Fees re debt recovery,21/01/2014,7010823-3,5,2100381 - Collect Services Ltd,VAT ON FEES COLLECTED CT
Tendring DC,http://statistics.data.gov.uk/id/local-authority-district/22UN,Life Opportunities,"1580 - Benefits, Revenues and Customer Contact SU",4462 - Bailiffs and Tracing Agent Fees re debt recovery,21/01/2014,7010823-4,-5,2100381 - Collect Services Ltd,VAT ON FEES COLLECTED CT
Tendring DC,http://statistics.data.gov.uk/id/local-authority-district/22UN,Life Opportunities,"1580 - Benefits, Revenues and Customer Contact SU",4462 - Bailiffs and Tracing Agent Fees re debt recovery,21/01/2014,7010823-5,10.61,2100381 - Collect Services Ltd,VAT ON FEES COLLECTED CT
Tendring DC,http://statistics.data.gov.uk/id/local-authority-district/22UN,Life Opportunities,"1580 - Benefits, Revenues and Customer Contact SU",4462 - Bailiffs and Tracing Agent Fees re debt recovery,21/01/2014,7010823-6,-10.61,2100381 - Collect Services Ltd,VAT ON FEES COLLECTED CT
Tendring DC,http://statistics.data.gov.uk/id/local-authority-district/22UN,Life Opportunities,"1580 - Benefits, Revenues and Customer Contact SU",4462 - Bailiffs and Tracing Agent Fees re debt recovery,21/01/2014,7010824-1,823.25,2100381 - Collect Services Ltd,VAT ON FEES COLLECTED NNDR
Tendring DC,http://statistics.data.gov.uk/id/local-authority-district/22UN,Life Opportunities,"1580 - Benefits, Revenues and Customer Contact SU",4462 - Bailiffs and Tracing Agent Fees re debt recovery,21/01/2014,7010824-2,-823.25,2100381 - Collect Services Ltd,VAT ON FEES COLLECTED NNDR
Tendring DC,http://statistics.data.gov.uk/id/local-authority-district/22UN,Life Opportunities,"1580 - Benefits, Revenues and Customer Contact SU",4462 - Bailiffs and Tracing Agent Fees re debt recovery,21/01/2014,7010825-1,630,2100381 - Collect Services Ltd,VAT ON FEES COLLECTED NNDR
Tendring DC,http://statistics.data.gov.uk/id/local-authority-district/22UN,Life Opportunities,"1580 - Benefits, Revenues and Customer Contact SU",4462 - Bailiffs and Tracing Agent Fees re debt recovery,21/01/2014,7010825-2,-630,2100381 - Collect Services Ltd,VAT ON FEES COLLECTED NNDR
Tendring DC,http://statistics.data.gov.uk/id/local-authority-district/22UN,Life Opportunities,"1580 - Benefits, Revenues and Customer Contact SU",4462 - Bailiffs and Tracing Agent Fees re debt recovery,21/01/2014,7010826-1,3678.53,2100381 - Collect Services Ltd,VAT ON FEES COLLECTED CT
Tendring DC,http://statistics.data.gov.uk/id/local-authority-district/22UN,Life Opportunities,"1580 - Benefits, Revenues and Customer Contact SU",4462 - Bailiffs and Tracing Agent Fees re debt recovery,21/01/2014,7010826-2,-3678.53,2100381 - Collect Services Ltd,VAT ON FEES COLLECTED CT
Tendring DC,http://statistics.data.gov.uk/id/local-authority-district/22UN,Life Opportunities,"1580 - Benefits, Revenues and Customer Contact SU",4462 - Bailiffs and Tracing Agent Fees re debt recovery,21/01/2014,7010826-3,13.47,2100381 - Collect Services Ltd,VAT ON FEES COLLECTED CT
Tendring DC,http://statistics.data.gov.uk/id/local-authority-district/22UN,Life Opportunities,"1580 - Benefits, Revenues and Customer Contact SU",4462 - Bailiffs and Tracing Agent Fees re debt recovery,21/01/2014,7010826-4,-13.47,2100381 - Collect Services Ltd,VAT ON FEES COLLECTED CT
Tendring DC,http://statistics.data.gov.uk/id/local-authority-district/22UN,Life Opportunities,"1580 - Benefits, Revenues and Customer Contact SU",4462 - Bailiffs and Tracing Agent Fees re debt recovery,21/01/2014,7010826-5,10,2100381 - Collect Services Ltd,VAT ON FEES COLLECTED CT
Tendring DC,http://statistics.data.gov.uk/id/local-authority-district/22UN,Life Opportunities,"1580 - Benefits, Revenues and Customer Contact SU",4462 - Bailiffs and Tracing Agent Fees re debt recovery,21/01/2014,7010826-6,-10,2100381 - Collect Services Ltd,VAT ON FEES COLLECTED CT
Tendring DC,http://statistics.data.gov.uk/id/local-authority-district/22UN,Life Opportunities,"1580 - Benefits, Revenues and Customer Contact SU",4462 - Bailiffs and Tracing Agent Fees re debt recovery,21/01/2014,7010826-7,12.25,2100381 - Collect Services Ltd,VAT ON FEES COLLECTED CT
Tendring DC,http://statistics.data.gov.uk/id/local-authority-district/22UN,Life Opportunities,"1580 - Benefits, Revenues and Customer Contact SU",4462 - Bailiffs and Tracing Agent Fees re debt recovery,21/01/2014,7010826-8,0.27,2100381 - Collect Services Ltd,VAT ON FEES COLLECTED CT
Tendring DC,http://statistics.data.gov.uk/id/local-authority-district/22UN,Life Opportunities,"1580 - Benefits, Revenues and Customer Contact SU",4462 - Bailiffs and Tracing Agent Fees re debt recovery,28/01/2014,7011228-1,36,2100381 - Collect Services Ltd,VAT ON FEES COLLECTED
Tendring DC,http://statistics.data.gov.uk/id/local-authority-district/22UN,Life Opportunities,"1580 - Benefits, Revenues and Customer Contact SU",4462 - Bailiffs and Tracing Agent Fees re debt recovery,28/01/2014,7011228-2,-36,2100381 - Collect Services Ltd,VAT ON FEES COLLECTED
Tendring DC,http://statistics.data.gov.uk/id/local-authority-district/22UN,Life Opportunities,9900 - General Fund Balance Sheet,B863 - Bailiff Payments Holding Account,07/01/2014,1056794-1,2979.3,REDACTED COMMERCIAL CONFIDENTIALITY,REDACTED COMMERCIAL CONFIDENTIALITY
Tendring DC,http://statistics.data.gov.uk/id/local-authority-district/22UN,Life Opportunities,9900 - General Fund Balance Sheet,B863 - Bailiff Payments Holding Account,21/01/2014,1057001-1,3954,REDACTED COMMERCIAL CONFIDENTIALITY,REDACTED COMMERCIAL CONFIDENTIALITY
Tendring DC,http://statistics.data.gov.uk/id/local-authority-district/22UN,Life Opportunities,9900 - General Fund Balance Sheet,B863 - Bailiff Payments Holding Account,28/01/2014,1057176-1,1772,REDACTED COMMERCIAL CONFIDENTIALITY,REDACTED COMMERCIAL CONFIDENTIALITY
Tendring DC,http://statistics.data.gov.uk/id/local-authority-district/22UN,Life Opportunities,5240 - HRA - Managing Tenancies,5248 - Estate Management Expenses,21/01/2014,1056949-1,55,REDACTED PERSONAL DATA,REDACTED PERSONAL DATA
Tendring DC,http://statistics.data.gov.uk/id/local-authority-district/22UN,Life Opportunities,5140 - Homelessness,4683 - Other Homelessness Expenses,21/01/2014,1056921-1,550,REDACTED PERSONAL DATA,REDACTED PERSONAL DATA
Tendring DC,http://statistics.data.gov.uk/id/local-authority-district/22UN,Life Opportunities,1242 - Corporate Director (Life Opportunities),1710 - Training - Central Department Budget,07/01/2014,7010625-1,295,REDACTED PERSONAL DATA,REDACTED PERSONAL DATA
Tendring DC,http://statistics.data.gov.uk/id/local-authority-district/22UN,Life Opportunities,1242 - Corporate Director (Life Opportunities),1710 - Training - Central Department Budget,07/01/2014,7010626-1,295,REDACTED PERSONAL DATA,REDACTED PERSONAL DATA
Tendring DC,http://statistics.data.gov.uk/id/local-authority-district/22UN,Life Opportunities,6355 - Community Activity Network,4597 - Hired Services - Payments to Contractors,14/01/2014,7010762-1,677,2112705 - Continental Sports Ltd,GYMNASTICS EQUIPMENT
Tendring DC,http://statistics.data.gov.uk/id/local-authority-district/22UN,Life Opportunities,H920 - Disabled Facilities Grants,C400 - Grant payments,14/01/2014,2112930-1,2476.85,REDACTED PERSONAL DATA,REDACTED PERSONAL DATA
Tendring DC,http://statistics.data.gov.uk/id/local-authority-district/22UN,Life Opportunities,8540 - Leisure Centre Clacton,2100 - Building Repairs,07/01/2014,7010556-1,82.04,2100314 - Cooper & Brome (Plumbing & Heating) Ltd,LEAK ON TOILET
Tendring DC,http://statistics.data.gov.uk/id/local-authority-district/22UN,Life Opportunities,5340 - HRA - Communal Central Heating,2308 - Energy Costs - Gas (Including LPG),21/01/2014,1056965-1,8988.08,2104620 - Corona Energy Retail 4 Limited,Dec-13
Tendring DC,http://statistics.data.gov.uk/id/local-authority-district/22UN,Life Opportunities,1860 - Depots General,2308 - Energy Costs - Gas (Including LPG),21/01/2014,1056966-1,267.56,2104620 - Corona Energy Retail 4 Limited,CORONA ENERGY NOV 13
Tendring DC,http://statistics.data.gov.uk/id/local-authority-district/22UN,Life Opportunities,1880 - Office Accommodation Expenses,2308 - Energy Costs - Gas (Including LPG),21/01/2014,1056966-2,60.42,2104620 - Corona Energy Retail 4 Limited,CORONA ENERGY NOV 13
Tendring DC,http://statistics.data.gov.uk/id/local-authority-district/22UN,Life Opportunities,1880 - Office Accommodation Expenses,2308 - Energy Costs - Gas (Including LPG),21/01/2014,1056966-3,173.18,2104620 - Corona Energy Retail 4 Limited,CORONA ENERGY NOV 13
Tendring DC,http://statistics.data.gov.uk/id/local-authority-district/22UN,Life Opportunities,1880 - Office Accommodation Expenses,2308 - Energy Costs - Gas (Including LPG),21/01/2014,1056966-4,39.65,2104620 - Corona Energy Retail 4 Limited,CORONA ENERGY NOV 13
Tendring DC,http://statistics.data.gov.uk/id/local-authority-district/22UN,Life Opportunities,1880 - Office Accommodation Expenses,2308 - Energy Costs - Gas (Including LPG),21/01/2014,1056966-5,1453.47,2104620 - Corona Energy Retail 4 Limited,CORONA ENERGY NOV 13
Tendring DC,http://statistics.data.gov.uk/id/local-authority-district/22UN,Life Opportunities,6160 - Princes Theatre,2308 - Energy Costs - Gas (Including LPG),21/01/2014,1056966-6,161.5,2104620 - Corona Energy Retail 4 Limited,CORONA ENERGY NOV 13
Tendring DC,http://statistics.data.gov.uk/id/local-authority-district/22UN,Life Opportunities,8520 - Frinton & Walton Swimming Pool,2308 - Energy Costs - Gas (Including LPG),21/01/2014,7010858-1,3913.13,2104620 - Corona Energy Retail 4 Limited,FWSP - CORONA ENERGY
Tendring DC,http://statistics.data.gov.uk/id/local-authority-district/22UN,Life Opportunities,8510 - Dovercourt Swimming Pool & All Weather Facilities,2308 - Energy Costs - Gas (Including LPG),21/01/2014,7010876-1,2755.6,2104620 - Corona Energy Retail 4 Limited,GAS - DOVERCOURT POOL
Tendring DC,http://statistics.data.gov.uk/id/local-authority-district/22UN,Life Opportunities,8540 - Leisure Centre Clacton,2308 - Energy Costs - Gas (Including LPG),28/01/2014,7011121-1,3549.96,2104620 - Corona Energy Retail 4 Limited,DECEMBER
Tendring DC,http://statistics.data.gov.uk/id/local-authority-district/22UN,Life Opportunities,5240 - HRA - Managing Tenancies,5242 - Tenant Relations,07/01/2014,7700977-1,48,2104177 - Corporate Document Services Ltd,BLOW THE WHISTLE - DESIGN ONLY
Tendring DC,http://statistics.data.gov.uk/id/local-authority-district/22UN,Life Opportunities,5140 - Homelessness,4683 - Other Homelessness Expenses,14/01/2014,1056844-1,35,REDACTED PERSONAL DATA,REDACTED PERSONAL DATA
Tendring DC,http://statistics.data.gov.uk/id/local-authority-district/22UN,Life Opportunities,5140 - Homelessness,4683 - Other Homelessness Expenses,14/01/2014,1056847-1,825,REDACTED PERSONAL DATA,REDACTED PERSONAL DATA
Tendring DC,http://statistics.data.gov.uk/id/local-authority-district/22UN,Life Opportunities,5140 - Homelessness,4683 - Other Homelessness Expenses,21/01/2014,1056915-1,795,REDACTED PERSONAL DATA,REDACTED PERSONAL DATA
Tendring DC,http://statistics.data.gov.uk/id/local-authority-district/22UN,Life Opportunities,5140 - Homelessness,4683 - Other Homelessness Expenses,28/01/2014,1057057-1,447.36,REDACTED PERSONAL DATA,REDACTED PERSONAL DATA
Tendring DC,http://statistics.data.gov.uk/id/local-authority-district/22UN,Life Opportunities,5140 - Homelessness,4683 - Other Homelessness Expenses,14/01/2014,1056846-1,600,REDACTED PERSONAL DATA,REDACTED PERSONAL DATA
Tendring DC,http://statistics.data.gov.uk/id/local-authority-district/22UN,Life Opportunities,8510 - Dovercourt Swimming Pool & All Weather Facilities,2100 - Building Repairs,21/01/2014,7010877-1,40,2100183 - CR Services,DOVERCOURT POOL - REPAIRS
Tendring DC,http://statistics.data.gov.uk/id/local-authority-district/22UN,Life Opportunities,8520 - Frinton & Walton Swimming Pool,2100 - Building Repairs,28/01/2014,7011141-1,154.5,2100183 - CR Services,FWSP - CR SERVICES
Tendring DC,http://statistics.data.gov.uk/id/local-authority-district/22UN,Life Opportunities,H860 - Disabled Adaptations,C200 - Main Contractor,28/01/2014,1057031-1,984,2100386 - D A Cant Ltd,43 TANNER CLOSE
Tendring DC,http://statistics.data.gov.uk/id/local-authority-district/22UN,Life Opportunities,H860 - Disabled Adaptations,C200 - Main Contractor,28/01/2014,1057032-1,5220,REDACTED PERSONAL DATA,REDACTED PERSONAL DATA
Tendring DC,http://statistics.data.gov.uk/id/local-authority-district/22UN,Life Opportunities,5360 - HRA - Sheltered Units,4710 - Telephones - Charges,14/01/2014,1056869-1,302.97,2106704 - Daisy Communications Ltd,DAISY BILL-DECEMBER
Tendring DC,http://statistics.data.gov.uk/id/local-authority-district/22UN,Life Opportunities,5360 - HRA - Sheltered Units,4710 - Telephones - Charges,28/01/2014,2112962-1,65.97,2106704 - Daisy Communications Ltd,daisy bill - dec 13
Tendring DC,http://statistics.data.gov.uk/id/local-authority-district/22UN,Life Opportunities,6160 - Princes Theatre,4597 - Hired Services - Payments to Contractors,14/01/2014,7010684-1,13.8,2100397 - Danes of Colchester Ltd,DRY CLEANING THEATRE
Tendring DC,http://statistics.data.gov.uk/id/local-authority-district/22UN,Life Opportunities,6160 - Princes Theatre,4597 - Hired Services - Payments to Contractors,14/01/2014,7010685-1,11.04,2100397 - Danes of Colchester Ltd,DRY CLEANING THEATRE
Tendring DC,http://statistics.data.gov.uk/id/local-authority-district/22UN,Life Opportunities,6420 - Cost Of Council Tax Collection,4597 - Hired Services - Payments to Contractors,28/01/2014,1057091-1,2714,2110767 - Datatank Ltd,DATATANK
Tendring DC,http://statistics.data.gov.uk/id/local-authority-district/22UN,Life Opportunities,8540 - Leisure Centre Clacton,9275 - Lifestyles Plus - DD,21/01/2014,1056923-1,12.5,REDACTED PERSONAL DATA,REDACTED PERSONAL DATA
Tendring DC,http://statistics.data.gov.uk/id/local-authority-district/22UN,Life Opportunities,5820 - Harwich Sports Centre,2100 - Building Repairs,14/01/2014,7010786-1,60,2100359 - Derek Taylor Engineering,GOAL REPAIR
Tendring DC,http://statistics.data.gov.uk/id/local-authority-district/22UN,Life Opportunities,H920 - Disabled Facilities Grants,C400 - Grant payments,21/01/2014,1056922-1,1640,REDACTED PERSONAL DATA,REDACTED PERSONAL DATA
Tendring DC,http://statistics.data.gov.uk/id/local-authority-district/22UN,Life Opportunities,5480 - HRA - Repair & Maintenance,2067 - Other Minor Equipment  Servicing (Hoists Etc),21/01/2014,7010944-1,300.3,2100490 - DORMA UK Ltd - Service Division,BELMANS COURT
Tendring DC,http://statistics.data.gov.uk/id/local-authority-district/22UN,Life Opportunities,5820 - Harwich Sports Centre,4597 - Hired Services - Payments to Contractors,07/01/2014,7700947-1,75,2112824 - Dynamic Stability,PILATES CLASS
Tendring DC,http://statistics.data.gov.uk/id/local-authority-district/22UN,Life Opportunities,5860 - Manningtree Sports Centre,4597 - Hired Services - Payments to Contractors,07/01/2014,7700949-1,75,2112824 - Dynamic Stability,PILATES CLASSES
Tendring DC,http://statistics.data.gov.uk/id/local-authority-district/22UN,Life Opportunities,5480 - HRA - Repair & Maintenance,2304 - Energy Costs - Electricity,07/01/2014,1056753-1,8.09,2107521 - E.On,29 MH VOID 07/11/13
Tendring DC,http://statistics.data.gov.uk/id/local-authority-district/22UN,Life Opportunities,6740 - Careline,2304 - Energy Costs - Electricity,14/01/2014,1056870-1,33.51,2107521 - E.On,EON-OCTOBER-DEC 13
Tendring DC,http://statistics.data.gov.uk/id/local-authority-district/22UN,Life Opportunities,5360 - HRA - Sheltered Units,2304 - Energy Costs - Electricity,28/01/2014,1057123-1,25.39,2107521 - E.On,TV AMPS FRINTON
Tendring DC,http://statistics.data.gov.uk/id/local-authority-district/22UN,Life Opportunities,5480 - HRA - Repair & Maintenance,2304 - Energy Costs - Electricity,28/01/2014,1057132-1,34.91,REDACTED PERSONAL DATA,REDACTED PERSONAL DATA
Tendring DC,http://statistics.data.gov.uk/id/local-authority-district/22UN,Life Opportunities,5480 - HRA - Repair & Maintenance,2304 - Energy Costs - Electricity,28/01/2014,1057132-2,-1.26,REDACTED PERSONAL DATA,REDACTED PERSONAL DATA
Tendring DC,http://statistics.data.gov.uk/id/local-authority-district/22UN,Life Opportunities,5480 - HRA - Repair & Maintenance,2304 - Energy Costs - Electricity,28/01/2014,1057133-1,44.03,REDACTED PERSONAL DATA,REDACTED PERSONAL DATA
Tendring DC,http://statistics.data.gov.uk/id/local-authority-district/22UN,Life Opportunities,5480 - HRA - Repair & Maintenance,2304 - Energy Costs - Electricity,21/01/2014,7010845-1,4,REDACTED PERSONAL DATA,REDACTED PERSONAL DATA
Tendring DC,http://statistics.data.gov.uk/id/local-authority-district/22UN,Life Opportunities,H810 - Electrical Re-wiring,C200 - Main Contractor,14/01/2014,1056855-1,8468.24,2110229 - East Coast Electrical Contractors Ltd,1ST APPLICATION ON PAYMENT
Tendring DC,http://statistics.data.gov.uk/id/local-authority-district/22UN,Life Opportunities,5480 - HRA - Repair & Maintenance,2071 - Electric Installation Testing,14/01/2014,1056855-2,800,2110229 - East Coast Electrical Contractors Ltd,1ST APPLICATION ON PAYMENT
Tendring DC,http://statistics.data.gov.uk/id/local-authority-district/22UN,Life Opportunities,H810 - Electrical Re-wiring,C200 - Main Contractor,14/01/2014,1056856-1,4221,2110229 - East Coast Electrical Contractors Ltd,25-32 GROVE AVE
Tendring DC,http://statistics.data.gov.uk/id/local-authority-district/22UN,Life Opportunities,H810 - Electrical Re-wiring,C200 - Main Contractor,21/01/2014,7010846-1,5901.25,2110229 - East Coast Electrical Contractors Ltd,1ST VALUATION
Tendring DC,http://statistics.data.gov.uk/id/local-authority-district/22UN,Life Opportunities,H810 - Electrical Re-wiring,C200 - Main Contractor,21/01/2014,7010847-1,575.72,2110229 - East Coast Electrical Contractors Ltd,"UPGRADE OF LIGHTING CHURCH STR, CURRENTS LANE, WEST STR"
Tendring DC,http://statistics.data.gov.uk/id/local-authority-district/22UN,Life Opportunities,H810 - Electrical Re-wiring,C200 - Main Contractor,21/01/2014,7010848-1,1009.47,2110229 - East Coast Electrical Contractors Ltd,"UPGRADE LIGHTING ST NICHOLAS COURT, WHITE HART COURT"
Tendring DC,http://statistics.data.gov.uk/id/local-authority-district/22UN,Life Opportunities,H825 - Refurbishment of Door Entry Systems,C200 - Main Contractor,21/01/2014,7010943-1,11776.53,2110229 - East Coast Electrical Contractors Ltd,"CURRENTS LANE, WEST STR, CHURCH STR"
Tendring DC,http://statistics.data.gov.uk/id/local-authority-district/22UN,Life Opportunities,8540 - Leisure Centre Clacton,4081 - Chemicals,14/01/2014,7010732-1,141.5,2100433 - East Essex Pool Care,TEST TABLETS
Tendring DC,http://statistics.data.gov.uk/id/local-authority-district/22UN,Life Opportunities,8540 - Leisure Centre Clacton,4081 - Chemicals,14/01/2014,7010733-1,631.95,2100433 - East Essex Pool Care,POOL CHEMICALS
Tendring DC,http://statistics.data.gov.uk/id/local-authority-district/22UN,Life Opportunities,8540 - Leisure Centre Clacton,4081 - Chemicals,14/01/2014,7010734-1,205.4,2100433 - East Essex Pool Care,SPA CHEMICALS
Tendring DC,http://statistics.data.gov.uk/id/local-authority-district/22UN,Life Opportunities,8540 - Leisure Centre Clacton,4081 - Chemicals,14/01/2014,7010735-1,487.75,2100433 - East Essex Pool Care,POOL CHEMICALS
Tendring DC,http://statistics.data.gov.uk/id/local-authority-district/22UN,Life Opportunities,8540 - Leisure Centre Clacton,4081 - Chemicals,14/01/2014,7010736-1,414,2100433 - East Essex Pool Care,POOL CHEMICALS
Tendring DC,http://statistics.data.gov.uk/id/local-authority-district/22UN,Life Opportunities,8540 - Leisure Centre Clacton,4081 - Chemicals,14/01/2014,7010737-1,38.5,2100433 - East Essex Pool Care,SPA CHEMICALS
Tendring DC,http://statistics.data.gov.uk/id/local-authority-district/22UN,Life Opportunities,8540 - Leisure Centre Clacton,4081 - Chemicals,14/01/2014,7010738-1,457.51,2100433 - East Essex Pool Care,POOL CHEMICALS
Tendring DC,http://statistics.data.gov.uk/id/local-authority-district/22UN,Life Opportunities,8540 - Leisure Centre Clacton,4081 - Chemicals,14/01/2014,7010739-1,52.5,2100433 - East Essex Pool Care,TEST TABLETS
Tendring DC,http://statistics.data.gov.uk/id/local-authority-district/22UN,Life Opportunities,8540 - Leisure Centre Clacton,4081 - Chemicals,14/01/2014,7010740-1,38.5,2100433 - East Essex Pool Care,SPA CHEMICALS
Tendring DC,http://statistics.data.gov.uk/id/local-authority-district/22UN,Life Opportunities,8540 - Leisure Centre Clacton,4081 - Chemicals,14/01/2014,7010741-1,38.5,2100433 - East Essex Pool Care,SPA CHEMICALS
Tendring DC,http://statistics.data.gov.uk/id/local-authority-district/22UN,Life Opportunities,8540 - Leisure Centre Clacton,4081 - Chemicals,14/01/2014,7010742-1,450,2100433 - East Essex Pool Care,POOL CHEMICALS
Tendring DC,http://statistics.data.gov.uk/id/local-authority-district/22UN,Life Opportunities,8540 - Leisure Centre Clacton,4081 - Chemicals,14/01/2014,7010743-1,549,2100433 - East Essex Pool Care,POOL CHEMICALS
Tendring DC,http://statistics.data.gov.uk/id/local-authority-district/22UN,Life Opportunities,8540 - Leisure Centre Clacton,4081 - Chemicals,14/01/2014,7010744-1,200.9,2100433 - East Essex Pool Care,SPA CHEMICALS
Tendring DC,http://statistics.data.gov.uk/id/local-authority-district/22UN,Life Opportunities,8530 - Brightlingsea Swimming Pool,4081 - Chemicals,14/01/2014,7010745-1,164.5,2100433 - East Essex Pool Care,POOL CHEMICALS BSP
Tendring DC,http://statistics.data.gov.uk/id/local-authority-district/22UN,Life Opportunities,8530 - Brightlingsea Swimming Pool,4081 - Chemicals,14/01/2014,7010746-1,506.75,2100433 - East Essex Pool Care,POOL CHEMICALS BSP
Tendring DC,http://statistics.data.gov.uk/id/local-authority-district/22UN,Life Opportunities,1880 - Office Accommodation Expenses,2304 - Energy Costs - Electricity,21/01/2014,1056947-1,5770.25,2105146 - EDF Energy 1 Ltd,TOWN HALL 1/12-31/12/13
Tendring DC,http://statistics.data.gov.uk/id/local-authority-district/22UN,Life Opportunities,8540 - Leisure Centre Clacton,2304 - Energy Costs - Electricity,21/01/2014,7010880-1,7744.98,2105146 - EDF Energy 1 Ltd,DECEMBER
Tendring DC,http://statistics.data.gov.uk/id/local-authority-district/22UN,Life Opportunities,8510 - Dovercourt Swimming Pool & All Weather Facilities,2304 - Energy Costs - Electricity,21/01/2014,7010881-1,3044.29,2105146 - EDF Energy 1 Ltd,DOVERCOURT POOL - ELEC
Tendring DC,http://statistics.data.gov.uk/id/local-authority-district/22UN,Life Opportunities,H860 - Disabled Adaptations,C200 - Main Contractor,28/01/2014,7011189-1,2150,REDACTED PERSONAL DATA,REDACTED PERSONAL DATA
Tendring DC,http://statistics.data.gov.uk/id/local-authority-district/22UN,Life Opportunities,5480 - HRA - Repair & Maintenance,2304 - Energy Costs - Electricity,07/01/2014,7010602-1,16.5,2107644 - Eon,7 6F VOID
Tendring DC,http://statistics.data.gov.uk/id/local-authority-district/22UN,Life Opportunities,5140 - Homelessness,4680 - Bed & Breakfast Accommodation,07/01/2014,7700978-1,35,2105123 - Esplanade Hotel,T BLANEY 16/12/13 1 NIGHT
Tendring DC,http://statistics.data.gov.uk/id/local-authority-district/22UN,Life Opportunities,6480 - Emergency Planning,4597 - Hired Services - Payments to Contractors,07/01/2014,1056760-1,230,2100459 - Essex Fire Authority,FUNDING MULTI PTNSHIP
Tendring DC,http://statistics.data.gov.uk/id/local-authority-district/22UN,Life Opportunities,8540 - Leisure Centre Clacton,2100 - Building Repairs,21/01/2014,7010874-1,593.55,2111548 - Essex Lift Services Ltd,LIFT REPAIR
Tendring DC,http://statistics.data.gov.uk/id/local-authority-district/22UN,Life Opportunities,5480 - HRA - Repair & Maintenance,2059 - Fire Fighting Equipment Servicing,28/01/2014,1057087-1,207.9,2100531 - Euro-Fire Ltd,GROOM HOUSE
Tendring DC,http://statistics.data.gov.uk/id/local-authority-district/22UN,Life Opportunities,5480 - HRA - Repair & Maintenance,2059 - Fire Fighting Equipment Servicing,28/01/2014,1057088-1,147.05,2100531 - Euro-Fire Ltd,ST MARYS COURT
Tendring DC,http://statistics.data.gov.uk/id/local-authority-district/22UN,Life Opportunities,5260 - HRA - Rent Collection And Accounting,4757 - IT External Charges,28/01/2014,7011072-1,361,2100503 - Ferret Information Systems Ltd,FERRET 01/06/14 - 01/06/16
Tendring DC,http://statistics.data.gov.uk/id/local-authority-district/22UN,Life Opportunities,5480 - HRA - Repair & Maintenance,2058 - Fire Alarms Repairs,28/01/2014,1057089-1,260,2108583 - Firesite,HONEYCROFT
Tendring DC,http://statistics.data.gov.uk/id/local-authority-district/22UN,Life Opportunities,5480 - HRA - Repair & Maintenance,2058 - Fire Alarms Repairs,21/01/2014,7010927-1,50,2108583 - Firesite,SPENDELLS HOUSE
Tendring DC,http://statistics.data.gov.uk/id/local-authority-district/22UN,Life Opportunities,5480 - HRA - Repair & Maintenance,2058 - Fire Alarms Repairs,07/01/2014,7700969-1,50,2108583 - Firesite,GROOM HOUSE
Tendring DC,http://statistics.data.gov.uk/id/local-authority-district/22UN,Life Opportunities,5480 - HRA - Repair & Maintenance,2058 - Fire Alarms Repairs,07/01/2014,7700970-1,120,2108583 - Firesite,CROOKED ELMS
Tendring DC,http://statistics.data.gov.uk/id/local-authority-district/22UN,Life Opportunities,5480 - HRA - Repair & Maintenance,2057 - Fire Alarms Servicing,07/01/2014,7700971-1,135,2108583 - Firesite,FIRESITE
Tendring DC,http://statistics.data.gov.uk/id/local-authority-district/22UN,Life Opportunities,5480 - HRA - Repair & Maintenance,2057 - Fire Alarms Servicing,07/01/2014,7700972-1,150,2108583 - Firesite,GREENFIELDS
Tendring DC,http://statistics.data.gov.uk/id/local-authority-district/22UN,Life Opportunities,7600 - Tourist Information Centres,9356 - Commission Sales,14/01/2014,2112949-1,1640.5,2103743 - First Essex Buses Ltd,first essex buses dec 13
Tendring DC,http://statistics.data.gov.uk/id/local-authority-district/22UN,Life Opportunities,7600 - Tourist Information Centres,9356 - Commission Sales,14/01/2014,2112949-2,-164.05,2103743 - First Essex Buses Ltd,first essex buses dec 13
Tendring DC,http://statistics.data.gov.uk/id/local-authority-district/22UN,Life Opportunities,5820 - Harwich Sports Centre,1700 - Training - Courses,28/01/2014,7011145-1,95,2107351 - Frinton Training Services Ltd,FIRST AID COURSE - LIZ CHITTY
Tendring DC,http://statistics.data.gov.uk/id/local-authority-district/22UN,Life Opportunities,5480 - HRA - Repair & Maintenance,2089 - Sewer Repairs,21/01/2014,7010951-1,115,REDACTED PERSONAL DATA,REDACTED PERSONAL DATA
Tendring DC,http://statistics.data.gov.uk/id/local-authority-district/22UN,Life Opportunities,5480 - HRA - Repair & Maintenance,2089 - Sewer Repairs,21/01/2014,7010952-1,230,REDACTED PERSONAL DATA,REDACTED PERSONAL DATA
Tendring DC,http://statistics.data.gov.uk/id/local-authority-district/22UN,Life Opportunities,5480 - HRA - Repair & Maintenance,2089 - Sewer Repairs,21/01/2014,7010953-1,230,REDACTED PERSONAL DATA,REDACTED PERSONAL DATA
Tendring DC,http://statistics.data.gov.uk/id/local-authority-district/22UN,Life Opportunities,5480 - HRA - Repair & Maintenance,2089 - Sewer Repairs,21/01/2014,7010954-1,230,REDACTED PERSONAL DATA,REDACTED PERSONAL DATA
Tendring DC,http://statistics.data.gov.uk/id/local-authority-district/22UN,Life Opportunities,5480 - HRA - Repair & Maintenance,2089 - Sewer Repairs,21/01/2014,7010955-1,230,REDACTED PERSONAL DATA,REDACTED PERSONAL DATA
Tendring DC,http://statistics.data.gov.uk/id/local-authority-district/22UN,Life Opportunities,5480 - HRA - Repair & Maintenance,2089 - Sewer Repairs,21/01/2014,7010956-1,115,REDACTED PERSONAL DATA,REDACTED PERSONAL DATA
Tendring DC,http://statistics.data.gov.uk/id/local-authority-district/22UN,Life Opportunities,5480 - HRA - Repair & Maintenance,2089 - Sewer Repairs,21/01/2014,7010957-1,230,REDACTED PERSONAL DATA,REDACTED PERSONAL DATA
Tendring DC,http://statistics.data.gov.uk/id/local-authority-district/22UN,Life Opportunities,5480 - HRA - Repair & Maintenance,2089 - Sewer Repairs,21/01/2014,7010958-1,115,REDACTED PERSONAL DATA,REDACTED PERSONAL DATA
Tendring DC,http://statistics.data.gov.uk/id/local-authority-district/22UN,Life Opportunities,5480 - HRA - Repair & Maintenance,2089 - Sewer Repairs,21/01/2014,7010959-1,115,REDACTED PERSONAL DATA,REDACTED PERSONAL DATA
Tendring DC,http://statistics.data.gov.uk/id/local-authority-district/22UN,Life Opportunities,5480 - HRA - Repair & Maintenance,2089 - Sewer Repairs,21/01/2014,7010960-1,115,REDACTED PERSONAL DATA,REDACTED PERSONAL DATA
Tendring DC,http://statistics.data.gov.uk/id/local-authority-district/22UN,Life Opportunities,5860 - Manningtree Sports Centre,4635 - Cash Collection Contract,21/01/2014,1056930-1,-16.01,2101233 - G4S Cash Services (UK) Limited,CR SUSPENDED SERVICE M'TREE
Tendring DC,http://statistics.data.gov.uk/id/local-authority-district/22UN,Life Opportunities,"1580 - Benefits, Revenues and Customer Contact SU",4635 - Cash Collection Contract,21/01/2014,1057009-1,3.1,2101233 - G4S Cash Services (UK) Limited,CASH DELIVERY PIER AVE DEC13
Tendring DC,http://statistics.data.gov.uk/id/local-authority-district/22UN,Life Opportunities,"1580 - Benefits, Revenues and Customer Contact SU",4635 - Cash Collection Contract,21/01/2014,1057010-1,5,2101233 - G4S Cash Services (UK) Limited,CASH DELIVERY THEATRE PIER AVE
Tendring DC,http://statistics.data.gov.uk/id/local-authority-district/22UN,Life Opportunities,6160 - Princes Theatre,4635 - Cash Collection Contract,21/01/2014,1057010-2,5,2101233 - G4S Cash Services (UK) Limited,CASH DELIVERY THEATRE PIER AVE
Tendring DC,http://statistics.data.gov.uk/id/local-authority-district/22UN,Life Opportunities,"1580 - Benefits, Revenues and Customer Contact SU",4635 - Cash Collection Contract,21/01/2014,1057011-1,499.6,2101233 - G4S Cash Services (UK) Limited,G4S FEB 14
Tendring DC,http://statistics.data.gov.uk/id/local-authority-district/22UN,Life Opportunities,7600 - Tourist Information Centres,4635 - Cash Collection Contract,21/01/2014,1057011-10,65.66,2101233 - G4S Cash Services (UK) Limited,G4S FEB 14
Tendring DC,http://statistics.data.gov.uk/id/local-authority-district/22UN,Life Opportunities,5260 - HRA - Rent Collection And Accounting,4635 - Cash Collection Contract,21/01/2014,1057011-2,139.22,2101233 - G4S Cash Services (UK) Limited,G4S FEB 14
Tendring DC,http://statistics.data.gov.uk/id/local-authority-district/22UN,Life Opportunities,8025 - Car Parks - Off St,4635 - Cash Collection Contract,21/01/2014,1057011-3,115.91,2101233 - G4S Cash Services (UK) Limited,G4S FEB 14
Tendring DC,http://statistics.data.gov.uk/id/local-authority-district/22UN,Life Opportunities,8540 - Leisure Centre Clacton,4635 - Cash Collection Contract,21/01/2014,1057011-4,208.7,2101233 - G4S Cash Services (UK) Limited,G4S FEB 14
Tendring DC,http://statistics.data.gov.uk/id/local-authority-district/22UN,Life Opportunities,8510 - Dovercourt Swimming Pool & All Weather Facilities,4635 - Cash Collection Contract,21/01/2014,1057011-5,139.13,2101233 - G4S Cash Services (UK) Limited,G4S FEB 14
Tendring DC,http://statistics.data.gov.uk/id/local-authority-district/22UN,Life Opportunities,5800 - Brightlingsea Sports Centre,4635 - Cash Collection Contract,21/01/2014,1057011-6,69.57,2101233 - G4S Cash Services (UK) Limited,G4S FEB 14
Tendring DC,http://statistics.data.gov.uk/id/local-authority-district/22UN,Life Opportunities,8520 - Frinton & Walton Swimming Pool,4635 - Cash Collection Contract,21/01/2014,1057011-7,139.13,2101233 - G4S Cash Services (UK) Limited,G4S FEB 14
Tendring DC,http://statistics.data.gov.uk/id/local-authority-district/22UN,Life Opportunities,8560 - Happy Valley Recreation Ground Pitch & Putt,4635 - Cash Collection Contract,21/01/2014,1057011-8,69.57,2101233 - G4S Cash Services (UK) Limited,G4S FEB 14
Tendring DC,http://statistics.data.gov.uk/id/local-authority-district/22UN,Life Opportunities,5820 - Harwich Sports Centre,4635 - Cash Collection Contract,21/01/2014,1057011-9,69.57,2101233 - G4S Cash Services (UK) Limited,G4S FEB 14
Tendring DC,http://statistics.data.gov.uk/id/local-authority-district/22UN,Life Opportunities,H920 - Disabled Facilities Grants,C400 - Grant payments,14/01/2014,2112932-1,3532.44,REDACTED PERSONAL DATA,REDACTED PERSONAL DATA
Tendring DC,http://statistics.data.gov.uk/id/local-authority-district/22UN,Life Opportunities,1880 - Office Accommodation Expenses,4632 - Security,07/01/2014,1056763-1,25,2100546 - GCS Alarms,REPLACEMENT BATTERY
Tendring DC,http://statistics.data.gov.uk/id/local-authority-district/22UN,Life Opportunities,8520 - Frinton & Walton Swimming Pool,2100 - Building Repairs,14/01/2014,7010760-1,438,2100546 - GCS Alarms,FWSP - GCS ALARMS
Tendring DC,http://statistics.data.gov.uk/id/local-authority-district/22UN,Life Opportunities,7520 - Tourism Publicity Marketing Promotion,8460 - Sponsored Events income,21/01/2014,7010839-1,430,2100546 - GCS Alarms,BANNER REMOVAL
Tendring DC,http://statistics.data.gov.uk/id/local-authority-district/22UN,Life Opportunities,8540 - Leisure Centre Clacton,2100 - Building Repairs,21/01/2014,7010864-1,65,2100546 - GCS Alarms,CHECK FIRE ALARM
Tendring DC,http://statistics.data.gov.uk/id/local-authority-district/22UN,Life Opportunities,5860 - Manningtree Sports Centre,4400 - Maintenance Under Service Agreements,28/01/2014,7011111-1,205.5,2100546 - GCS Alarms,ANN MAINTENANCE & MONITORING INTRUDER ALARM
Tendring DC,http://statistics.data.gov.uk/id/local-authority-district/22UN,Life Opportunities,5860 - Manningtree Sports Centre,4400 - Maintenance Under Service Agreements,28/01/2014,7011112-1,238,2100546 - GCS Alarms,ANNUAL MAINTENANCE CONTRACT FIRE ALARM
Tendring DC,http://statistics.data.gov.uk/id/local-authority-district/22UN,Life Opportunities,5860 - Manningtree Sports Centre,4400 - Maintenance Under Service Agreements,28/01/2014,7011113-1,180,2100546 - GCS Alarms,ANNUAL MAINTENANCE CONTRACT CCTV
Tendring DC,http://statistics.data.gov.uk/id/local-authority-district/22UN,Life Opportunities,5480 - HRA - Repair & Maintenance,2018 - Other Responsive Repairs,28/01/2014,1057112-1,32.5,REDACTED PERSONAL DATA,REDACTED PERSONAL DATA
Tendring DC,http://statistics.data.gov.uk/id/local-authority-district/22UN,Life Opportunities,5480 - HRA - Repair & Maintenance,2018 - Other Responsive Repairs,21/01/2014,7010922-1,26.5,REDACTED PERSONAL DATA,REDACTED PERSONAL DATA
Tendring DC,http://statistics.data.gov.uk/id/local-authority-district/22UN,Life Opportunities,5860 - Manningtree Sports Centre,4090 - Lease of Vending Machines,28/01/2014,7011109-1,260,2100586 - General Vending Services Ltd,VENDING CONTRACT - LUCOZADE MACHINE
Tendring DC,http://statistics.data.gov.uk/id/local-authority-district/22UN,Life Opportunities,"1580 - Benefits, Revenues and Customer Contact SU",3311 - Travelling Career Track,14/01/2014,2112940-1,14.2,REDACTED PERSONAL DATA,REDACTED PERSONAL DATA
Tendring DC,http://statistics.data.gov.uk/id/local-authority-district/22UN,Life Opportunities,5240 - HRA - Managing Tenancies,5242 - Tenant Relations,28/01/2014,1057053-1,10,REDACTED PERSONAL DATA,REDACTED PERSONAL DATA
Tendring DC,http://statistics.data.gov.uk/id/local-authority-district/22UN,Life Opportunities,5140 - Homelessness,4683 - Other Homelessness Expenses,14/01/2014,1056843-1,182.46,REDACTED PERSONAL DATA,REDACTED PERSONAL DATA
Tendring DC,http://statistics.data.gov.uk/id/local-authority-district/22UN,Life Opportunities,8540 - Leisure Centre Clacton,2700 - Cleaning Materials,28/01/2014,7011119-1,124.2,2100509 - Granwax Products Ltd,CLEAN MATERIALS
Tendring DC,http://statistics.data.gov.uk/id/local-authority-district/22UN,Life Opportunities,5880 - Management Of Sport & Leisure Facilities,5166 - Marketing and Promotion,07/01/2014,7700933-1,1155,2112587 - Green Square Communications Limited,XMAS CARDS
Tendring DC,http://statistics.data.gov.uk/id/local-authority-district/22UN,Life Opportunities,6160 - Princes Theatre,4105 - Bar/Catering Expenses,14/01/2014,7010802-1,436.34,2112641 - Greene King Brewing and Retailing Ltd,DRINKS FOR THEATRE BAR
Tendring DC,http://statistics.data.gov.uk/id/local-authority-district/22UN,Life Opportunities,6160 - Princes Theatre,4105 - Bar/Catering Expenses,28/01/2014,7011064-1,592.27,2112641 - Greene King Brewing and Retailing Ltd,BEVERAGES FOR THEATRE BAR
Tendring DC,http://statistics.data.gov.uk/id/local-authority-district/22UN,Life Opportunities,1860 - Depots General,2100 - Building Repairs,28/01/2014,1057101-1,170,2106272 - Greenleaf Pest Control Services,RAT TREATMENT X 3
Tendring DC,http://statistics.data.gov.uk/id/local-authority-district/22UN,Life Opportunities,5860 - Manningtree Sports Centre,5300 - Resaleable Items,07/01/2014,7700948-1,133.32,2100641 - Gymnastic Enterprises Ltd,GYMNASTIC BADGES
Tendring DC,http://statistics.data.gov.uk/id/local-authority-district/22UN,Life Opportunities,"1580 - Benefits, Revenues and Customer Contact SU",4462 - Bailiffs and Tracing Agent Fees re debt recovery,07/01/2014,7010634-1,533,2113197 - Hambury Tilmond Ltd,BAILIFF FEES RETAINED
Tendring DC,http://statistics.data.gov.uk/id/local-authority-district/22UN,Life Opportunities,"1580 - Benefits, Revenues and Customer Contact SU",4462 - Bailiffs and Tracing Agent Fees re debt recovery,07/01/2014,7010634-2,-533,2113197 - Hambury Tilmond Ltd,BAILIFF FEES RETAINED
Tendring DC,http://statistics.data.gov.uk/id/local-authority-district/22UN,Life Opportunities,5140 - Homelessness,4683 - Other Homelessness Expenses,21/01/2014,1056916-1,57.5,REDACTED PERSONAL DATA,REDACTED PERSONAL DATA
Tendring DC,http://statistics.data.gov.uk/id/local-authority-district/22UN,Life Opportunities,5240 - HRA - Managing Tenancies,5242 - Tenant Relations,21/01/2014,1056952-1,88,2100604 - Harwich Taxis,TRANSPORT 16/12 & 17/12
Tendring DC,http://statistics.data.gov.uk/id/local-authority-district/22UN,Life Opportunities,5860 - Manningtree Sports Centre,4597 - Hired Services - Payments to Contractors,14/01/2014,7010779-1,196,2112071 - Hightime Technical Consultants Ltd,CLIMBING WALL INSPECTION
Tendring DC,http://statistics.data.gov.uk/id/local-authority-district/22UN,Life Opportunities,"1580 - Benefits, Revenues and Customer Contact SU",4466 - Land Registry Fees,21/01/2014,1056944-1,388.5,2112599 - HM Land Registry - NW,CHANGE OWNRESHIP MONTH 16
Tendring DC,http://statistics.data.gov.uk/id/local-authority-district/22UN,Life Opportunities,5260 - HRA - Rent Collection And Accounting,4460 - Legal & Professional Expenses,21/01/2014,1057002-1,110,REDACTED COMMERCIAL CONFIDENTIALITY,REDACTED COMMERCIAL CONFIDENTIALITY
Tendring DC,http://statistics.data.gov.uk/id/local-authority-district/22UN,Life Opportunities,5260 - HRA - Rent Collection And Accounting,4460 - Legal & Professional Expenses,21/01/2014,1057003-1,110,REDACTED COMMERCIAL CONFIDENTIALITY,REDACTED COMMERCIAL CONFIDENTIALITY
Tendring DC,http://statistics.data.gov.uk/id/local-authority-district/22UN,Life Opportunities,8510 - Dovercourt Swimming Pool & All Weather Facilities,2100 - Building Repairs,21/01/2014,7010878-1,30,2111080 - Homecraft Contracts Electrical Ltd,DOVERCOURT POOL - REPAIRS
Tendring DC,http://statistics.data.gov.uk/id/local-authority-district/22UN,Life Opportunities,8510 - Dovercourt Swimming Pool & All Weather Facilities,2100 - Building Repairs,07/01/2014,7700938-1,119,2111080 - Homecraft Contracts Electrical Ltd,DOVERCOURT POOL - REPAIRS
Tendring DC,http://statistics.data.gov.uk/id/local-authority-district/22UN,Life Opportunities,H920 - Disabled Facilities Grants,C400 - Grant payments,07/01/2014,1056764-1,1787,REDACTED PERSONAL DATA,REDACTED PERSONAL DATA
Tendring DC,http://statistics.data.gov.uk/id/local-authority-district/22UN,Life Opportunities,8510 - Dovercourt Swimming Pool & All Weather Facilities,2100 - Building Repairs,07/01/2014,7010603-1,158,2101848 - Homecraft Contracts Ltd,DOVERCOURT POOL - REPAIRS
Tendring DC,http://statistics.data.gov.uk/id/local-authority-district/22UN,Life Opportunities,5820 - Harwich Sports Centre,2100 - Building Repairs,14/01/2014,7010783-1,340,2101848 - Homecraft Contracts Ltd,ROOF CLEARANCE & ROOF GUARDS
Tendring DC,http://statistics.data.gov.uk/id/local-authority-district/22UN,Life Opportunities,5260 - HRA - Rent Collection And Accounting,4757 - IT External Charges,21/01/2014,7010942-1,397.02,2111338 - Housing Partners Limited,HOMESWAPPER SEPT-NOV 2013
Tendring DC,http://statistics.data.gov.uk/id/local-authority-district/22UN,Life Opportunities,5860 - Manningtree Sports Centre,4597 - Hired Services - Payments to Contractors,07/01/2014,7010605-1,280,2113090 - HRC All Stars,COACHING CLASSES
Tendring DC,http://statistics.data.gov.uk/id/local-authority-district/22UN,Life Opportunities,5480 - HRA - Repair & Maintenance,2014 - Decoration Allowances,28/01/2014,1057139-1,70.22,2109778 - ICI Contract Direct,Dec-13
Tendring DC,http://statistics.data.gov.uk/id/local-authority-district/22UN,Life Opportunities,6160 - Princes Theatre,2100 - Building Repairs,28/01/2014,7011254-1,53.5,2113683 - Illuminate Design,PAINT AND DELIVERY
Tendring DC,http://statistics.data.gov.uk/id/local-authority-district/22UN,Life Opportunities,6160 - Princes Theatre,4040 - Equipment & Tools,28/01/2014,7011255-1,49.36,2113683 - Illuminate Design,FOLLOWSPOT LAMPS
Tendring DC,http://statistics.data.gov.uk/id/local-authority-district/22UN,Life Opportunities,5860 - Manningtree Sports Centre,4090 - Lease of Vending Machines,28/01/2014,7011108-1,35,2100702 - ING Lease (UK) Ltd,ADMIN FEE FOR LEASE OF SNACK & HOT DRINKS MACHINE
Tendring DC,http://statistics.data.gov.uk/id/local-authority-district/22UN,Life Opportunities,5820 - Harwich Sports Centre,4400 - Maintenance Under Service Agreements,28/01/2014,7011143-1,65,2113083 - Initial Facilities - Water Services,WATER CONTRACT - LEGIONELLA
Tendring DC,http://statistics.data.gov.uk/id/local-authority-district/22UN,Life Opportunities,1880 - Office Accommodation Expenses,4666 - Hygiene Services,07/01/2014,1056749-1,15,2104976 - Initial Washroom Solutions,SANITACT 28/12-27/1/14
Tendring DC,http://statistics.data.gov.uk/id/local-authority-district/22UN,Life Opportunities,1860 - Depots General,4666 - Hygiene Services,07/01/2014,1056749-2,7.5,2104976 - Initial Washroom Solutions,SANITACT 28/12-27/1/14
Tendring DC,http://statistics.data.gov.uk/id/local-authority-district/22UN,Life Opportunities,1880 - Office Accommodation Expenses,4666 - Hygiene Services,07/01/2014,1056749-3,15,2104976 - Initial Washroom Solutions,SANITACT 28/12-27/1/14
Tendring DC,http://statistics.data.gov.uk/id/local-authority-district/22UN,Life Opportunities,1880 - Office Accommodation Expenses,4666 - Hygiene Services,07/01/2014,1056749-4,83.75,2104976 - Initial Washroom Solutions,SANITACT 28/12-27/1/14
Tendring DC,http://statistics.data.gov.uk/id/local-authority-district/22UN,Life Opportunities,4820 - Public Conveniences,4080 - Materials & Consumables,07/01/2014,1056749-5,103.75,2104976 - Initial Washroom Solutions,SANITACT 28/12-27/1/14
Tendring DC,http://statistics.data.gov.uk/id/local-authority-district/22UN,Life Opportunities,1880 - Office Accommodation Expenses,4666 - Hygiene Services,07/01/2014,1056749-6,7.5,2104976 - Initial Washroom Solutions,SANITACT 28/12-27/1/14
Tendring DC,http://statistics.data.gov.uk/id/local-authority-district/22UN,Life Opportunities,5880 - Management Of Sport & Leisure Facilities,5166 - Marketing and Promotion,21/01/2014,7010866-1,90,2113575 - Intelligent Texting,INTEXT LIC FEE JAN
Tendring DC,http://statistics.data.gov.uk/id/local-authority-district/22UN,Life Opportunities,1880 - Office Accommodation Expenses,4448 - Confidential Waste,21/01/2014,7010838-1,112.8,2110936 - IPPlus (UK) Ltd,ANCORA COLLECTION 2012/13
Tendring DC,http://statistics.data.gov.uk/id/local-authority-district/22UN,Life Opportunities,8540 - Leisure Centre Clacton,5500 - Miscellaneous Expenses,28/01/2014,7011208-1,172,2100724 - IQL UK Ltd,NPLQ RENEWAL PACK
Tendring DC,http://statistics.data.gov.uk/id/local-authority-district/22UN,Life Opportunities,8520 - Frinton & Walton Swimming Pool,4300 - Printing & Stationery,07/01/2014,7700944-1,430,2100724 - IQL UK Ltd,FWSP - IAL UK (RLSS)
Tendring DC,http://statistics.data.gov.uk/id/local-authority-district/22UN,Life Opportunities,8520 - Frinton & Walton Swimming Pool,4400 - Maintenance Under Service Agreements,28/01/2014,7011144-1,50,2111218 - J Cripps,FWSP - J CRIPPS
Tendring DC,http://statistics.data.gov.uk/id/local-authority-district/22UN,Life Opportunities,7610 - TDC Events - Council Owned Land,4094 - Other Equipment Hire/Leasing,21/01/2014,1056941-1,775,2113691 - J H Promotions Ltd,EASTER ANIMAL ROADSHOW
Tendring DC,http://statistics.data.gov.uk/id/local-authority-district/22UN,Life Opportunities,7610 - TDC Events - Council Owned Land,4094 - Other Equipment Hire/Leasing,28/01/2014,1057124-1,1000,2113691 - J H Promotions Ltd,HALLOWEEN CRAFT WORKSHOP
Tendring DC,http://statistics.data.gov.uk/id/local-authority-district/22UN,Life Opportunities,7610 - TDC Events - Council Owned Land,4094 - Other Equipment Hire/Leasing,28/01/2014,1057125-1,1000,2113691 - J H Promotions Ltd,FATHERS DAY CRAFT WORKSHOP
Tendring DC,http://statistics.data.gov.uk/id/local-authority-district/22UN,Life Opportunities,H920 - Disabled Facilities Grants,C400 - Grant payments,07/01/2014,1056770-1,1500,REDACTED PERSONAL DATA,REDACTED PERSONAL DATA
Tendring DC,http://statistics.data.gov.uk/id/local-authority-district/22UN,Life Opportunities,8540 - Leisure Centre Clacton,2700 - Cleaning Materials,28/01/2014,7011070-1,65.66,2100755 - J P Lennard Ltd,SQUEEGEE & HANDLE
Tendring DC,http://statistics.data.gov.uk/id/local-authority-district/22UN,Life Opportunities,8540 - Leisure Centre Clacton,4000 - Furniture,28/01/2014,7011212-1,75.9,2100755 - J P Lennard Ltd,YOGA BRICKS
Tendring DC,http://statistics.data.gov.uk/id/local-authority-district/22UN,Life Opportunities,8540 - Leisure Centre Clacton,4597 - Hired Services - Payments to Contractors,07/01/2014,7700935-1,90,2100785 - J W Goding,DECEMBER
Tendring DC,http://statistics.data.gov.uk/id/local-authority-district/22UN,Life Opportunities,6160 - Princes Theatre,4622 - Hired Services - Artistes and Production Companies,07/01/2014,7010632-1,1885.73,2113598 - Jamie Marcus Productions Ltd,50 DAYS OF GREY
Tendring DC,http://statistics.data.gov.uk/id/local-authority-district/22UN,Life Opportunities,8520 - Frinton & Walton Swimming Pool,5311 - General Provisions - Vending,28/01/2014,7011063-1,77.9,2109088 - JC Vending Services,FWSP - J C VENDING
Tendring DC,http://statistics.data.gov.uk/id/local-authority-district/22UN,Life Opportunities,5240 - HRA - Managing Tenancies,5242 - Tenant Relations,07/01/2014,1056728-1,10,REDACTED PERSONAL DATA,REDACTED PERSONAL DATA
Tendring DC,http://statistics.data.gov.uk/id/local-authority-district/22UN,Life Opportunities,5240 - HRA - Managing Tenancies,5242 - Tenant Relations,28/01/2014,1057041-1,10,REDACTED PERSONAL DATA,REDACTED PERSONAL DATA
Tendring DC,http://statistics.data.gov.uk/id/local-authority-district/22UN,Life Opportunities,5240 - HRA - Managing Tenancies,5242 - Tenant Relations,28/01/2014,1057045-1,10,REDACTED PERSONAL DATA,REDACTED PERSONAL DATA
Tendring DC,http://statistics.data.gov.uk/id/local-authority-district/22UN,Life Opportunities,8540 - Leisure Centre Clacton,5500 - Miscellaneous Expenses,28/01/2014,7011213-1,35,2107243 - Juice for Life Ltd,TD 13-11-13
Tendring DC,http://statistics.data.gov.uk/id/local-authority-district/22UN,Life Opportunities,8540 - Leisure Centre Clacton,5500 - Miscellaneous Expenses,28/01/2014,7011214-1,36.46,2107243 - Juice for Life Ltd,TD 6-11-13
Tendring DC,http://statistics.data.gov.uk/id/local-authority-district/22UN,Life Opportunities,8540 - Leisure Centre Clacton,5500 - Miscellaneous Expenses,28/01/2014,7011215-1,41.25,2107243 - Juice for Life Ltd,A4L 291113
Tendring DC,http://statistics.data.gov.uk/id/local-authority-district/22UN,Life Opportunities,8540 - Leisure Centre Clacton,5500 - Miscellaneous Expenses,28/01/2014,7011216-1,23.75,2107243 - Juice for Life Ltd,A4L 271113
Tendring DC,http://statistics.data.gov.uk/id/local-authority-district/22UN,Life Opportunities,8540 - Leisure Centre Clacton,5500 - Miscellaneous Expenses,28/01/2014,7011217-1,50,2107243 - Juice for Life Ltd,A4L 251113
Tendring DC,http://statistics.data.gov.uk/id/local-authority-district/22UN,Life Opportunities,8540 - Leisure Centre Clacton,5500 - Miscellaneous Expenses,28/01/2014,7011218-1,46.88,2107243 - Juice for Life Ltd,A4L 221113
Tendring DC,http://statistics.data.gov.uk/id/local-authority-district/22UN,Life Opportunities,8540 - Leisure Centre Clacton,5500 - Miscellaneous Expenses,28/01/2014,7011219-1,16.25,2107243 - Juice for Life Ltd,A4L 201113
Tendring DC,http://statistics.data.gov.uk/id/local-authority-district/22UN,Life Opportunities,8540 - Leisure Centre Clacton,5500 - Miscellaneous Expenses,28/01/2014,7011220-1,7.25,2107243 - Juice for Life Ltd,LFS 281113
Tendring DC,http://statistics.data.gov.uk/id/local-authority-district/22UN,Life Opportunities,8540 - Leisure Centre Clacton,5500 - Miscellaneous Expenses,28/01/2014,7011221-1,8.08,2107243 - Juice for Life Ltd,LFS 271113
Tendring DC,http://statistics.data.gov.uk/id/local-authority-district/22UN,Life Opportunities,8540 - Leisure Centre Clacton,5500 - Miscellaneous Expenses,28/01/2014,7011222-1,2.25,2107243 - Juice for Life Ltd,LFS 261113
Tendring DC,http://statistics.data.gov.uk/id/local-authority-district/22UN,Life Opportunities,8540 - Leisure Centre Clacton,5500 - Miscellaneous Expenses,28/01/2014,7011223-1,19.92,2107243 - Juice for Life Ltd,LFS 231113
Tendring DC,http://statistics.data.gov.uk/id/local-authority-district/22UN,Life Opportunities,8540 - Leisure Centre Clacton,5500 - Miscellaneous Expenses,28/01/2014,7011224-1,22.33,2107243 - Juice for Life Ltd,LFS 201113
Tendring DC,http://statistics.data.gov.uk/id/local-authority-district/22UN,Life Opportunities,8540 - Leisure Centre Clacton,5500 - Miscellaneous Expenses,28/01/2014,7011225-1,19,2107243 - Juice for Life Ltd,LFS 121113
Tendring DC,http://statistics.data.gov.uk/id/local-authority-district/22UN,Life Opportunities,8540 - Leisure Centre Clacton,5500 - Miscellaneous Expenses,28/01/2014,7011226-1,22.58,2107243 - Juice for Life Ltd,LFS 091113
Tendring DC,http://statistics.data.gov.uk/id/local-authority-district/22UN,Life Opportunities,8540 - Leisure Centre Clacton,5500 - Miscellaneous Expenses,28/01/2014,7011227-1,10.08,2107243 - Juice for Life Ltd,LFS 051113
Tendring DC,http://statistics.data.gov.uk/id/local-authority-district/22UN,Life Opportunities,5480 - HRA - Repair & Maintenance,2064 - Domestic Appliance Repairs,28/01/2014,7011045-1,45,2112159 - Justins Domestic Appliance Repairs,GREENFIELDS
Tendring DC,http://statistics.data.gov.uk/id/local-authority-district/22UN,Life Opportunities,5480 - HRA - Repair & Maintenance,2064 - Domestic Appliance Repairs,28/01/2014,7011046-1,40,2112159 - Justins Domestic Appliance Repairs,BELMANS COURT
Tendring DC,http://statistics.data.gov.uk/id/local-authority-district/22UN,Life Opportunities,5480 - HRA - Repair & Maintenance,2064 - Domestic Appliance Repairs,28/01/2014,7011047-1,25,2112159 - Justins Domestic Appliance Repairs,ST MARYS COURT
Tendring DC,http://statistics.data.gov.uk/id/local-authority-district/22UN,Life Opportunities,5480 - HRA - Repair & Maintenance,2064 - Domestic Appliance Repairs,28/01/2014,7011048-1,75,REDACTED PERSONAL DATA,REDACTED PERSONAL DATA
Tendring DC,http://statistics.data.gov.uk/id/local-authority-district/22UN,Life Opportunities,5480 - HRA - Repair & Maintenance,2064 - Domestic Appliance Repairs,28/01/2014,7011049-1,50,2112159 - Justins Domestic Appliance Repairs,GREENFIELDS
Tendring DC,http://statistics.data.gov.uk/id/local-authority-district/22UN,Life Opportunities,5480 - HRA - Repair & Maintenance,2064 - Domestic Appliance Repairs,28/01/2014,7011050-1,55,2112159 - Justins Domestic Appliance Repairs,GROOM HOUSE
Tendring DC,http://statistics.data.gov.uk/id/local-authority-district/22UN,Life Opportunities,5480 - HRA - Repair & Maintenance,2064 - Domestic Appliance Repairs,28/01/2014,7011051-1,135,2112159 - Justins Domestic Appliance Repairs,HONEYCROFT
Tendring DC,http://statistics.data.gov.uk/id/local-authority-district/22UN,Life Opportunities,1880 - Office Accommodation Expenses,2100 - Building Repairs,21/01/2014,1056934-1,100,2111266 - JW Plumbing and Heating,TOWN HALL DISABLED TOILET
Tendring DC,http://statistics.data.gov.uk/id/local-authority-district/22UN,Life Opportunities,1880 - Office Accommodation Expenses,2100 - Building Repairs,21/01/2014,1056934-2,63.75,2111266 - JW Plumbing and Heating,TOWN HALL DISABLED TOILET
Tendring DC,http://statistics.data.gov.uk/id/local-authority-district/22UN,Life Opportunities,5140 - Homelessness,4683 - Other Homelessness Expenses,28/01/2014,1057065-1,575,REDACTED PERSONAL DATA,REDACTED PERSONAL DATA
Tendring DC,http://statistics.data.gov.uk/id/local-authority-district/22UN,Life Opportunities,"1580 - Benefits, Revenues and Customer Contact SU",3311 - Travelling Career Track,14/01/2014,2112945-1,15.6,REDACTED PERSONAL DATA,REDACTED PERSONAL DATA
Tendring DC,http://statistics.data.gov.uk/id/local-authority-district/22UN,Life Opportunities,H875 - Compulsary Purchase and Refurbishment,C200 - Main Contractor,14/01/2014,1056894-1,395,REDACTED PERSONAL DATA,REDACTED PERSONAL DATA
Tendring DC,http://statistics.data.gov.uk/id/local-authority-district/22UN,Life Opportunities,H800 - Structural Repairs,C200 - Main Contractor,21/01/2014,1056957-1,450,REDACTED PERSONAL DATA,REDACTED PERSONAL DATA
Tendring DC,http://statistics.data.gov.uk/id/local-authority-district/22UN,Life Opportunities,1880 - Office Accommodation Expenses,2100 - Building Repairs,28/01/2014,7011052-1,85,2100890 - Kirby Locks Ltd,KIRBY LOCKS TOWN HALL
Tendring DC,http://statistics.data.gov.uk/id/local-authority-district/22UN,Life Opportunities,5360 - HRA - Sheltered Units,4601 - Hired services - Cleaning,21/01/2014,1056948-1,102,2100851 - KO-SHEEN Contract Cleaning Ltd,29/12-3/1/14 GROOM SPENDELLS HONEYCROFT
Tendring DC,http://statistics.data.gov.uk/id/local-authority-district/22UN,Life Opportunities,5360 - HRA - Sheltered Units,4601 - Hired services - Cleaning,14/01/2014,2112906-1,153,2100851 - KO-SHEEN Contract Cleaning Ltd,cleaning various blocks 16/12 to 20/12/13
Tendring DC,http://statistics.data.gov.uk/id/local-authority-district/22UN,Life Opportunities,5360 - HRA - Sheltered Units,4601 - Hired services - Cleaning,14/01/2014,2112907-1,153,2100851 - KO-SHEEN Contract Cleaning Ltd,cleaning 9/12/13 to 13/12/13 various blocks
Tendring DC,http://statistics.data.gov.uk/id/local-authority-district/22UN,Life Opportunities,5360 - HRA - Sheltered Units,4601 - Hired services - Cleaning,14/01/2014,7010679-1,153,2100851 - KO-SHEEN Contract Cleaning Ltd,CLEANING 23-27 DEC 13 - VARIOUS BLOCKS
Tendring DC,http://statistics.data.gov.uk/id/local-authority-district/22UN,Life Opportunities,5360 - HRA - Sheltered Units,4601 - Hired services - Cleaning,14/01/2014,7010680-1,588.88,2100851 - KO-SHEEN Contract Cleaning Ltd,CLEANING AT BELMANS COURT DEC 2013
Tendring DC,http://statistics.data.gov.uk/id/local-authority-district/22UN,Life Opportunities,5860 - Manningtree Sports Centre,4601 - Hired services - Cleaning,14/01/2014,7010773-1,63.75,2100851 - KO-SHEEN Contract Cleaning Ltd,CONTRACT CLEANING 16TH-20TH DEC
Tendring DC,http://statistics.data.gov.uk/id/local-authority-district/22UN,Life Opportunities,5860 - Manningtree Sports Centre,4601 - Hired services - Cleaning,14/01/2014,7010774-1,63.75,2100851 - KO-SHEEN Contract Cleaning Ltd,CONTRACT CLEANING 9-13TH DEC
Tendring DC,http://statistics.data.gov.uk/id/local-authority-district/22UN,Life Opportunities,5860 - Manningtree Sports Centre,4601 - Hired services - Cleaning,14/01/2014,7010775-1,63.75,2100851 - KO-SHEEN Contract Cleaning Ltd,CONTRACT CLEANING 9-13TH DEC
Tendring DC,http://statistics.data.gov.uk/id/local-authority-district/22UN,Life Opportunities,5860 - Manningtree Sports Centre,4601 - Hired services - Cleaning,07/01/2014,7700951-1,63.75,2100851 - KO-SHEEN Contract Cleaning Ltd,CONTRACT CLEANING
Tendring DC,http://statistics.data.gov.uk/id/local-authority-district/22UN,Life Opportunities,5800 - Brightlingsea Sports Centre,4000 - Furniture,07/01/2014,1056771-1,89.57,2110135 - L Anderson,
Tendring DC,http://statistics.data.gov.uk/id/local-authority-district/22UN,Life Opportunities,5800 - Brightlingsea Sports Centre,4000 - Furniture,07/01/2014,1056772-1,70.83,2110135 - L Anderson,
Tendring DC,http://statistics.data.gov.uk/id/local-authority-district/22UN,Life Opportunities,5800 - Brightlingsea Sports Centre,4000 - Furniture,21/01/2014,1056907-1,43.95,REDACTED PERSONAL DATA,REDACTED PERSONAL DATA
Tendring DC,http://statistics.data.gov.uk/id/local-authority-district/22UN,Life Opportunities,H815 - Re-roofing,C200 - Main Contractor,07/01/2014,1056742-1,26423.5,2113544 - Lakehouse Contracts Ltd,REPLACEMENT ROOF COVERINGS-OLD ROAD
Tendring DC,http://statistics.data.gov.uk/id/local-authority-district/22UN,Life Opportunities,7520 - Tourism Publicity Marketing Promotion,5160 - Advertising,28/01/2014,1057128-1,395,2108803 - Landor Travel Publications Ltd,Jan-14
Tendring DC,http://statistics.data.gov.uk/id/local-authority-district/22UN,Life Opportunities,5240 - HRA - Managing Tenancies,5242 - Tenant Relations,28/01/2014,1057049-1,10,REDACTED PERSONAL DATA,REDACTED PERSONAL DATA
Tendring DC,http://statistics.data.gov.uk/id/local-authority-district/22UN,Life Opportunities,5480 - HRA - Repair & Maintenance,2088 - Disabled Adaptations,21/01/2014,1056935-1,40,REDACTED PERSONAL DATA,REDACTED PERSONAL DATA
Tendring DC,http://statistics.data.gov.uk/id/local-authority-district/22UN,Life Opportunities,5480 - HRA - Repair & Maintenance,2018 - Other Responsive Repairs,28/01/2014,7011085-1,40,2112730 - Lee Bilsby Ltd,GREENFIELDS
Tendring DC,http://statistics.data.gov.uk/id/local-authority-district/22UN,Life Opportunities,5480 - HRA - Repair & Maintenance,2088 - Disabled Adaptations,28/01/2014,7011196-1,40,REDACTED PERSONAL DATA,REDACTED PERSONAL DATA
Tendring DC,http://statistics.data.gov.uk/id/local-authority-district/22UN,Life Opportunities,5240 - HRA - Managing Tenancies,5242 - Tenant Relations,07/01/2014,1056731-1,10,REDACTED PERSONAL DATA,REDACTED PERSONAL DATA
Tendring DC,http://statistics.data.gov.uk/id/local-authority-district/22UN,Life Opportunities,5800 - Brightlingsea Sports Centre,4000 - Furniture,28/01/2014,7011117-1,24.7,2103500 - Liquidline,LIQUIDLINE
Tendring DC,http://statistics.data.gov.uk/id/local-authority-district/22UN,Life Opportunities,5800 - Brightlingsea Sports Centre,4000 - Furniture,28/01/2014,7011118-1,60,2103500 - Liquidline,LIQUIDLINE
Tendring DC,http://statistics.data.gov.uk/id/local-authority-district/22UN,Life Opportunities,7620 - Air Show,5160 - Advertising,07/01/2014,7700957-1,100,2113509 - LOCAL WORLD LIMITED,ADVERT ESSEX TOURISM AWARD
Tendring DC,http://statistics.data.gov.uk/id/local-authority-district/22UN,Life Opportunities,7620 - Air Show,5160 - Advertising,07/01/2014,7700958-1,150,2113509 - LOCAL WORLD LIMITED,ADVERT ESSEX TOURISM AWARD
Tendring DC,http://statistics.data.gov.uk/id/local-authority-district/22UN,Life Opportunities,5880 - Management Of Sport & Leisure Facilities,5166 - Marketing and Promotion,28/01/2014,7011207-1,124,2107277 - Look 5 Ltd,HPC LOOK 2 FEB
Tendring DC,http://statistics.data.gov.uk/id/local-authority-district/22UN,Life Opportunities,6740 - Careline,3300 - Public Transport - Officers,21/01/2014,1056905-1,42.5,REDACTED PERSONAL DATA,REDACTED PERSONAL DATA
Tendring DC,http://statistics.data.gov.uk/id/local-authority-district/22UN,Life Opportunities,1240 - Commercial Management,3302 - Car Allowances - Officers,28/01/2014,1057177-1,22.44,REDACTED PERSONAL DATA,REDACTED PERSONAL DATA
Tendring DC,http://statistics.data.gov.uk/id/local-authority-district/22UN,Life Opportunities,6160 - Princes Theatre,4597 - Hired Services - Payments to Contractors,28/01/2014,1057084-1,150,2100837 - M A Williams,STOCKTAKING NOVEMBER 2013
Tendring DC,http://statistics.data.gov.uk/id/local-authority-district/22UN,Life Opportunities,6160 - Princes Theatre,4105 - Bar/Catering Expenses,28/01/2014,1057150-1,32.49,2105052 - Maddisons,THEATRE COFFEE
Tendring DC,http://statistics.data.gov.uk/id/local-authority-district/22UN,Life Opportunities,5240 - HRA - Managing Tenancies,5242 - Tenant Relations,14/01/2014,1056853-1,120,2113137 - Manningtree Taxis,TRANSPORT 3/12-16/12 & 17/12/13
Tendring DC,http://statistics.data.gov.uk/id/local-authority-district/22UN,Life Opportunities,5240 - HRA - Managing Tenancies,5248 - Estate Management Expenses,14/01/2014,7010635-1,84,2100888 - Manningtree Town Council,JULY - DEC 2013
Tendring DC,http://statistics.data.gov.uk/id/local-authority-district/22UN,Life Opportunities,H815 - Re-roofing,C200 - Main Contractor,14/01/2014,2112904-1,1777,REDACTED PERSONAL DATA,REDACTED PERSONAL DATA
Tendring DC,http://statistics.data.gov.uk/id/local-authority-district/22UN,Life Opportunities,8540 - Leisure Centre Clacton,4400 - Maintenance Under Service Agreements,07/01/2014,7700937-1,1586.05,2111673 - Maplin Mechanical Services Ltd,MENERGA MAINT 1/1/14 - 31/12/14
Tendring DC,http://statistics.data.gov.uk/id/local-authority-district/22UN,Life Opportunities,5140 - Homelessness,4680 - Bed & Breakfast Accommodation,14/01/2014,7010787-1,40,REDACTED PERSONAL DATA,REDACTED PERSONAL DATA
Tendring DC,http://statistics.data.gov.uk/id/local-authority-district/22UN,Life Opportunities,5140 - Homelessness,9032 - Homelessness Accommodation Charges,14/01/2014,7010787-2,-2.35,REDACTED PERSONAL DATA,REDACTED PERSONAL DATA
Tendring DC,http://statistics.data.gov.uk/id/local-authority-district/22UN,Life Opportunities,5140 - Homelessness,4680 - Bed & Breakfast Accommodation,14/01/2014,7010788-1,420,REDACTED PERSONAL DATA,REDACTED PERSONAL DATA
Tendring DC,http://statistics.data.gov.uk/id/local-authority-district/22UN,Life Opportunities,5140 - Homelessness,9032 - Homelessness Accommodation Charges,14/01/2014,7010788-2,-16.45,REDACTED PERSONAL DATA,REDACTED PERSONAL DATA
Tendring DC,http://statistics.data.gov.uk/id/local-authority-district/22UN,Life Opportunities,5140 - Homelessness,4680 - Bed & Breakfast Accommodation,14/01/2014,7010789-1,140,REDACTED PERSONAL DATA,REDACTED PERSONAL DATA
Tendring DC,http://statistics.data.gov.uk/id/local-authority-district/22UN,Life Opportunities,5140 - Homelessness,9032 - Homelessness Accommodation Charges,14/01/2014,7010789-2,-16.45,REDACTED PERSONAL DATA,REDACTED PERSONAL DATA
Tendring DC,http://statistics.data.gov.uk/id/local-authority-district/22UN,Life Opportunities,5140 - Homelessness,4680 - Bed & Breakfast Accommodation,21/01/2014,7011022-1,140,REDACTED PERSONAL DATA,REDACTED PERSONAL DATA
Tendring DC,http://statistics.data.gov.uk/id/local-authority-district/22UN,Life Opportunities,5140 - Homelessness,9032 - Homelessness Accommodation Charges,21/01/2014,7011022-2,-16.45,REDACTED PERSONAL DATA,REDACTED PERSONAL DATA
Tendring DC,http://statistics.data.gov.uk/id/local-authority-district/22UN,Life Opportunities,5140 - Homelessness,4680 - Bed & Breakfast Accommodation,21/01/2014,7011023-1,40,REDACTED PERSONAL DATA,REDACTED PERSONAL DATA
Tendring DC,http://statistics.data.gov.uk/id/local-authority-district/22UN,Life Opportunities,5140 - Homelessness,4680 - Bed & Breakfast Accommodation,21/01/2014,7011023-2,-2.35,REDACTED PERSONAL DATA,REDACTED PERSONAL DATA
Tendring DC,http://statistics.data.gov.uk/id/local-authority-district/22UN,Life Opportunities,5140 - Homelessness,4680 - Bed & Breakfast Accommodation,21/01/2014,7011024-1,140,REDACTED PERSONAL DATA,REDACTED PERSONAL DATA
Tendring DC,http://statistics.data.gov.uk/id/local-authority-district/22UN,Life Opportunities,5140 - Homelessness,9032 - Homelessness Accommodation Charges,21/01/2014,7011024-2,-16.45,REDACTED PERSONAL DATA,REDACTED PERSONAL DATA
Tendring DC,http://statistics.data.gov.uk/id/local-authority-district/22UN,Life Opportunities,5140 - Homelessness,4680 - Bed & Breakfast Accommodation,21/01/2014,7011025-1,140,REDACTED PERSONAL DATA,REDACTED PERSONAL DATA
Tendring DC,http://statistics.data.gov.uk/id/local-authority-district/22UN,Life Opportunities,5140 - Homelessness,9032 - Homelessness Accommodation Charges,21/01/2014,7011025-2,-16.45,REDACTED PERSONAL DATA,REDACTED PERSONAL DATA
Tendring DC,http://statistics.data.gov.uk/id/local-authority-district/22UN,Life Opportunities,5140 - Homelessness,4680 - Bed & Breakfast Accommodation,21/01/2014,7011026-1,420,REDACTED PERSONAL DATA,REDACTED PERSONAL DATA
Tendring DC,http://statistics.data.gov.uk/id/local-authority-district/22UN,Life Opportunities,5140 - Homelessness,9032 - Homelessness Accommodation Charges,21/01/2014,7011026-2,-16.45,REDACTED PERSONAL DATA,REDACTED PERSONAL DATA
Tendring DC,http://statistics.data.gov.uk/id/local-authority-district/22UN,Life Opportunities,H920 - Disabled Facilities Grants,C400 - Grant payments,21/01/2014,1056924-1,3100,REDACTED PERSONAL DATA,REDACTED PERSONAL DATA
Tendring DC,http://statistics.data.gov.uk/id/local-authority-district/22UN,Life Opportunities,H920 - Disabled Facilities Grants,C400 - Grant payments,28/01/2014,1057036-1,3857.99,REDACTED PERSONAL DATA,REDACTED PERSONAL DATA
Tendring DC,http://statistics.data.gov.uk/id/local-authority-district/22UN,Life Opportunities,1090 - Chief Executive and Support Service Unit,4355 - Books & Periodicals,28/01/2014,7011060-1,60.1,2112734 - Matt's Carousel,MATTS CAROUSEL LTD DEC 13
Tendring DC,http://statistics.data.gov.uk/id/local-authority-district/22UN,Life Opportunities,1100 - Corporate Director (Corporate Services) and Admin Service Unit,4355 - Books & Periodicals,28/01/2014,7011060-2,44.5,2112734 - Matt's Carousel,MATTS CAROUSEL LTD DEC 13
Tendring DC,http://statistics.data.gov.uk/id/local-authority-district/22UN,Life Opportunities,1040 - Regeneration Service Unit,4355 - Books & Periodicals,28/01/2014,7011060-3,18.4,2112734 - Matt's Carousel,MATTS CAROUSEL LTD DEC 13
Tendring DC,http://statistics.data.gov.uk/id/local-authority-district/22UN,Life Opportunities,"1580 - Benefits, Revenues and Customer Contact SU",4355 - Books & Periodicals,28/01/2014,7011060-4,18.4,2112734 - Matt's Carousel,MATTS CAROUSEL LTD DEC 13
Tendring DC,http://statistics.data.gov.uk/id/local-authority-district/22UN,Life Opportunities,7040 - Civic Ceremonial Expenses,4080 - Materials & Consumables,28/01/2014,7011060-5,3.2,2112734 - Matt's Carousel,MATTS CAROUSEL LTD DEC 13
Tendring DC,http://statistics.data.gov.uk/id/local-authority-district/22UN,Life Opportunities,1880 - Office Accommodation Expenses,4080 - Materials & Consumables,21/01/2014,7010844-1,94.9,2101791 - Medlock Electrical,MEDLOCK ORDER 13.12.13
Tendring DC,http://statistics.data.gov.uk/id/local-authority-district/22UN,Life Opportunities,8540 - Leisure Centre Clacton,2100 - Building Repairs,28/01/2014,7011122-1,26.2,2101791 - Medlock Electrical,LIGHT BULBS
Tendring DC,http://statistics.data.gov.uk/id/local-authority-district/22UN,Life Opportunities,8540 - Leisure Centre Clacton,2100 - Building Repairs,28/01/2014,7011123-1,73.08,2101791 - Medlock Electrical,LIGHT BULBS
Tendring DC,http://statistics.data.gov.uk/id/local-authority-district/22UN,Life Opportunities,7520 - Tourism Publicity Marketing Promotion,5160 - Advertising,07/01/2014,1056755-1,250,2109596 - Metropolis Business Media,NOV/DEC 13
Tendring DC,http://statistics.data.gov.uk/id/local-authority-district/22UN,Life Opportunities,5240 - HRA - Managing Tenancies,5242 - Tenant Relations,28/01/2014,1057052-1,10,REDACTED PERSONAL DATA,REDACTED PERSONAL DATA
Tendring DC,http://statistics.data.gov.uk/id/local-authority-district/22UN,Life Opportunities,H710 - Selected Improvements,C200 - Main Contractor,21/01/2014,1056932-1,500,2101578 - Micraft,MEAD HOUSE & SAVILLE STREET
Tendring DC,http://statistics.data.gov.uk/id/local-authority-district/22UN,Life Opportunities,H710 - Selected Improvements,C200 - Main Contractor,21/01/2014,1056932-2,1411.77,2101578 - Micraft,MEAD HOUSE & SAVILLE STREET
Tendring DC,http://statistics.data.gov.uk/id/local-authority-district/22UN,Life Opportunities,7600 - Tourist Information Centres,2100 - Building Repairs,21/01/2014,1056933-1,465.29,2101578 - Micraft,WORKS TO TIC
Tendring DC,http://statistics.data.gov.uk/id/local-authority-district/22UN,Life Opportunities,5140 - Homelessness,4683 - Other Homelessness Expenses,14/01/2014,1056848-1,450,REDACTED PERSONAL DATA,REDACTED PERSONAL DATA
Tendring DC,http://statistics.data.gov.uk/id/local-authority-district/22UN,Life Opportunities,9920 - HRA Balance Sheet,B860 - Housing Rents - Cash,14/01/2014,1056837-1,10.58,REDACTED PERSONAL DATA,REDACTED PERSONAL DATA
Tendring DC,http://statistics.data.gov.uk/id/local-authority-district/22UN,Life Opportunities,9920 - HRA Balance Sheet,B860 - Housing Rents - Cash,14/01/2014,1056838-1,77.71,REDACTED PERSONAL DATA,REDACTED PERSONAL DATA
Tendring DC,http://statistics.data.gov.uk/id/local-authority-district/22UN,Life Opportunities,5240 - HRA - Managing Tenancies,6620 - Under Occupation Incentive Scheme,07/01/2014,1056805-1,815.31,REDACTED PERSONAL DATA,REDACTED PERSONAL DATA
Tendring DC,http://statistics.data.gov.uk/id/local-authority-district/22UN,Life Opportunities,C021 - Mercury Abatement Equipment and Cremators replacement,C200 - Main Contractor,14/01/2014,1056854-1,1035,2111984 - MLM Consulting Engineers Ltd,WEELEY CREM STAGE 3
Tendring DC,http://statistics.data.gov.uk/id/local-authority-district/22UN,Life Opportunities,8540 - Leisure Centre Clacton,4400 - Maintenance Under Service Agreements,14/01/2014,7010768-1,64.4,2104791 - Mobile Mini Uk Ltd,18/12/13-14/1/14
Tendring DC,http://statistics.data.gov.uk/id/local-authority-district/22UN,Life Opportunities,8540 - Leisure Centre Clacton,4200 - Clothing & Uniforms,28/01/2014,7011166-1,237,2109450 - Monster Merchandise Ltd,STAFF UNIFORM
Tendring DC,http://statistics.data.gov.uk/id/local-authority-district/22UN,Life Opportunities,5480 - HRA - Repair & Maintenance,2073 - Smoke Alarm Service/Testing,07/01/2014,1056798-1,882.42,2111370 - Morrison Facilities Services,GAS SERIVE & REPAIR-SOUTH AREA 13/14
Tendring DC,http://statistics.data.gov.uk/id/local-authority-district/22UN,Life Opportunities,5480 - HRA - Repair & Maintenance,2075 - Gas Service Contract Servicing/Testing (Domestic I,07/01/2014,1056798-2,2178.94,2111370 - Morrison Facilities Services,GAS SERIVE & REPAIR-SOUTH AREA 13/14
Tendring DC,http://statistics.data.gov.uk/id/local-authority-district/22UN,Life Opportunities,5480 - HRA - Repair & Maintenance,2076 - Gas Service Contract Other Refurbishment/Repairs (,07/01/2014,1056798-3,3379.6,2111370 - Morrison Facilities Services,GAS SERIVE & REPAIR-SOUTH AREA 13/14
Tendring DC,http://statistics.data.gov.uk/id/local-authority-district/22UN,Life Opportunities,H800 - Structural Repairs,C200 - Main Contractor,21/01/2014,7010850-1,400,2112390 - MP Building Assessors Ltd,HASTINGS PLACE
Tendring DC,http://statistics.data.gov.uk/id/local-authority-district/22UN,Life Opportunities,9920 - HRA Balance Sheet,B860 - Housing Rents - Cash,14/01/2014,1056834-1,47.76,REDACTED PERSONAL DATA,REDACTED PERSONAL DATA
Tendring DC,http://statistics.data.gov.uk/id/local-authority-district/22UN,Life Opportunities,5240 - HRA - Managing Tenancies,5242 - Tenant Relations,07/01/2014,1056725-1,10,REDACTED PERSONAL DATA,REDACTED PERSONAL DATA
Tendring DC,http://statistics.data.gov.uk/id/local-authority-district/22UN,Life Opportunities,5240 - HRA - Managing Tenancies,5242 - Tenant Relations,07/01/2014,1056730-1,10,REDACTED PERSONAL DATA,REDACTED PERSONAL DATA
Tendring DC,http://statistics.data.gov.uk/id/local-authority-district/22UN,Life Opportunities,9920 - HRA Balance Sheet,B860 - Housing Rents - Cash,07/01/2014,1056775-1,485.9,REDACTED PERSONAL DATA,REDACTED PERSONAL DATA
Tendring DC,http://statistics.data.gov.uk/id/local-authority-district/22UN,Life Opportunities,5240 - HRA - Managing Tenancies,5242 - Tenant Relations,28/01/2014,1057043-1,10,REDACTED PERSONAL DATA,REDACTED PERSONAL DATA
Tendring DC,http://statistics.data.gov.uk/id/local-authority-district/22UN,Life Opportunities,5140 - Homelessness,4683 - Other Homelessness Expenses,14/01/2014,1056850-1,695,REDACTED PERSONAL DATA,REDACTED PERSONAL DATA
Tendring DC,http://statistics.data.gov.uk/id/local-authority-district/22UN,Life Opportunities,5240 - HRA - Managing Tenancies,5242 - Tenant Relations,28/01/2014,1057042-1,10,REDACTED PERSONAL DATA,REDACTED PERSONAL DATA
Tendring DC,http://statistics.data.gov.uk/id/local-authority-district/22UN,Life Opportunities,9920 - HRA Balance Sheet,B860 - Housing Rents - Cash,14/01/2014,1056833-1,6.92,REDACTED PERSONAL DATA,REDACTED PERSONAL DATA
Tendring DC,http://statistics.data.gov.uk/id/local-authority-district/22UN,Life Opportunities,9920 - HRA Balance Sheet,B860 - Housing Rents - Cash,28/01/2014,1057071-1,260.21,REDACTED PERSONAL DATA,REDACTED PERSONAL DATA
Tendring DC,http://statistics.data.gov.uk/id/local-authority-district/22UN,Life Opportunities,8540 - Leisure Centre Clacton,4597 - Hired Services - Payments to Contractors,21/01/2014,7010875-1,150,REDACTED PERSONAL DATA,REDACTED PERSONAL DATA
Tendring DC,http://statistics.data.gov.uk/id/local-authority-district/22UN,Life Opportunities,9920 - HRA Balance Sheet,B860 - Housing Rents - Cash,28/01/2014,1057070-1,299.75,REDACTED PERSONAL DATA,REDACTED PERSONAL DATA
Tendring DC,http://statistics.data.gov.uk/id/local-authority-district/22UN,Life Opportunities,5240 - HRA - Managing Tenancies,5242 - Tenant Relations,28/01/2014,1057044-1,10,REDACTED PERSONAL DATA,REDACTED PERSONAL DATA
Tendring DC,http://statistics.data.gov.uk/id/local-authority-district/22UN,Life Opportunities,5240 - HRA - Managing Tenancies,5242 - Tenant Relations,28/01/2014,1057038-1,10,REDACTED PERSONAL DATA,REDACTED PERSONAL DATA
Tendring DC,http://statistics.data.gov.uk/id/local-authority-district/22UN,Life Opportunities,5240 - HRA - Managing Tenancies,5242 - Tenant Relations,28/01/2014,1057051-1,10,REDACTED PERSONAL DATA,REDACTED PERSONAL DATA
Tendring DC,http://statistics.data.gov.uk/id/local-authority-district/22UN,Life Opportunities,5140 - Homelessness,4683 - Other Homelessness Expenses,21/01/2014,1056914-1,450,REDACTED PERSONAL DATA,REDACTED PERSONAL DATA
Tendring DC,http://statistics.data.gov.uk/id/local-authority-district/22UN,Life Opportunities,5240 - HRA - Managing Tenancies,5242 - Tenant Relations,28/01/2014,1057039-1,10,REDACTED PERSONAL DATA,REDACTED PERSONAL DATA
Tendring DC,http://statistics.data.gov.uk/id/local-authority-district/22UN,Life Opportunities,9920 - HRA Balance Sheet,B860 - Housing Rents - Cash,21/01/2014,1056906-1,178.96,REDACTED PERSONAL DATA,REDACTED PERSONAL DATA
Tendring DC,http://statistics.data.gov.uk/id/local-authority-district/22UN,Life Opportunities,9920 - HRA Balance Sheet,B860 - Housing Rents - Cash,28/01/2014,1057056-1,86.6,REDACTED PERSONAL DATA,REDACTED PERSONAL DATA
Tendring DC,http://statistics.data.gov.uk/id/local-authority-district/22UN,Life Opportunities,6160 - Princes Theatre,9352 - Opportunity Bookings,14/01/2014,1056841-1,32.5,REDACTED PERSONAL DATA,REDACTED PERSONAL DATA
Tendring DC,http://statistics.data.gov.uk/id/local-authority-district/22UN,Life Opportunities,5140 - Homelessness,4683 - Other Homelessness Expenses,14/01/2014,1056901-1,450,REDACTED PERSONAL DATA,REDACTED PERSONAL DATA
Tendring DC,http://statistics.data.gov.uk/id/local-authority-district/22UN,Life Opportunities,5240 - HRA - Managing Tenancies,5242 - Tenant Relations,07/01/2014,1056733-1,10,REDACTED PERSONAL DATA,REDACTED PERSONAL DATA
Tendring DC,http://statistics.data.gov.uk/id/local-authority-district/22UN,Life Opportunities,9920 - HRA Balance Sheet,B860 - Housing Rents - Cash,28/01/2014,1057069-1,90,REDACTED PERSONAL DATA,REDACTED PERSONAL DATA
Tendring DC,http://statistics.data.gov.uk/id/local-authority-district/22UN,Life Opportunities,6160 - Princes Theatre,4040 - Equipment & Tools,14/01/2014,2112912-1,100,2103915 - MRL Productions,hire of 3 bays beam and pole
Tendring DC,http://statistics.data.gov.uk/id/local-authority-district/22UN,Life Opportunities,6160 - Princes Theatre,4040 - Equipment & Tools,14/01/2014,2112913-1,512,2103915 - MRL Productions,hire of dts jacks
Tendring DC,http://statistics.data.gov.uk/id/local-authority-district/22UN,Life Opportunities,5240 - HRA - Managing Tenancies,5242 - Tenant Relations,07/01/2014,1056726-1,10,REDACTED PERSONAL DATA,REDACTED PERSONAL DATA
Tendring DC,http://statistics.data.gov.uk/id/local-authority-district/22UN,Life Opportunities,5240 - HRA - Managing Tenancies,5242 - Tenant Relations,28/01/2014,1057048-1,10,REDACTED PERSONAL DATA,REDACTED PERSONAL DATA
Tendring DC,http://statistics.data.gov.uk/id/local-authority-district/22UN,Life Opportunities,9920 - HRA Balance Sheet,B860 - Housing Rents - Cash,07/01/2014,1056774-1,339.39,REDACTED PERSONAL DATA,REDACTED PERSONAL DATA
Tendring DC,http://statistics.data.gov.uk/id/local-authority-district/22UN,Life Opportunities,5240 - HRA - Managing Tenancies,5242 - Tenant Relations,28/01/2014,1057050-1,10,REDACTED PERSONAL DATA,REDACTED PERSONAL DATA
Tendring DC,http://statistics.data.gov.uk/id/local-authority-district/22UN,Life Opportunities,H920 - Disabled Facilities Grants,C400 - Grant payments,14/01/2014,1056835-1,2100,REDACTED PERSONAL DATA,REDACTED PERSONAL DATA
Tendring DC,http://statistics.data.gov.uk/id/local-authority-district/22UN,Life Opportunities,5240 - HRA - Managing Tenancies,5242 - Tenant Relations,28/01/2014,1057040-1,10,REDACTED PERSONAL DATA,REDACTED PERSONAL DATA
Tendring DC,http://statistics.data.gov.uk/id/local-authority-district/22UN,Life Opportunities,9920 - HRA Balance Sheet,B860 - Housing Rents - Cash,14/01/2014,1056836-1,155.95,REDACTED PERSONAL DATA,REDACTED PERSONAL DATA
Tendring DC,http://statistics.data.gov.uk/id/local-authority-district/22UN,Life Opportunities,5140 - Homelessness,4680 - Bed & Breakfast Accommodation,21/01/2014,1056998-1,70.6,REDACTED PERSONAL DATA,REDACTED PERSONAL DATA
Tendring DC,http://statistics.data.gov.uk/id/local-authority-district/22UN,Life Opportunities,5240 - HRA - Managing Tenancies,5242 - Tenant Relations,07/01/2014,1056724-1,10,REDACTED PERSONAL DATA,REDACTED PERSONAL DATA
Tendring DC,http://statistics.data.gov.uk/id/local-authority-district/22UN,Life Opportunities,9920 - HRA Balance Sheet,B860 - Housing Rents - Cash,07/01/2014,1056773-1,120.96,REDACTED PERSONAL DATA,REDACTED PERSONAL DATA
Tendring DC,http://statistics.data.gov.uk/id/local-authority-district/22UN,Life Opportunities,5820 - Harwich Sports Centre,4597 - Hired Services - Payments to Contractors,14/01/2014,7010784-1,60,2112299 - My Time Fitness Ltd,BODY FITNESS CLASSES
Tendring DC,http://statistics.data.gov.uk/id/local-authority-district/22UN,Life Opportunities,8540 - Leisure Centre Clacton,2100 - Building Repairs,28/01/2014,7011071-1,128,2100967 - N Rudelhoff,VARIOUS WORKS
Tendring DC,http://statistics.data.gov.uk/id/local-authority-district/22UN,Life Opportunities,6160 - Princes Theatre,2100 - Building Repairs,28/01/2014,7011074-1,1336,2100967 - N Rudelhoff,PERIODIC TEST & INSPECTION
Tendring DC,http://statistics.data.gov.uk/id/local-authority-district/22UN,Life Opportunities,6160 - Princes Theatre,2100 - Building Repairs,28/01/2014,7011075-1,174,2100967 - N Rudelhoff,DRESSING ROOM FAULTS
Tendring DC,http://statistics.data.gov.uk/id/local-authority-district/22UN,Life Opportunities,1240 - Commercial Management,3302 - Car Allowances - Officers,14/01/2014,2112942-1,60,REDACTED PERSONAL DATA,REDACTED PERSONAL DATA
Tendring DC,http://statistics.data.gov.uk/id/local-authority-district/22UN,Life Opportunities,7600 - Tourist Information Centres,9356 - Commission Sales,14/01/2014,7010806-1,618.72,2110032 - National Express Ltd,NATIONAL EXPRESS
Tendring DC,http://statistics.data.gov.uk/id/local-authority-district/22UN,Life Opportunities,7600 - Tourist Information Centres,9356 - Commission Sales,14/01/2014,7010806-2,-54.64,2110032 - National Express Ltd,NATIONAL EXPRESS
Tendring DC,http://statistics.data.gov.uk/id/local-authority-district/22UN,Life Opportunities,6160 - Princes Theatre,5160 - Advertising,07/01/2014,1056761-1,183.2,2113536 - Newsquest Media Group,13/12/13 PANTO
Tendring DC,http://statistics.data.gov.uk/id/local-authority-district/22UN,Life Opportunities,6160 - Princes Theatre,5160 - Advertising,07/01/2014,1056762-1,195,2113536 - Newsquest Media Group,EVENING GAZETTE 11/12/13
Tendring DC,http://statistics.data.gov.uk/id/local-authority-district/22UN,Life Opportunities,6160 - Princes Theatre,5160 - Advertising,14/01/2014,2112911-1,114,2113536 - Newsquest Media Group,panto advert harwich and manningtree
Tendring DC,http://statistics.data.gov.uk/id/local-authority-district/22UN,Life Opportunities,6160 - Princes Theatre,5160 - Advertising,14/01/2014,7010688-1,130.86,2113536 - Newsquest Media Group,CLACTON GAZETTE 26/27-12-13
Tendring DC,http://statistics.data.gov.uk/id/local-authority-district/22UN,Life Opportunities,5880 - Management Of Sport & Leisure Facilities,5166 - Marketing and Promotion,14/01/2014,7010769-1,1088,2113536 - Newsquest Media Group,2 x HP ADS  - CFG HMS X 2
Tendring DC,http://statistics.data.gov.uk/id/local-authority-district/22UN,Life Opportunities,6160 - Princes Theatre,5160 - Advertising,14/01/2014,7010776-1,215,2113536 - Newsquest Media Group,CLACTON GAZETTE PANTO 19.12.13
Tendring DC,http://statistics.data.gov.uk/id/local-authority-district/22UN,Life Opportunities,6160 - Princes Theatre,4105 - Bar/Catering Expenses,07/01/2014,1056751-1,99.98,2108282 - Nisbets,COFFEE MACHINE
Tendring DC,http://statistics.data.gov.uk/id/local-authority-district/22UN,Life Opportunities,H920 - Disabled Facilities Grants,C400 - Grant payments,14/01/2014,2112933-1,150,REDACTED PERSONAL DATA,REDACTED PERSONAL DATA
Tendring DC,http://statistics.data.gov.uk/id/local-authority-district/22UN,Life Opportunities,5240 - HRA - Managing Tenancies,5242 - Tenant Relations,28/01/2014,1057046-1,10,REDACTED PERSONAL DATA,REDACTED PERSONAL DATA
Tendring DC,http://statistics.data.gov.uk/id/local-authority-district/22UN,Life Opportunities,H880 - New Build Initiatives and Acquisitions,C200 - Main Contractor,21/01/2014,7010835-1,943.5,2111951 - NPS Property Consultants Ltd,WALTON ON NAZE
Tendring DC,http://statistics.data.gov.uk/id/local-authority-district/22UN,Life Opportunities,1880 - Office Accommodation Expenses,2100 - Building Repairs,28/01/2014,1057121-1,550,2102096 - Nu-Life Cleaning,ROOT CUTTING WEELEY
Tendring DC,http://statistics.data.gov.uk/id/local-authority-district/22UN,Life Opportunities,1880 - Office Accommodation Expenses,2100 - Building Repairs,28/01/2014,1057122-1,200,2102096 - Nu-Life Cleaning,TANKER TO INSPECT CARPARK WEELEY
Tendring DC,http://statistics.data.gov.uk/id/local-authority-district/22UN,Life Opportunities,5140 - Homelessness,4683 - Other Homelessness Expenses,21/01/2014,1056917-1,24.76,REDACTED PERSONAL DATA,REDACTED PERSONAL DATA
Tendring DC,http://statistics.data.gov.uk/id/local-authority-district/22UN,Life Opportunities,6160 - Princes Theatre,5306 - Confectionary,28/01/2014,1057129-1,55.24,2101083 - Osgood Smith,CONFECTIONARY FOR THEATRE
Tendring DC,http://statistics.data.gov.uk/id/local-authority-district/22UN,Life Opportunities,5820 - Harwich Sports Centre,5311 - General Provisions - Vending,28/01/2014,1057144-1,27.51,2101083 - Osgood Smith,CANTEEN GOODS
Tendring DC,http://statistics.data.gov.uk/id/local-authority-district/22UN,Life Opportunities,6160 - Princes Theatre,5306 - Confectionary,14/01/2014,2112910-1,74.59,2101083 - Osgood Smith,snacks for theatre bar
Tendring DC,http://statistics.data.gov.uk/id/local-authority-district/22UN,Life Opportunities,5860 - Manningtree Sports Centre,5311 - General Provisions - Vending,07/01/2014,7010604-1,115,2101083 - Osgood Smith,VENDING SUPPLIES
Tendring DC,http://statistics.data.gov.uk/id/local-authority-district/22UN,Life Opportunities,5800 - Brightlingsea Sports Centre,5316 - General Provisions,07/01/2014,7010607-1,150.57,2101083 - Osgood Smith,OSGOOD SMITH
Tendring DC,http://statistics.data.gov.uk/id/local-authority-district/22UN,Life Opportunities,6160 - Princes Theatre,5306 - Confectionary,14/01/2014,7010644-1,91.83,2101083 - Osgood Smith,CONFECTIONARY FOR THEATRE
Tendring DC,http://statistics.data.gov.uk/id/local-authority-district/22UN,Life Opportunities,8520 - Frinton & Walton Swimming Pool,5311 - General Provisions - Vending,14/01/2014,7010757-1,168.38,2101083 - Osgood Smith,OSGOODS SNACKS
Tendring DC,http://statistics.data.gov.uk/id/local-authority-district/22UN,Life Opportunities,8520 - Frinton & Walton Swimming Pool,5311 - General Provisions - Vending,14/01/2014,7010758-1,56.43,2101083 - Osgood Smith,OSGOODS SNACKS
Tendring DC,http://statistics.data.gov.uk/id/local-authority-district/22UN,Life Opportunities,8520 - Frinton & Walton Swimming Pool,5311 - General Provisions - Vending,14/01/2014,7010759-1,20.89,2101083 - Osgood Smith,OSGOODS SNACKS
Tendring DC,http://statistics.data.gov.uk/id/local-authority-district/22UN,Life Opportunities,5820 - Harwich Sports Centre,5311 - General Provisions - Vending,14/01/2014,7010785-1,96.37,2101083 - Osgood Smith,CANTEEN SUPPLIES
Tendring DC,http://statistics.data.gov.uk/id/local-authority-district/22UN,Life Opportunities,5820 - Harwich Sports Centre,5311 - General Provisions - Vending,14/01/2014,7010785-2,12.68,2101083 - Osgood Smith,CANTEEN SUPPLIES
Tendring DC,http://statistics.data.gov.uk/id/local-authority-district/22UN,Life Opportunities,5820 - Harwich Sports Centre,5311 - General Provisions - Vending,21/01/2014,7010842-1,52.98,2101083 - Osgood Smith,CANTEEN GOODS
Tendring DC,http://statistics.data.gov.uk/id/local-authority-district/22UN,Life Opportunities,5860 - Manningtree Sports Centre,5311 - General Provisions - Vending,28/01/2014,7011146-1,310.47,2101083 - Osgood Smith,VENDING SUPPLIES
Tendring DC,http://statistics.data.gov.uk/id/local-authority-district/22UN,Life Opportunities,5860 - Manningtree Sports Centre,5311 - General Provisions - Vending,28/01/2014,7011201-1,167.66,2101083 - Osgood Smith,VENDRING SUPPLIES
Tendring DC,http://statistics.data.gov.uk/id/local-authority-district/22UN,Life Opportunities,5860 - Manningtree Sports Centre,5311 - General Provisions - Vending,07/01/2014,7700940-1,123.54,2101083 - Osgood Smith,VENDING SUPPLIES
Tendring DC,http://statistics.data.gov.uk/id/local-authority-district/22UN,Life Opportunities,5820 - Harwich Sports Centre,5311 - General Provisions - Vending,07/01/2014,7700941-1,110.86,2101083 - Osgood Smith,CANTEEN GOODS
Tendring DC,http://statistics.data.gov.uk/id/local-authority-district/22UN,Life Opportunities,8510 - Dovercourt Swimming Pool & All Weather Facilities,5311 - General Provisions - Vending,07/01/2014,7700942-1,51.16,2101083 - Osgood Smith,DOVERCOURT POOL - SWEETS
Tendring DC,http://statistics.data.gov.uk/id/local-authority-district/22UN,Life Opportunities,8510 - Dovercourt Swimming Pool & All Weather Facilities,5311 - General Provisions - Vending,07/01/2014,7700943-1,40.7,2101083 - Osgood Smith,DOVERCOURT POOL - SWEETS
Tendring DC,http://statistics.data.gov.uk/id/local-authority-district/22UN,Life Opportunities,5480 - HRA - Repair & Maintenance,2077 - Gas Service Contract  Servicing/Testing (Large Sca,21/01/2014,1057012-1,2873.58,2113206 - P&R Installation Company Ltd,MECHANICAL SERVICES CONTRACT (LSB)
Tendring DC,http://statistics.data.gov.uk/id/local-authority-district/22UN,Life Opportunities,5480 - HRA - Repair & Maintenance,2078 - Gas Service Contract Other Refurbishment/Repairs (,21/01/2014,1057012-2,3919.54,2113206 - P&R Installation Company Ltd,MECHANICAL SERVICES CONTRACT (LSB)
Tendring DC,http://statistics.data.gov.uk/id/local-authority-district/22UN,Life Opportunities,5240 - HRA - Managing Tenancies,5242 - Tenant Relations,07/01/2014,1056727-1,10,REDACTED PERSONAL DATA,REDACTED PERSONAL DATA
Tendring DC,http://statistics.data.gov.uk/id/local-authority-district/22UN,Life Opportunities,5860 - Manningtree Sports Centre,4597 - Hired Services - Payments to Contractors,07/01/2014,7700950-1,280,2112933 - Phoenix Archery Club,ARCHERY CLASSES
Tendring DC,http://statistics.data.gov.uk/id/local-authority-district/22UN,Life Opportunities,5420 - HRA - Communal Cleaning,2706 - Communal Areas Cleaning Expenses,07/01/2014,7700976-1,3521.58,2107884 - Pinnacle Essex,MONTHLY CLEANING SERVICE FEE DEC 2013
Tendring DC,http://statistics.data.gov.uk/id/local-authority-district/22UN,Life Opportunities,5480 - HRA - Repair & Maintenance,2090 - Fencing,07/01/2014,1056744-1,29,REDACTED PERSONAL DATA,REDACTED PERSONAL DATA
Tendring DC,http://statistics.data.gov.uk/id/local-authority-district/22UN,Life Opportunities,5480 - HRA - Repair & Maintenance,2090 - Fencing,07/01/2014,1056745-1,28,REDACTED PERSONAL DATA,REDACTED PERSONAL DATA
Tendring DC,http://statistics.data.gov.uk/id/local-authority-district/22UN,Life Opportunities,5480 - HRA - Repair & Maintenance,2090 - Fencing,28/01/2014,1057076-1,60,REDACTED PERSONAL DATA,REDACTED PERSONAL DATA
Tendring DC,http://statistics.data.gov.uk/id/local-authority-district/22UN,Life Opportunities,5480 - HRA - Repair & Maintenance,2090 - Fencing,28/01/2014,1057077-1,150.8,REDACTED PERSONAL DATA,REDACTED PERSONAL DATA
Tendring DC,http://statistics.data.gov.uk/id/local-authority-district/22UN,Life Opportunities,5480 - HRA - Repair & Maintenance,2090 - Fencing,28/01/2014,1057078-1,150,REDACTED PERSONAL DATA,REDACTED PERSONAL DATA
Tendring DC,http://statistics.data.gov.uk/id/local-authority-district/22UN,Life Opportunities,5480 - HRA - Repair & Maintenance,2090 - Fencing,28/01/2014,1057079-1,234,REDACTED PERSONAL DATA,REDACTED PERSONAL DATA
Tendring DC,http://statistics.data.gov.uk/id/local-authority-district/22UN,Life Opportunities,5480 - HRA - Repair & Maintenance,2090 - Fencing,28/01/2014,1057080-1,90,REDACTED PERSONAL DATA,REDACTED PERSONAL DATA
Tendring DC,http://statistics.data.gov.uk/id/local-authority-district/22UN,Life Opportunities,5480 - HRA - Repair & Maintenance,2090 - Fencing,28/01/2014,1057081-1,124,REDACTED PERSONAL DATA,REDACTED PERSONAL DATA
Tendring DC,http://statistics.data.gov.uk/id/local-authority-district/22UN,Life Opportunities,5480 - HRA - Repair & Maintenance,2090 - Fencing,14/01/2014,2112919-1,120,REDACTED PERSONAL DATA,REDACTED PERSONAL DATA
Tendring DC,http://statistics.data.gov.uk/id/local-authority-district/22UN,Life Opportunities,5480 - HRA - Repair & Maintenance,2090 - Fencing,14/01/2014,2112920-1,175.5,REDACTED PERSONAL DATA,REDACTED PERSONAL DATA
Tendring DC,http://statistics.data.gov.uk/id/local-authority-district/22UN,Life Opportunities,5480 - HRA - Repair & Maintenance,2090 - Fencing,14/01/2014,2112921-1,60,REDACTED PERSONAL DATA,REDACTED PERSONAL DATA
Tendring DC,http://statistics.data.gov.uk/id/local-authority-district/22UN,Life Opportunities,H710 - Selected Improvements,C200 - Main Contractor,14/01/2014,2112922-1,2070,REDACTED PERSONAL DATA,REDACTED PERSONAL DATA
Tendring DC,http://statistics.data.gov.uk/id/local-authority-district/22UN,Life Opportunities,5480 - HRA - Repair & Maintenance,2090 - Fencing,14/01/2014,2112923-1,154,REDACTED PERSONAL DATA,REDACTED PERSONAL DATA
Tendring DC,http://statistics.data.gov.uk/id/local-authority-district/22UN,Life Opportunities,5480 - HRA - Repair & Maintenance,2090 - Fencing,14/01/2014,2112924-1,30,REDACTED PERSONAL DATA,REDACTED PERSONAL DATA
Tendring DC,http://statistics.data.gov.uk/id/local-authority-district/22UN,Life Opportunities,H710 - Selected Improvements,C200 - Main Contractor,07/01/2014,7010620-1,7055.75,REDACTED PERSONAL DATA,REDACTED PERSONAL DATA
Tendring DC,http://statistics.data.gov.uk/id/local-authority-district/22UN,Life Opportunities,H710 - Selected Improvements,C200 - Main Contractor,07/01/2014,7010621-1,4413.5,REDACTED PERSONAL DATA,REDACTED PERSONAL DATA
Tendring DC,http://statistics.data.gov.uk/id/local-authority-district/22UN,Life Opportunities,5480 - HRA - Repair & Maintenance,2090 - Fencing,07/01/2014,7010622-1,60,REDACTED PERSONAL DATA,REDACTED PERSONAL DATA
Tendring DC,http://statistics.data.gov.uk/id/local-authority-district/22UN,Life Opportunities,5480 - HRA - Repair & Maintenance,2001 - Responsive Maintenance - Concrete And Other Extern,07/01/2014,7010622-2,47,REDACTED PERSONAL DATA,REDACTED PERSONAL DATA
Tendring DC,http://statistics.data.gov.uk/id/local-authority-district/22UN,Life Opportunities,5480 - HRA - Repair & Maintenance,2090 - Fencing,07/01/2014,7010623-1,60,REDACTED PERSONAL DATA,REDACTED PERSONAL DATA
Tendring DC,http://statistics.data.gov.uk/id/local-authority-district/22UN,Life Opportunities,5480 - HRA - Repair & Maintenance,2001 - Responsive Maintenance - Concrete And Other Extern,07/01/2014,7010624-1,201,REDACTED PERSONAL DATA,REDACTED PERSONAL DATA
Tendring DC,http://statistics.data.gov.uk/id/local-authority-district/22UN,Life Opportunities,5480 - HRA - Repair & Maintenance,2090 - Fencing,21/01/2014,7010854-1,386.28,REDACTED PERSONAL DATA,REDACTED PERSONAL DATA
Tendring DC,http://statistics.data.gov.uk/id/local-authority-district/22UN,Life Opportunities,5480 - HRA - Repair & Maintenance,2090 - Fencing,21/01/2014,7010855-1,53.5,REDACTED PERSONAL DATA,REDACTED PERSONAL DATA
Tendring DC,http://statistics.data.gov.uk/id/local-authority-district/22UN,Life Opportunities,5480 - HRA - Repair & Maintenance,2090 - Fencing,21/01/2014,7010932-1,70.5,REDACTED PERSONAL DATA,REDACTED PERSONAL DATA
Tendring DC,http://statistics.data.gov.uk/id/local-authority-district/22UN,Life Opportunities,5480 - HRA - Repair & Maintenance,2001 - Responsive Maintenance - Concrete And Other Extern,21/01/2014,7010932-2,84,REDACTED PERSONAL DATA,REDACTED PERSONAL DATA
Tendring DC,http://statistics.data.gov.uk/id/local-authority-district/22UN,Life Opportunities,5480 - HRA - Repair & Maintenance,2090 - Fencing,21/01/2014,7010933-1,234,REDACTED PERSONAL DATA,REDACTED PERSONAL DATA
Tendring DC,http://statistics.data.gov.uk/id/local-authority-district/22UN,Life Opportunities,5480 - HRA - Repair & Maintenance,2090 - Fencing,21/01/2014,7010947-1,306.01,REDACTED PERSONAL DATA,REDACTED PERSONAL DATA
Tendring DC,http://statistics.data.gov.uk/id/local-authority-district/22UN,Life Opportunities,5480 - HRA - Repair & Maintenance,2090 - Fencing,21/01/2014,7010948-1,382.14,REDACTED PERSONAL DATA,REDACTED PERSONAL DATA
Tendring DC,http://statistics.data.gov.uk/id/local-authority-district/22UN,Life Opportunities,5480 - HRA - Repair & Maintenance,2090 - Fencing,21/01/2014,7010949-1,231.77,REDACTED PERSONAL DATA,REDACTED PERSONAL DATA
Tendring DC,http://statistics.data.gov.uk/id/local-authority-district/22UN,Life Opportunities,5480 - HRA - Repair & Maintenance,2090 - Fencing,21/01/2014,7011018-1,28,REDACTED PERSONAL DATA,REDACTED PERSONAL DATA
Tendring DC,http://statistics.data.gov.uk/id/local-authority-district/22UN,Life Opportunities,5480 - HRA - Repair & Maintenance,2001 - Responsive Maintenance - Concrete And Other Extern,21/01/2014,7011018-2,23.5,REDACTED PERSONAL DATA,REDACTED PERSONAL DATA
Tendring DC,http://statistics.data.gov.uk/id/local-authority-district/22UN,Life Opportunities,5480 - HRA - Repair & Maintenance,2090 - Fencing,21/01/2014,7011019-1,30,REDACTED PERSONAL DATA,REDACTED PERSONAL DATA
Tendring DC,http://statistics.data.gov.uk/id/local-authority-district/22UN,Life Opportunities,5480 - HRA - Repair & Maintenance,2001 - Responsive Maintenance - Concrete And Other Extern,21/01/2014,7011019-2,25,REDACTED PERSONAL DATA,REDACTED PERSONAL DATA
Tendring DC,http://statistics.data.gov.uk/id/local-authority-district/22UN,Life Opportunities,5480 - HRA - Repair & Maintenance,2090 - Fencing,21/01/2014,7011020-1,118,REDACTED PERSONAL DATA,REDACTED PERSONAL DATA
Tendring DC,http://statistics.data.gov.uk/id/local-authority-district/22UN,Life Opportunities,5480 - HRA - Repair & Maintenance,2001 - Responsive Maintenance - Concrete And Other Extern,21/01/2014,7011020-2,25,REDACTED PERSONAL DATA,REDACTED PERSONAL DATA
Tendring DC,http://statistics.data.gov.uk/id/local-authority-district/22UN,Life Opportunities,5480 - HRA - Repair & Maintenance,2090 - Fencing,28/01/2014,7011083-1,30,REDACTED PERSONAL DATA,REDACTED PERSONAL DATA
Tendring DC,http://statistics.data.gov.uk/id/local-authority-district/22UN,Life Opportunities,5480 - HRA - Repair & Maintenance,2090 - Fencing,28/01/2014,7011084-1,487.88,REDACTED PERSONAL DATA,REDACTED PERSONAL DATA
Tendring DC,http://statistics.data.gov.uk/id/local-authority-district/22UN,Life Opportunities,5480 - HRA - Repair & Maintenance,2090 - Fencing,28/01/2014,7011197-1,120,REDACTED PERSONAL DATA,REDACTED PERSONAL DATA
Tendring DC,http://statistics.data.gov.uk/id/local-authority-district/22UN,Life Opportunities,5480 - HRA - Repair & Maintenance,2001 - Responsive Maintenance - Concrete And Other Extern,28/01/2014,7011197-2,47,REDACTED PERSONAL DATA,REDACTED PERSONAL DATA
Tendring DC,http://statistics.data.gov.uk/id/local-authority-district/22UN,Life Opportunities,5480 - HRA - Repair & Maintenance,2095 - Other General Planned Repairs,28/01/2014,7011198-1,180,REDACTED PERSONAL DATA,REDACTED PERSONAL DATA
Tendring DC,http://statistics.data.gov.uk/id/local-authority-district/22UN,Life Opportunities,5480 - HRA - Repair & Maintenance,2001 - Responsive Maintenance - Concrete And Other Extern,28/01/2014,7011198-2,117.5,REDACTED PERSONAL DATA,REDACTED PERSONAL DATA
Tendring DC,http://statistics.data.gov.uk/id/local-authority-district/22UN,Life Opportunities,5480 - HRA - Repair & Maintenance,2090 - Fencing,28/01/2014,7011251-1,60,REDACTED PERSONAL DATA,REDACTED PERSONAL DATA
Tendring DC,http://statistics.data.gov.uk/id/local-authority-district/22UN,Life Opportunities,5480 - HRA - Repair & Maintenance,2090 - Fencing,28/01/2014,7011252-1,187.11,REDACTED PERSONAL DATA,REDACTED PERSONAL DATA
Tendring DC,http://statistics.data.gov.uk/id/local-authority-district/22UN,Life Opportunities,5480 - HRA - Repair & Maintenance,2090 - Fencing,07/01/2014,7700959-1,56,REDACTED PERSONAL DATA,REDACTED PERSONAL DATA
Tendring DC,http://statistics.data.gov.uk/id/local-authority-district/22UN,Life Opportunities,5480 - HRA - Repair & Maintenance,2090 - Fencing,07/01/2014,7700960-1,30,REDACTED PERSONAL DATA,REDACTED PERSONAL DATA
Tendring DC,http://statistics.data.gov.uk/id/local-authority-district/22UN,Life Opportunities,5480 - HRA - Repair & Maintenance,2090 - Fencing,07/01/2014,7700961-1,83.5,REDACTED PERSONAL DATA,REDACTED PERSONAL DATA
Tendring DC,http://statistics.data.gov.uk/id/local-authority-district/22UN,Life Opportunities,5480 - HRA - Repair & Maintenance,2090 - Fencing,07/01/2014,7700962-1,190.5,REDACTED PERSONAL DATA,REDACTED PERSONAL DATA
Tendring DC,http://statistics.data.gov.uk/id/local-authority-district/22UN,Life Opportunities,5480 - HRA - Repair & Maintenance,2090 - Fencing,07/01/2014,7700963-1,30,REDACTED PERSONAL DATA,REDACTED PERSONAL DATA
Tendring DC,http://statistics.data.gov.uk/id/local-authority-district/22UN,Life Opportunities,5480 - HRA - Repair & Maintenance,2001 - Responsive Maintenance - Concrete And Other Extern,07/01/2014,7700963-2,65,REDACTED PERSONAL DATA,REDACTED PERSONAL DATA
Tendring DC,http://statistics.data.gov.uk/id/local-authority-district/22UN,Life Opportunities,5480 - HRA - Repair & Maintenance,2001 - Responsive Maintenance - Concrete And Other Extern,07/01/2014,7700964-1,50,REDACTED PERSONAL DATA,REDACTED PERSONAL DATA
Tendring DC,http://statistics.data.gov.uk/id/local-authority-district/22UN,Life Opportunities,5480 - HRA - Repair & Maintenance,2001 - Responsive Maintenance - Concrete And Other Extern,07/01/2014,7700965-1,157,REDACTED PERSONAL DATA,REDACTED PERSONAL DATA
Tendring DC,http://statistics.data.gov.uk/id/local-authority-district/22UN,Life Opportunities,6160 - Princes Theatre,4622 - Hired Services - Artistes and Production Companies,21/01/2014,1056942-1,16925.57,2111649 - Polka Dot Pantomimes,PETER PAN
Tendring DC,http://statistics.data.gov.uk/id/local-authority-district/22UN,Life Opportunities,5480 - HRA - Repair & Maintenance,2012 - Responsive Maintenance - Clearance And Cleaning,14/01/2014,1056851-1,400,REDACTED PERSONAL DATA,REDACTED PERSONAL DATA
Tendring DC,http://statistics.data.gov.uk/id/local-authority-district/22UN,Life Opportunities,5480 - HRA - Repair & Maintenance,2020 - Fixed Plant repairs,14/01/2014,1056852-1,400,2107707 - Professional Cleaning Services (Essex) Ltd,1-30 VYNTONER HOUSE
Tendring DC,http://statistics.data.gov.uk/id/local-authority-district/22UN,Life Opportunities,5480 - HRA - Repair & Maintenance,2012 - Responsive Maintenance - Clearance And Cleaning,28/01/2014,1057102-1,50,REDACTED PERSONAL DATA,REDACTED PERSONAL DATA
Tendring DC,http://statistics.data.gov.uk/id/local-authority-district/22UN,Life Opportunities,5480 - HRA - Repair & Maintenance,2012 - Responsive Maintenance - Clearance And Cleaning,28/01/2014,1057103-1,50,REDACTED PERSONAL DATA,REDACTED PERSONAL DATA
Tendring DC,http://statistics.data.gov.uk/id/local-authority-district/22UN,Life Opportunities,5480 - HRA - Repair & Maintenance,2012 - Responsive Maintenance - Clearance And Cleaning,28/01/2014,1057104-1,80,REDACTED PERSONAL DATA,REDACTED PERSONAL DATA
Tendring DC,http://statistics.data.gov.uk/id/local-authority-district/22UN,Life Opportunities,5480 - HRA - Repair & Maintenance,2012 - Responsive Maintenance - Clearance And Cleaning,28/01/2014,1057105-1,70,REDACTED PERSONAL DATA,REDACTED PERSONAL DATA
